Workbook

Sheet practices
A1: STUDENTS | B1: Zebrafish | C1: Theme selection | D1: Organization | E1: Active participation | F1: Teacher readiness | G1: Practice value | H1: Syllabus | I1: COMMENTS | J1: Restraint | K1: Theme selection | L1: Organization | M1: Active participation | N1: Teacher readiness | O1: Practice value | P1: Syllabus | Q1: COMMENTS | R1: Behaviour | S1: Theme selection | T1: Organization | U1: Active participation | V1: Teacher readiness | W1: Practice value | X1: Syllabus | Y1: COMMENTS | Z1: Housing | AA1: Theme selection | AB1: Organization | AC1: Active participation | AD1: Teacher readiness | AE1: Practice value | AF1: Syllabus | AG1: COMMENTS | AH1: Infusion on phantoms | AI1: Theme selection | AJ1: Organization | AK1: Active participation | AL1: Teacher readiness | AM1: Practice value | AN1: Syllabus | AO1: COMMENTS | AP1: Anaesthesia | AQ1: Theme selection | AR1: Organization | AS1: Active participation | AT1: Teacher readiness | AU1: Practice value | AV1: Syllabus | AW1: COMMENTS | AX1: Aseptic techniques | AY1: Theme selection | AZ1: Organization | BA1: Active participation | BB1: Teacher readiness | BC1: Practice value | BD1: Syllabus | BE1: COMMENTS | BF1: Suturing | BG1: Theme selection | BH1: Organization | BI1: Active participation | BJ1: Teacher readiness | BK1: Practice value | BL1: Syllabus | BM1: COMMENTS | BN1: Surgical procedures | BO1: Theme selection | BP1: Organization | BQ1: Active participation | BR1: Teacher readiness | BS1: Practice value | BT1: Syllabus | BU1: COMMENTS | BV1: Alternatives | BW1: Theme selection | BX1: Organization | BY1: Active participation | BZ1: Teacher readiness | CA1: Practice value | CB1: Syllabus | CC1: COMMENTS
A2: Student 1 | B2: Biology and experimental practice of zebrafish Rita Emilia Szabó, Dr. Tünde Tőkés, Dr. Marietta Poles | C2: 4 | D2: 3 | E2: 3 | F2: 5 | G2: 3 | H2: 4 | I2: Practice not so useful. Small space for too many participants. | J2: Handling, sexing and restraint of laboratory animals. Dr. Gabriella Varga, Dr. Dániel Érces, Dr. Marietta Poles, Dr. József Kaszaki | K2: 5 | L2: 5 | M2: 5 | N2: 5 | O2: 5 | P2: 5 | R2: Methods of investigating laboratory animals behaviour in practice. Diána Martos, Dr. Tünde Tőkés, Eleonóra Spekker | S2: 5 | T2: 5 | U2: 5 | V2: 5 | W2: 5 | X2: 5 | Y2: Very interesting. | Z2: Care and housing of laboratory animals in practice: nutrition, cleaning and bedding. Dr. Gabriella Varga, Dr. Dániel Érces, Ágnes Szilágyi | AA2: 5 | AB2: 5 | AC2: 5 | AD2: 5 | AE2: 5 | AF2: 5 | AH2: Minimally invasive procedures without anaesthesia: injections. Intravenous access with Braun catheters, infusions on phantoms. Dr. Eszter Tuboly, Dr. Marietta Poles, Dr. László Juhász, Dr. Szabolcs Tallósy | AI2: 5 | AJ2: 5 | AK2: 5 | AL2: 5 | AM2: 5 | AN2: 5 | AP2: Minimally invasive procedures without anaesthesia: oral and parenteral drug administration to rodents in practice. Calculation of the dose of anaesthetic drugs for different species; Anaesthesia of rodents, recognition and control of pain. Advanced anaesthesia in practice: inhalation anaesthesia of rodents. Sampling methods under anaesthesia (urine, blood, tissue biopsies) Anaesthesia, instrumentation and non-invasive procedures on minipig. Scoring system to evaluate humane endpoint. Dr. Gabriella Varga, Dr. Dániel Érces, Dr. Eszter Tuboly, Dr. Marietta Poles, Dr. László Juhász, Attila Rutai, Ágnes Szilágyi | AQ2: 5 | AR2: 5 | AS2: 5 | AT2: 5 | AU2: 5 | AV2: 5 | AW2: Excellent! I appeciated the efforts of all teachers and trainers! | AX2: Practice in operating theatre I: aseptic techniques, working under sterile circumstances on dummies and phantoms Dr. Dániel Érces, Dr. Eszter Tuboly, Dr. Marietta Poles, Dr. László Juhász, Dr. Szabolcs Tallósy | AY2: 5 | AZ2: 5 | BA2: 5 | BB2: 5 | BC2: 5 | BD2: 5 | BE2: Very useful! | BF2: Practice in operating theatre II: basic surgical procedures, suturing, wound management on dummies and phantoms Dr. Dániel Érces , Dr. Eszter Tuboly, Dr. Marietta Poles, Dr. László Juhász, Dr. Szabolcs Tallósy | BG2: 5 | BH2: 5 | BI2: 5 | BJ2: 5 | BK2: 5 | BL2: 5 | BM2: Very useful! | BN2: Basic surgical procedures on anaesthetised rodents: Preparation of trachea – mechanical ventilation; Preparation of carotid artery - in vivo monitoring of vital signs; Preparation of jugular vein – infusion; Median laparotomy, anatomy of abdominal cavity; Suturing in two layers; Microsurgery (on mice) Dr. Andrea Szabó, Dr. Gabriella Varga, Dr. Dániel Érces, Dr. Eszter Tuboly, Dr. Marietta Poles, Dr. Szabolcs Tallósy, Ágnes Szilágyi, Attila Rutai | BO2: 5 | BP2: 3 | BQ2: 5 | BR2: 5 | BS2: 4 | BT2: 5 | BU2: Crowded tables. Rats were not well sedated, anesthetized. | BV2: Alternatives to animal use 2. In vitro and ex vivo experimental techniques; tissue cultures and the Langendorff method Dr. Tamás Csont, Dr. Csaba Csonka, Renáta Gáspár
A3: Student 2
A4: Student 3 | C4: 5 | D4: 5 | E4: 5 | F4: 5 | G4: 5 | H4: 5 | K4: 5 | L4: 5 | M4: 5 | N4: 5 | O4: 5 | P4: 5 | S4: 5 | T4: 5 | U4: 5 | V4: 5 | W4: 5 | X4: 5 | AA4: 5 | AB4: 5 | AC4: 5 | AD4: 5 | AE4: 4 | AF4: 5 | AI4: 5 | AJ4: 5 | AK4: 5 | AL4: 5 | AM4: 5 | AN4: 5 | AQ4: 2 | AR4: 2 | AS4: 2 | AT4: 3 | AU4: 3 | AW4: Lectures were not translated into practice, e.g. no eye ointment, no warming plates, no pain medication, no disinfection, retroorbital bleeding should not be performed without general anaesthesia, retroorbital injection should only be done by experienced staff, not by participants. It's okay to take more time for certain practice part. We don't mind waiting, it's better than rushing through the practice. | AY4: 5 | AZ4: 5 | BA4: 5 | BB4: 5 | BC4: 5 | BD4: 5 | BG4: 5 | BH4: 5 | BI4: 5 | BJ4: 5 | BK4: 5 | BL4: 5 | BO4: 5 | BP4: 5 | BQ4: 5 | BR4: 5 | BS4: 5 | BT4: 5 | BW4: 5 | BX4: 5 | BY4: 5 | BZ4: 5 | CA4: 5 | CB4: 5
A5: Student 4 | C5: 5 | D5: 2 | E5: 2 | F5: 5 | G5: 3 | H5: 3 | I5: To improve. Different groups in one lesson, didn't allow a good practice. | K5: 4 | L5: 3 | M5: 5 | N5: 5 | O5: 4 | P5: 4 | Q5: To improve the organization. I think it's been to divide the participant according to experiences and knowledge. | S5: 4 | T5: 3 | U5: 3 | V5: 5 | W5: 4 | X5: 4 | AA5: 2 | AB5: 1 | AC5: 4 | AD5: 4 | AE5: 3 | AF5: 4 | AG5: Rats and mice in the same keeping room!!!! | AI5: 4 | AJ5: 2 | AK5: 3 | AL5: 5 | AM5: 3 | AN5: 4 | AO5: How I already wrote, I think that the participants should be separate according their knowledge. I think that you should use more personnel because some procedures were performed without supervision. | AQ5: 5 | AR5: 3 | AS5: 5 | AT5: 5 | AU5: 4 | AV5: 5 | AW5: Mice and rats should not be in the same room!!! You should give more time for other species such as mini-pig. The blood collection from retro-orbital plexus in mice needs the sedation!!! | AY5: 4 | AZ5: 3 | BA5: 5 | BB5: 5 | BC5: 4 | BD5: 5 | BE5: It should be better the practice on animal. Separate the participnats according their knowledge. | BG5: 4 | BH5: 3 | BI5: 5 | BJ5: 5 | BK5: 4 | BL5: 5 | BO5: 5 | BP5: 5 | BQ5: 5 | BR5: 5 | BS5: 5 | BT5: 5 | BU5: Rats and mice in the same room!!!! No skin disinfection prior the incision!!! | BW5: 4 | BX5: 4 | BY5: 4 | BZ5: 4 | CA5: 4 | CB5: 4 | CC5: Nothing to suggest.
A6: Student 5 | C6: 5 | D6: 5 | E6: 5 | F6: 5 | G6: 5 | H6: 5 | K6: 5 | L6: 5 | M6: 5 | N6: 5 | O6: 5 | P6: 5 | S6: 5 | T6: 5 | U6: 5 | V6: 5 | W6: 5 | X6: 5 | AA6: 5 | AB6: 5 | AC6: 5 | AD6: 5 | AE6: 5 | AF6: 5 | AI6: 5 | AJ6: 5 | AK6: 5 | AL6: 5 | AM6: 5 | AN6: 5 | AQ6: 5 | AR6: 5 | AS6: 5 | AT6: 5 | AU6: 5 | AV6: 5 | AW6: The procedures need more practice time. | AY6: 5 | AZ6: 5 | BA6: 5 | BB6: 5 | BC6: 5 | BD6: 5 | BG6: 5 | BH6: 5 | BI6: 5 | BJ6: 5 | BK6: 5 | BL6: 5 | BO6: 5 | BP6: 5 | BQ6: 5 | BR6: 5 | BS6: 5 | BT6: 5
A7: Student 6 | C7: 5 | D7: 5 | E7: 5 | F7: 5 | G7: 5 | H7: 5 | K7: 5 | L7: 5 | M7: 5 | N7: 5 | O7: 5 | P7: 5 | S7: 5 | T7: 5 | U7: 5 | V7: 4 | W7: 5 | X7: 4 | AA7: 5 | AB7: 5 | AC7: 5 | AD7: 5 | AE7: 5 | AF7: 5 | AI7: 5 | AJ7: 4 | AK7: 4 | AL7: 5 | AM7: 5 | AN7: 5 | AQ7: 5 | AR7: 3 | AS7: 5 | AT7: 4 | AU7: 4 | AV7: 4 | AY7: 5 | AZ7: 5 | BA7: 5 | BB7: 5 | BC7: 5 | BD7: 4 | BG7: 5 | BH7: 5 | BI7: 5 | BJ7: 5 | BK7: 5 | BL7: 4 | BO7: 5 | BP7: 5 | BQ7: 5 | BR7: 5 | BS7: 5 | BT7: 5 | BW7: 5 | BX7: 5 | BY7: 5 | BZ7: 5 | CA7: 4 | CB7: 5
A8: Student 7 | C8: 5 | D8: 5 | E8: 5 | F8: 5 | G8: 5 | H8: 5 | K8: 5 | L8: 5 | M8: 5 | N8: 5 | O8: 5 | P8: 5 | S8: 5 | T8: 5 | U8: 5 | V8: 5 | W8: 5 | X8: 5 | AA8: 5 | AB8: 5 | AC8: 5 | AD8: 5 | AE8: 5 | AF8: 5 | AI8: 5 | AJ8: 5 | AK8: 5 | AL8: 5 | AM8: 5 | AN8: 5 | AQ8: 5 | AR8: 5 | AS8: 5 | AT8: 5 | AU8: 5 | AV8: 5 | AY8: 5 | AZ8: 5 | BA8: 5 | BB8: 5 | BC8: 5 | BD8: 5 | BE8: It's better that the practice right agter the lecture. | BG8: 5 | BH8: 5 | BI8: 5 | BJ8: 5 | BK8: 5 | BL8: 5 | BO8: 5 | BP8: 5 | BQ8: 5 | BR8: 5 | BS8: 5 | BT8: 5 | BU8: The elective courses are really useful for certain people. | BW8: 5 | BX8: 5 | BY8: 5 | BZ8: 5 | CA8: 5 | CB8: 5
A9: Student 8 | C9: 5 | D9: 5 | E9: 5 | F9: 5 | G9: 5 | K9: 5 | L9: 5 | M9: 5 | N9: 5 | O9: 5 | S9: 5 | T9: 5 | U9: 5 | V9: 5 | W9: 5 | AA9: 5 | AB9: 5 | AC9: 5 | AD9: 5 | AE9: 5 | AI9: 5 | AJ9: 5 | AK9: 5 | AL9: 5 | AM9: 5 | AQ9: 5 | AR9: 5 | AS9: 5 | AT9: 5 | AU9: 5 | AY9: 5 | AZ9: 5 | BA9: 5 | BB9: 5 | BC9: 5 | BG9: 5 | BH9: 5 | BI9: 5 | BJ9: 5 | BK9: 5 | BO9: 5 | BP9: 5 | BQ9: 5 | BR9: 5 | BS9: 5 | BW9: 5 | BX9: 5 | BY9: 5 | BZ9: 5 | CA9: 5
A10: Student 9 | C10: 5 | D10: 5 | E10: 5 | F10: 5 | G10: 5 | H10: 5 | K10: 5 | L10: 5 | M10: 5 | N10: 5 | O10: 5 | P10: 5 | S10: 5 | T10: 5 | U10: 5 | V10: 5 | W10: 5 | X10: 5 | AA10: 5 | AB10: 5 | AC10: 5 | AD10: 5 | AE10: 5 | AF10: 5 | AI10: 5 | AJ10: 5 | AK10: 5 | AL10: 5 | AM10: 5 | AN10: 5 | AQ10: 5 | AR10: 5 | AS10: 5 | AT10: 5 | AU10: 5 | AV10: 5 | AY10: 5 | AZ10: 5 | BA10: 5 | BB10: 5 | BC10: 5 | BD10: 5 | BG10: 5 | BH10: 5 | BI10: 5 | BJ10: 5 | BK10: 5 | BL10: 5 | BO10: 5 | BP10: 5 | BQ10: 5 | BR10: 5 | BS10: 5 | BT10: 5 | BW10: 5 | BX10: 5 | BY10: 5 | BZ10: 5 | CA10: 5 | CB10: 5
A11: Student 10 | C11: 5 | D11: 5 | E11: 5 | F11: 5 | G11: 5 | H11: 4 | K11: 5 | L11: 5 | M11: 5 | N11: 5 | O11: 5 | S11: 5 | T11: 5 | U11: 5 | V11: 5 | W11: 5 | AA11: 4 | AB11: 5 | AC11: 5 | AD11: 5 | AE11: 4 | AF11: 5 | AI11: 5 | AJ11: 4 | AK11: 5 | AL11: 5 | AM11: 5 | AN11: 5 | AQ11: 5 | AR11: 5 | AS11: 5 | AT11: 5 | AU11: 5 | AY11: 5 | AZ11: 4 | BA11: 5 | BB11: 4 | BC11: 5 | BD11: 4 | BG11: 5 | BH11: 4 | BI11: 4 | BJ11: 5 | BK11: 4 | BL11: 5 | BO11: 5 | BP11: 5 | BQ11: 5 | BR11: 5 | BS11: 5 | BT11: 5 | BW11: 5 | BX11: 5 | BY11: 5 | BZ11: 5 | CA11: 5 | CB11: 5
A12: Student 11 | C12: 5 | D12: 5 | E12: 5 | F12: 2 | G12: 5 | H12: 5 | K12: 5 | L12: 5 | M12: 5 | N12: 5 | O12: 5 | P12: 5 | S12: 5 | T12: 5 | U12: 5 | V12: 5 | W12: 5 | X12: 5 | AA12: 5 | AB12: 5 | AC12: 5 | AD12: 5 | AE12: 5 | AF12: 5 | AI12: 5 | AJ12: 5 | AK12: 5 | AL12: 5 | AM12: 5 | AN12: 5 | AQ12: 5 | AR12: 5 | AS12: 5 | AT12: 5 | AU12: 5 | AV12: 5 | AY12: 5 | AZ12: 5 | BA12: 5 | BB12: 5 | BC12: 5 | BD12: 5 | BG12: 5 | BH12: 5 | BI12: 5 | BJ12: 5 | BK12: 5 | BL12: 5 | BW12: 5 | BX12: 5 | BY12: 5 | BZ12: 5 | CA12: 5 | CB12: 5
A13: Student 12 | C13: 5 | D13: 5 | E13: 5 | F13: 5 | G13: 5 | H13: 5 | K13: 5 | L13: 5 | M13: 5 | N13: 5 | O13: 5 | P13: 5 | S13: 5 | T13: 5 | U13: 5 | V13: 5 | W13: 5 | X13: 5 | AA13: 5 | AB13: 5 | AC13: 5 | AD13: 5 | AE13: 5 | AF13: 5 | AI13: 5 | AJ13: 5 | AK13: 5 | AL13: 5 | AM13: 5 | AN13: 5 | AQ13: 5 | AR13: 5 | AS13: 5 | AT13: 5 | AU13: 5 | AV13: 5 | AY13: 5 | AZ13: 5 | BA13: 5 | BB13: 5 | BC13: 5 | BD13: 5 | BG13: 5 | BH13: 5 | BI13: 5 | BJ13: 5 | BK13: 5 | BL13: 5 | BO13: 5 | BP13: 5 | BQ13: 5 | BR13: 5 | BS13: 5 | BT13: 5
A14: Student 13 | C14: 5 | D14: 5 | E14: 5 | F14: 5 | G14: 5 | H14: 5 | K14: 5 | L14: 5 | M14: 5 | N14: 5 | O14: 5 | P14: 5 | S14: 5 | T14: 5 | U14: 5 | V14: 5 | W14: 5 | X14: 5 | AA14: 5 | AB14: 5 | AC14: 5 | AD14: 5 | AE14: 5 | AF14: 5 | AI14: 5 | AJ14: 5 | AK14: 5 | AL14: 5 | AM14: 5 | AN14: 5 | AQ14: 5 | AR14: 5 | AS14: 5 | AT14: 5 | AU14: 5 | AV14: 5 | AY14: 5 | AZ14: 5 | BA14: 5 | BB14: 5 | BC14: 5 | BD14: 5 | BG14: 5 | BH14: 5 | BI14: 5 | BJ14: 5 | BK14: 5 | BL14: 5 | BO14: 5 | BP14: 5 | BQ14: 5 | BR14: 5 | BS14: 5 | BT14: 5 | BW14: 5 | BX14: 5 | BY14: 5 | BZ14: 5 | CA14: 5 | CB14: 5
A15: Student 14 | C15: 5 | D15: 5 | E15: 5 | F15: 5 | G15: 5 | H15: 5 | K15: 5 | L15: 5 | M15: 5 | N15: 5 | O15: 5 | P15: 5 | S15: 5 | T15: 5 | U15: 5 | V15: 5 | W15: 5 | X15: 5 | AA15: 5 | AB15: 5 | AC15: 5 | AD15: 5 | AE15: 5 | AF15: 5 | AI15: 5 | AJ15: 5 | AK15: 5 | AL15: 5 | AM15: 5 | AN15: 5 | AQ15: 5 | AR15: 5 | AS15: 5 | AT15: 5 | AU15: 5 | AV15: 5 | AY15: 5 | AZ15: 5 | BA15: 5 | BB15: 5 | BC15: 5 | BD15: 5 | BG15: 5 | BH15: 5 | BI15: 5 | BJ15: 5 | BK15: 5 | BL15: 5 | BO15: 5 | BP15: 5 | BQ15: 5 | BR15: 5 | BS15: 5 | BT15: 5 | BW15: 5 | BX15: 5 | BY15: 5 | BZ15: 5 | CA15: 5 | CB15: 5
A16: Student 15 | C16: 5 | D16: 5 | E16: 5 | F16: 5 | G16: 5 | H16: 5 | K16: 5 | L16: 5 | M16: 5 | N16: 5 | O16: 5 | P16: 5 | S16: 5 | T16: 5 | U16: 5 | V16: 5 | W16: 5 | X16: 5 | AA16: 5 | AB16: 5 | AC16: 5 | AD16: 5 | AE16: 5 | AF16: 5 | AI16: 5 | AJ16: 4 | AK16: 5 | AL16: 5 | AM16: 5 | AN16: 5 | AQ16: 5 | AR16: 5 | AS16: 5 | AT16: 5 | AU16: 5 | AV16: 5 | AY16: 5 | AZ16: 5 | BA16: 5 | BB16: 5 | BC16: 5 | BD16: 5 | BG16: 5 | BH16: 5 | BI16: 5 | BJ16: 5 | BK16: 5 | BL16: 5 | BO16: 5 | BP16: 5 | BQ16: 5 | BR16: 5 | BS16: 5 | BT16: 5 | BW16: 5 | BX16: 5 | BY16: 5 | BZ16: 5 | CA16: 5 | CB16: 5
A17: Student 16
A18: AVERAGE | C18: =AVERAGE(C2:C17) -> 4.928571429 | D18: 4.642857143 | E18: 4.642857143 | F18: 4.785714286 | G18: 4.714285714 | H18: 4.692307692 | K18: =AVERAGE(K2:K17) -> 4.928571429 | L18: 4.857142857 | M18: 5 | N18: 5 | O18: 4.928571429 | P18: 4.916666667 | S18: =AVERAGE(S2:S17) -> 4.928571429 | T18: 4.857142857 | U18: 4.857142857 | V18: 4.928571429 | W18: 4.928571429 | X18: 4.833333333 | AA18: =AVERAGE(AA2:AA17) -> 4.714285714 | AB18: 4.714285714 | AC18: 4.928571429 | AD18: 4.928571429 | AE18: 4.714285714 | AF18: 4.923076923 | AI18: =AVERAGE(AI2:AI17) -> 4.928571429 | AJ18: 4.571428571 | AK18: 4.785714286 | AL18: 5 | AM18: 4.857142857 | AN18: 4.923076923 | AQ18: =AVERAGE(AQ2:AQ17) -> 4.785714286 | AR18: 4.5 | AS18: 4.785714286 | AT18: 4.785714286 | AU18: 4.714285714 | AV18: 4.909090909 | AY18: =AVERAGE(AY2:AY17) -> 4.928571429 | AZ18: 4.785714286 | BA18: 5 | BB18: 4.928571429 | BC18: 4.928571429 | BD18: 4.846153846 | BG18: =AVERAGE(BG2:BG17) -> 4.928571429 | BH18: 4.785714286 | BI18: 4.928571429 | BJ18: 5 | BK18: 4.857142857 | BL18: 4.923076923 | BO18: =AVERAGE(BO2:BO17) -> 5 | BP18: 4.846153846 | BQ18: 5 | BR18: 5 | BS18: 4.923076923 | BT18: 5 | BW18: =AVERAGE(BW2:BW17) -> 4.909090909 | BX18: 4.909090909 | BY18: 4.909090909 | BZ18: 4.909090909 | CA18: 4.818181818 | CB18: 4.9
C19: =AVERAGE(C2:H17) -> 4.734939759 | K19: =AVERAGE(K2:P17) -> 4.93902439 | S19: =AVERAGE(S2:X17) -> 4.890243902 | AA19: =AVERAGE(AA2:AF17) -> 4.819277108 | AI19: =AVERAGE(AI2:AN17) -> 4.843373494 | AQ19: =AVERAGE(AQ2:AV17) -> 4.740740741 | AY19: =AVERAGE(AY2:BD17) -> 4.903614458 | BG19: =AVERAGE(BG2:BL17) -> 4.903614458 | BO19: =AVERAGE(BO2:BT17) -> 4.961038961 | BW19: =AVERAGE(BW2:CB17) -> 4.892307692

Sheet lectures and seminars
A1: STUDENTS | B1: History | C1: Subject-specific expertise | D1: Style of performance | E1: Choice of subject | F1: Handouts | G1: COMMENTS | H1: Law and 3 Rs | I1: Subject-specific expertise | J1: Style of performance | K1: Choice of subject | L1: Handouts | M1: COMMENTS | N1: Ethics | O1: Subject-specific expertise | P1: Style of performance | Q1: Choice of subject | R1: Handouts | S1: COMMENTS | T1: Extrapolation | U1: Subject-specific expertise | V1: Style of performance | W1: Choice of subject | X1: Handouts | Y1: COMMENTS | Z1: 3 Rs | AA1: Subject-specific expertise | AB1: Style of performance | AC1: Choice of subject | AD1: Handouts | AE1: COMMENTS | AF1: Licensing | AG1: Subject-specific expertise | AH1: Style of performance | AI1: Choice of subject | AJ1: Handouts | AK1: COMMENTS | AL1: Basics of statistics | AM1: Subject-specific expertise | AN1: Style of performance | AO1: Choice of subject | AP1: Handouts | AQ1: COMMENTS | AR1: Small animal biology | AS1: Subject-specific expertise | AT1: Style of performance | AU1: Choice of subject | AV1: Handouts | AW1: COMMENTS | AX1: Large animal biology | AY1: Subject-specific expertise | AZ1: Style of performance | BA1: Choice of subject | BB1: Handouts | BC1: COMMENTS | BD1: Behaviour | BE1: Subject-specific expertise | BF1: Style of performance | BG1: Choice of subject | BH1: Handouts | BI1: COMMENTS | BJ1: Inbred, outbred | BK1: Subject-specific expertise | BL1: Style of performance | BM1: Choice of subject | BN1: Handouts | BO1: COMMENTS | BP1: Restraint | BQ1: Subject-specific expertise | BR1: Style of performance | BS1: Choice of subject | BT1: Handouts | BU1: COMMENTS | BV1: Zebrafish | BW1: Subject-specific expertise | BX1: Style of performance | BY1: Choice of subject | BZ1: Handouts | CA1: COMMENTS | CB1: Microbiology | CC1: Subject-specific expertise | CD1: Style of performance | CE1: Choice of subject | CF1: Handouts | CG1: COMMENTS | CH1: Environmental enrichment | CI1: Subject-specific expertise | CJ1: Style of performance | CK1: Choice of subject | CL1: Handouts | CM1: COMMENTS | CN1: Housing | CO1: Subject-specific expertise | CP1: Style of performance | CQ1: Choice of subject | CR1: Handouts | CS1: COMMENTS | CT1: Min. inv. | CU1: Subject-specific expertise | CV1: Style of performance | CW1: Choice of subject | CX1: Handouts | CY1: COMMENTS | CZ1: Pain, suffering | DA1: Subject-specific expertise | DB1: Style of performance | DC1: Choice of subject | DD1: Handouts | DE1: COMMENTS | DF1: Anaesthesia | DG1: Subject-specific expertise | DH1: Style of performance | DI1: Choice of subject | DJ1: Handouts | DK1: COMMENTS | DL1: Advanced anaesthesia | DM1: Subject-specific expertise | DN1: Style of performance | DO1: Choice of subject | DP1: Handouts | DQ1: COMMENTS | DR1: Safety | DS1: Subject-specific expertise | DT1: Style of performance | DU1: Choice of subject | DV1: Handouts | DW1: COMMENTS | DX1: Basic surgical procedures | DY1: Subject-specific expertise | DZ1: Style of performance | EA1: Choice of subject | EB1: Handouts | EC1: COMMENTS | ED1: Monitoring | EE1: Subject-specific expertise | EF1: Style of performance | EG1: Choice of subject | EH1: Handouts | EI1: COMMENTS | EJ1: Alternatives | EK1: Subject-specific expertise | EL1: Style of performance | EM1: Choice of subject | EN1: Handouts | EO1: COMMENTS | EP1: Protocol design | EQ1: Subject-specific expertise | ER1: Style of performance | ES1: Choice of subject | ET1: Handouts | EU1: COMMENTS | EV1: Licensing in practice | EW1: Subject-specific expertise | EX1: Style of performance | EY1: Choice of subject | EZ1: Handouts | FA1: COMMENTS | FB1: Sample size | FC1: Subject-specific expertise | FD1: Style of performance | FE1: Choice of subject | FF1: Handouts | FG1: COMMENTS | FH1: Bibliometrics | FI1: Subject-specific expertise | FJ1: Style of performance | FK1: Choice of subject | FL1: Handouts | FM1: COMMENTS | FN1: Translation | FO1: Subject-specific expertise | FP1: Style of performance | FQ1: Choice of subject | FR1: Handouts | FS1: COMMENTS | FT1: In vitro, ex vivo | FU1: Subject-specific expertise | FV1: Style of performance | FW1: Choice of subject | FX1: Handouts | FY1: COMMENTS | FZ1: OTHER COMMENTS
A2: Student 1 | B2: Introduction to the science of laboratory animals, use of animals for different areas of research. The procedure of modelling. History of animal experimentation Prof. Dr. Mihály Boros | C2: 5 | D2: 5 | E2: 5 | F2: 5 | G2: Excellent knowledge of the field/subject. Clear explanation, message, handouts. | H2: European and Hungarian law, legislation and the Three Rs (Reduction, Replacement, Refinement), ethical permission & license. Dr. József Kaszaki | I2: 5 | J2: 5 | K2: 5 | L2: 5 | M2: Very well explained situation in EU countries. We changed law systems hroughout EUROPE. Clear slide. | N2: Ethical aspects and animal welfare (historical background, arguments for and against the use of animals for scientific purposes, moral aspects, ethical committees) Prof. Dr Mihály Boros | O2: 5 | P2: 5 | Q2: 5 | R2: 5 | S2: Overview of historical philosophy about animal experimentation was excellent. | T2: Extrapolation of animal data to human. Model examples: from inflammation to circulatory shock Prof. Dr. Zoltán Rakonczay | U2: 5 | V2: 3 | W2: 3 | X2: 5 | Y2: Unfortunately the lecture was in the afternoon and we were tired and the speaker had a low-volume voice. Therefore we only partially understood the subject. | Z2: Legislation in practice 1: animal welfare and the 3 Rs Dr. József Kaszaki | AA2: 5 | AB2: 5 | AC2: 5 | AD2: 5 | AE2: Very helpful and confirms what I already know about. | AF2: Legislation in practice 2: licensing of animal experiments Dr. József Kaszaki | AG2: 5 | AH2: 5 | AI2: 5 | AJ2: 5 | AK2: Very useful. | AL2: Basics of statistics. Introduction of sample size estimation Dr. Ferenc Rárósi | AM2: 5 | AN2: 5 | AO2: 5 | AP2: 5 | AQ2: Very clear and practical examples were | AR2: Biology of laboratory animals I. Species-specific biology of small laboratory animals. Rodent anatomy, physiology, behaviour. Dr. Tünde Tőkés | AS2: 5 | AT2: 4 | AU2: 5 | AV2: 4 | AW2: The subject was interesting. Unfortunately the low-volume voice of the speaker did not help us to fully understand all the explanations. | AX2: Biology of laboratory animals II. Species-specific biology of large laboratory animals. Anatomy, physiology, behaviour, care and housing. Dr. Gabriella Varga | AY2: 5 | AZ2: 4 | BA2: 5 | BB2: 3 | BC2: Some as above. Handouts with lot of typing / grammar errors. | BD2: Examination of animal behaviour Diána Martos | BE2: 3 | BF2: 3 | BG2: 5 | BH2: 4 | BI2: Low-volume voice. Hardly to follow. The subject was very interesting and there were a lot of quetions. | BJ2: Outbred, inbred and transgenic animals, genetic characterization, standardization, genetic quality control. Dr. Tamás Jánossy | BK2: 4 | BL2: 5 | BM2: 5 | BN2: 4 | BO2: Basic learning on mouse strains, nomenclature. Techniques to produce Tg/KO/KI were clearly explained but in my opinion should be little bit UPDATED (CRISPR/Cas9 techniques, microsatellite DNA techniques) | BP2: Animal care, husbandry and management: appropriate, safe and humane handling, sexing and restraint Dr. Gabriella Varga | BQ2: 5 | BR2: 5 | BS2: 5 | BT2: 5 | BU2: Useful. | BV2: Significance of zebrafish in animal research Rita Emilia Szabó | BW2: 5 | BX2: 5 | BY2: 5 | BZ2: 5 | CA2: Very interesting. | CB2: The concept of gnotobiology. Important zoonotic diseases of laboratory animals. Dr. Tünde Vezér | CC2: 4 | CD2: 3 | CE2: 4 | CF2: 3 | CG2: Too much detailed slides. Too much informations. | CH2: Care and housing of laboratory animals I. The grading of hygiene of animals and animal houses, environmental enrichment. Dr. Dániel Érces | CI2: 5 | CJ2: 5 | CK2: 5 | CL2: 5 | CM2: Very good. | CN2: Care and housing of laboratory animals II. Reproduction and breeding. Nutrition. Quarantine, hygiene and disinfection, health hazards and safe practices in animal houses. Dr. Tamás Jánossy | CO2: 5 | CP2: 4 | CQ2: 5 | CR2: 4 | CS2: Very good. | CT2: Minimally invasive procedures without anaesthesia. Dr. Dániel Érces | CU2: 5 | CV2: 5 | CW2: 5 | CX2: 5 | CY2: Very well explained and interesting. | CZ2: Species-specific recognition of pain, suffering and distress; monitoring of animal wellbeing. Dr. Patrícia Farkas | DA2: 5 | DB2: 4 | DC2: 5 | DD2: 5 | DF2: Anaesthesia and analgesia of laboratory animals. General rules of anaesthesia. Post-experimental management: humane endpoints, methods of euthanasia. Dr. Dániel Érces | DG2: 5 | DH2: 5 | DI2: 5 | DJ2: 5 | DL2: Advanced anaesthesia for surgical or prolonged procedures. Applied drugs, doses and side effects. Dr. Dániel Érces | DM2: 5 | DN2: 5 | DO2: 5 | DP2: 5 | DQ2: Very useful! | DR2: Safety in working with animals carrying infectious diseases/agents. Dr. Szabolcs Tallósy | DS2: 5 | DT2: 5 | DU2: 5 | DV2: 5 | DW2: Excellent! | DX2: Principles of surgical procedures, the rules of asepsis. Basic surgical procedures. Wound management. Dr. Petra Hartmann | DY2: 5 | DZ2: 5 | EA2: 5 | EB2: 5 | EC2: Super excellent! | ED2: Design of procedures and projects I. Experimental techniques in practice. Monitoring of vital signs. Dr. József Kaszaki | EE2: 5 | EF2: 5 | EG2: 5 | EH2: 5 | EI2: Excellent! | EJ2: Alternatives to animal use 1. Possibilities and limitations of alternatives Dr. Eszter Tuboly | EK2: 5 | EL2: 5 | EM2: 5 | EN2: 5 | EO2: Excellent english. | EP2: Design of procedures and projects II. Experimental design: the protocol of animal experiments; Dr. József Kaszaki | EQ2: 5 | ER2: 5 | ES2: 5 | ET2: 5 | EV2: Licensing of animal experiments in practice - recapitulation Dr. József Kaszaki | EW2: 5 | EX2: 5 | EY2: 5 | EZ2: 5 | FB2: Sample size estimation. Interpretation of results - complex statistical analysis Dr. Ferenc Rárósi | FC2: 5 | FD2: 5 | FE2: 5 | FF2: 5 | FG2: Excellent! | FH2: Basics of bibliometrics. Analysis of scientific literature; Publication of results. Dr. Andrea Szabó | FI2: 5 | FJ2: 5 | FK2: 5 | FL2: 5 | FM2: Excellent lecture & english language. | FN2: Dilemmas of translating animal experiments to clinical practice. Lost of translation? Dr. László Juhász | FO2: 5 | FP2: 5 | FQ2: 5 | FR2: 5 | FT2: Alternatives to animal use 2. In vitro and ex vivo experimental techniques; tissue cultures, Langendorff method Dr. Tamás Csont, Dr. Csaba Csonka | FU2: 5 | FV2: 5 | FW2: 5 | FX2: 5 | FY2: Pity I was little bit tired I did not follow the entire seminar.
A3: Student 2 | C3: 5 | D3: 5 | E3: 5 | F3: 5 | I3: 5 | J3: 5 | K3: 5 | L3: 5 | O3: 5 | P3: 5 | Q3: 5 | R3: 5 | U3: 5 | V3: 5 | W3: 5 | X3: 5 | AA3: 5 | AB3: 5 | AC3: 5 | AD3: 5 | AG3: 5 | AH3: 5 | AI3: 5 | AJ3: 5 | AM3: 5 | AN3: 5 | AO3: 5 | AP3: 5 | AS3: 5 | AT3: 5 | AU3: 5 | AV3: 5 | AY3: 5 | AZ3: 5 | BA3: 5 | BB3: 5 | FZ3: In my opinion, in general, the content of the lectures is adequate and very interesting. However, some of them are too long, they have many information for one lecture and is questionable if this information is really necessary, like for example "Microbiology and disease" lecture and "Anaesthesia (description of anaesthetics)". On the other hand, a few lectures lacked of enthusiasm and dinamic of theirs teachers, like for example Diana Martos lecture. The english level of all the teachers was really good, even for the ones that were really conscious about it, I think they just need to be more confident. The course should be more days, to the students have more time to integrate the information they are receiving. The opinion pole, should somehow to be shorten or more direct, otherwise you are not going to have a real opinion. And finally, thank you so much for everything, the course is really well organized, and all the students had a really good reception. Everybody will be missed, everyone was really nice and friendly. Thank you. :)
A4: Student 3 | C4: 5 | D4: 5 | E4: 5 | F4: 5 | I4: 4 | J4: 5 | K4: 4 | L4: 4 | O4: 5 | P4: 4 | Q4: 4 | R4: 4 | U4: 4 | V4: 3 | W4: 3 | X4: 3 | Y4: Too many diseases, too much info / slide. | AA4: 4 | AB4: 4 | AC4: 5 | AD4: 5 | AG4: 5 | AH4: 5 | AI4: 5 | AJ4: 5 | AM4: 5 | AN4: 5 | AO4: 5 | AP4: 5 | AS4: 4 | AT4: 4 | AU4: 5 | AV4: 4 | AW4: More specific housing recommendations for scientific purposes would be useful. | AY4: 5 | AZ4: 4 | BA4: 4 | BB4: 4 | BC4: More specific housing recommendations for scientific purposes would be useful. | BE4: 3 | BF4: 3 | BG4: 5 | BH4: 4 | BI4: Speaker should dare to speak more English, it was obvious that she had the kowledge but didn't dare to speak. | BK4: 4 | BL4: 3 | BM4: 5 | BN4: 2 | BO4: Slides are too full with text, should be restructured a bit. Presentation was understandable though. | BQ4: 5 | BR4: 4 | BS4: 4 | BT4: 4 | BW4: 5 | BX4: 5 | BY4: 5 | BZ4: 4 | CC4: 5 | CD4: 3 | CE4: 4 | CF4: 4 | CG4: Lecture was a bit too fast. | CI4: 5 | CJ4: 5 | CK4: 5 | CL4: 5 | CO4: 5 | CP4: 5 | CQ4: 5 | CR4: 5 | CU4: 5 | CV4: 5 | CW4: 5 | CX4: 5 | DA4: 5 | DB4: 5 | DC4: 5 | DD4: 5 | DG4: 5 | DH4: 5 | DI4: 5 | DJ4: 5 | DM4: 5 | DN4: 5 | DO4: 5 | DP4: 5 | DS4: 5 | DT4: 5 | DU4: 5 | DV4: 5 | DY4: 5 | DZ4: 5 | EA4: 5 | EB4: 5 | EE4: 5 | EF4: 5 | EG4: 4 | EH4: 5 | EK4: 4 | EL4: 5 | EM4: 5 | EN4: 5 | EQ4: 5 | ER4: 5 | ES4: 5 | ET4: 5 | EW4: 5 | EX4: 5 | EY4: 5 | EZ4: 5 | FA4: Maybe better earlier during the course. | FC4: 5 | FD4: 5 | FE4: 5 | FF4: 5 | FI4: 5 | FJ4: 5 | FK4: 3 | FL4: 5 | FO4: 5 | FP4: 5 | FQ4: 5 | FR4: 5 | FU4: 5 | FV4: 5 | FW4: 4 | FX4: 5
A5: Student 4 | C5: 4 | D5: 4 | E5: 4 | F5: 4 | G5: Good lessons. Nothing to say. | I5: 5 | J5: 5 | K5: 5 | L5: 5 | M5: Excellent explanation. | O5: 5 | P5: 5 | Q5: 5 | R5: 5 | S5: Grat!!! | U5: 4 | V5: 2 | W5: 3 | X5: 3 | Y5: Not very clear, boring. | AA5: 4 | AB5: 3 | AC5: 4 | AD5: 4 | AE5: Nothing to suggest. | AG5: 4 | AH5: 3 | AI5: 4 | AJ5: 4 | AK5: Tonthing to suggest. | AM5: 5 | AN5: 5 | AO5: 5 | AP5: 5 | AQ5: Great lecture, very clear!! | AS5: 3 | AT5: 2 | AU5: 3 | AV5: 3 | AW5: I suggest to improve the lecture, english is not be clear. | AY5: 4 | AZ5: 3 | BA5: 3 | BB5: 3 | BC5: English is not be clear. | BE5: 2 | BF5: 2 | BG5: 2 | BH5: 2 | BI5: Very boring lecture. English is not be clear. | BK5: 4 | BL5: 4 | BM5: 4 | BN5: 4 | BO5: Nothing to say. | BQ5: 4 | BR5: 4 | BS5: 4 | BT5: 4 | BU5: Nothing to say. | BW5: 4 | BX5: 4 | BY5: 4 | BZ5: 4 | CA5: Nothing to say. | CC5: 2 | CD5: 2 | CE5: 3 | CF5: 3 | CG5: To improve the lecture. | CI5: 5 | CJ5: 5 | CK5: 5 | CL5: 5 | CM5: Nothing to say. | CO5: 4 | CP5: 4 | CQ5: 4 | CR5: 4 | CS5: Nothing to say. | CU5: 5 | CV5: 5 | CW5: 5 | CX5: 5 | CY5: Nothing to say. | DA5: 4 | DB5: 4 | DC5: 4 | DD5: 4 | DE5: Nothing to say. | DG5: 5 | DH5: 5 | DI5: 5 | DJ5: 5 | DK5: Nothing to say. | DM5: 5 | DN5: 5 | DO5: 5 | DP5: 5 | DQ5: Nothing to say. | DS5: 5 | DT5: 5 | DU5: 5 | DV5: 5 | DW5: Nothing to say. | DY5: 4 | DZ5: 4 | EA5: 4 | EB5: 4 | EC5: Nothing to say. | EE5: 5 | EF5: 5 | EG5: 5 | EH5: 5 | EI5: Nothing to say. | EK5: 4 | EL5: 5 | EM5: 4 | EN5: 4 | EO5: Nothing to suggest. | EQ5: 4 | ER5: 5 | ES5: 4 | ET5: 4 | EU5: Nothing to suggest. | EW5: 4 | EX5: 5 | EY5: 4 | EZ5: 4 | FA5: Nothing to suggest. | FC5: 5 | FD5: 5 | FE5: 5 | FF5: 5 | FG5: Nothing to suggest. | FI5: 5 | FJ5: 5 | FK5: 5 | FL5: 5 | FM5: Nothing to suggest. | FO5: 5 | FP5: 5 | FQ5: 5 | FR5: 5 | FS5: Nothing to suggest. | FU5: 4 | FV5: 4 | FW5: 4 | FX5: 4 | FY5: Nothing to suggest.
A6: Student 5 | C6: 5 | D6: 5 | E6: 5 | F6: 5 | G6: The lecture was clear and understandable. | I6: 5 | J6: 5 | K6: 5 | L6: 5 | M6: The lecture was very detailed. | O6: 5 | P6: 5 | Q6: 5 | R6: 5 | U6: 5 | V6: 5 | W6: 5 | X6: 5 | AA6: 5 | AB6: 5 | AC6: 5 | AD6: 5 | AG6: 5 | AH6: 5 | AI6: 5 | AJ6: 5 | AM6: 5 | AN6: 5 | AO6: 5 | AP6: 5 | AS6: 5 | AT6: 5 | AU6: 5 | AV6: 5 | AY6: 5 | AZ6: 5 | BA6: 5 | BB6: 5 | BE6: 5 | BF6: 5 | BG6: 5 | BH6: 5 | BK6: 5 | BL6: 5 | BM6: 5 | BN6: 5 | BQ6: 5 | BR6: 5 | BS6: 5 | BT6: 5 | BW6: 5 | BX6: 5 | BY6: 5 | BZ6: 5 | CC6: 5 | CD6: 5 | CE6: 5 | CF6: 5 | CI6: 5 | CJ6: 5 | CK6: 5 | CL6: 5 | CO6: 5 | CP6: 5 | CQ6: 5 | CR6: 5 | CU6: 5 | CV6: 5 | CW6: 5 | CX6: 5 | DA6: 5 | DB6: 5 | DC6: 5 | DD6: 5 | DG6: 5 | DH6: 5 | DI6: 5 | DJ6: 5 | DM6: 5 | DN6: 5 | DO6: 5 | DP6: 5 | DS6: 5 | DT6: 5 | DU6: 5 | DV6: 5 | DY6: 5 | DZ6: 5 | EA6: 5 | EB6: 5 | EE6: 5 | EF6: 5 | EG6: 5 | EH6: 5 | EK6: 5 | EL6: 5 | EM6: 5 | EN6: 5 | FC6: 5 | FD6: 5 | FE6: 5 | FF6: 5 | FI6: 5 | FJ6: 5 | FK6: 5 | FL6: 5 | FO6: 5 | FP6: 5 | FQ6: 5 | FR6: 5
A7: Student 6 | C7: 5 | D7: 5 | E7: 5 | F7: 5 | I7: 5 | J7: 5 | K7: 5 | L7: 5 | O7: 5 | P7: 5 | Q7: 5 | R7: 5 | U7: 5 | V7: 5 | W7: 5 | X7: 5 | AA7: 5 | AB7: 5 | AC7: 5 | AD7: 5 | AG7: 5 | AH7: 5 | AI7: 5 | AJ7: 5 | AM7: 5 | AN7: 4 | AO7: 5 | AP7: 4 | AS7: 5 | AT7: 5 | AU7: 5 | AV7: 5 | AY7: 5 | AZ7: 5 | BA7: 5 | BB7: 5 | BE7: 5 | BF7: 3 | BG7: 5 | BH7: 5 | BK7: 5 | BL7: 5 | BM7: 5 | BN7: 5 | BQ7: 5 | BR7: 5 | BS7: 5 | BT7: 5 | BW7: 5 | BX7: 5 | BY7: 5 | BZ7: 5 | CC7: 4 | CD7: 3 | CE7: 4 | CF7: 3 | CG7: It is a very broad topic; it may help in the future to organize it in a more interactive way. | CI7: 5 | CJ7: 5 | CK7: 5 | CL7: 5 | CO7: 5 | CP7: 5 | CQ7: 5 | CR7: 5 | CU7: 5 | CV7: 5 | CW7: 5 | CX7: 5 | DA7: 5 | DB7: 4 | DC7: 5 | DD7: 5 | DG7: 5 | DH7: 5 | DI7: 5 | DJ7: 5 | DM7: 5 | DN7: 5 | DO7: 5 | DP7: 5 | DS7: 5 | DT7: 5 | DU7: 5 | DV7: 5 | DY7: 5 | DZ7: 5 | EA7: 5 | EB7: 5 | EE7: 5 | EF7: 5 | EG7: 4 | EH7: 4 | EK7: 5 | EL7: 5 | EM7: 5 | EN7: 5 | EQ7: 5 | ER7: 5 | ES7: 5 | ET7: 5 | EW7: 5 | EX7: 4 | EY7: 5 | EZ7: 5 | FC7: 5 | FD7: 4 | FE7: 4 | FF7: 4 | FI7: 5 | FJ7: 5 | FK7: 3 | FL7: 3 | FO7: 5 | FP7: 5 | FQ7: 5 | FR7: 5 | FU7: 5 | FV7: 5 | FW7: 3 | FX7: 4 | FZ7: It is an excellent course, intense but the level of teaching was very high. It may be helpful for future non experienced participants to suggest to undertake FELASA course B prior this one.
A8: Student 7 | C8: 5 | D8: 5 | E8: 5 | F8: 5 | I8: 5 | J8: 4 | K8: 5 | L8: 5 | O8: 5 | P8: 5 | Q8: 5 | R8: 5 | U8: 5 | V8: 5 | W8: 5 | X8: 5 | AA8: 5 | AB8: 5 | AC8: 5 | AD8: 5 | AG8: 5 | AH8: 5 | AI8: 5 | AJ8: 5 | AM8: 5 | AN8: 5 | AO8: 5 | AP8: 5 | AS8: 5 | AT8: 5 | AU8: 5 | AV8: 5 | AY8: 5 | AZ8: 2 | BA8: 4 | BB8: 3 | BE8: 4 | BF8: 3 | BG8: 5 | BH8: 3 | BK8: 5 | BL8: 5 | BM8: 5 | BN8: 5 | BQ8: 5 | BR8: 3 | BS8: 5 | BT8: 3 | BW8: 4 | BX8: 4 | BY8: 4 | BZ8: 4 | CC8: 5 | CD8: 4 | CE8: 4 | CF8: 4 | CI8: 5 | CJ8: 5 | CK8: 5 | CL8: 5 | CO8: 5 | CP8: 5 | CQ8: 5 | CR8: 5 | CU8: 5 | CV8: 5 | CW8: 5 | CX8: 5 | DA8: 5 | DB8: 5 | DC8: 5 | DD8: 5 | DG8: 5 | DH8: 5 | DI8: 5 | DJ8: 5 | DM8: 5 | DN8: 5 | DO8: 5 | DP8: 5 | DS8: 5 | DT8: 5 | DU8: 5 | DV8: 5 | DW8: It's better if it was in morning. | DY8: 5 | DZ8: 5 | EA8: 5 | EB8: 5 | EE8: 5 | EF8: 5 | EG8: 5 | EH8: 5 | EK8: 4 | EL8: 5 | EM8: 5 | EN8: 5 | EO8: Some information should be updated and new techniques also should be introduced. | EQ8: 5 | ER8: 5 | ES8: 5 | ET8: 5 | EW8: 5 | EX8: 5 | EY8: 5 | EZ8: 5 | FC8: 4 | FD8: 5 | FE8: 5 | FF8: 5 | FI8: 5 | FJ8: 5 | FK8: 5 | FL8: 5 | FO8: 5 | FP8: 5 | FQ8: 5 | FR8: 5 | FU8: 5 | FV8: 5 | FW8: 5 | FX8: 5
A9: Student 8 | C9: 5 | D9: 5 | E9: 5 | F9: 5 | I9: 5 | J9: 5 | K9: 5 | L9: 5 | O9: 5 | P9: 5 | Q9: 5 | R9: 5 | U9: 5 | V9: 5 | W9: 5 | X9: 5 | AA9: 5 | AB9: 5 | AC9: 5 | AD9: 5 | AG9: 5 | AH9: 5 | AI9: 5 | AJ9: 5 | AM9: 5 | AN9: 5 | AO9: 5 | AP9: 5 | AS9: 5 | AT9: 5 | AU9: 5 | AV9: 5 | AY9: 5 | AZ9: 5 | BA9: 5 | BB9: 5 | BE9: 5 | BF9: 5 | BG9: 5 | BH9: 5 | BK9: 5 | BL9: 5 | BM9: 5 | BN9: 5 | BQ9: 5 | BR9: 5 | BS9: 5 | BT9: 5 | BW9: 5 | BX9: 5 | BY9: 5 | BZ9: 5 | CC9: 5 | CD9: 5 | CE9: 5 | CI9: 5 | CJ9: 5 | CK9: 5 | CO9: 5 | CP9: 5 | CQ9: 5 | CU9: 5 | CV9: 5 | CW9: 5 | DA9: 5 | DB9: 5 | DC9: 5 | DG9: 5 | DH9: 5 | DI9: 5 | DM9: 5 | DN9: 5 | DO9: 5 | DS9: 5 | DT9: 5 | DU9: 5 | DY9: 5 | DZ9: 5 | EA9: 5 | EE9: 5 | EF9: 5 | EG9: 5 | EK9: 5 | EL9: 5 | EM9: 5 | EN9: 5 | EQ9: 5 | ER9: 5 | ES9: 5 | EW9: 5 | EX9: 5 | EY9: 5 | FC9: 5 | FD9: 5 | FE9: 5 | FF9: 5 | FI9: 5 | FJ9: 5 | FK9: 5 | FL9: 5 | FO9: 5 | FP9: 5 | FQ9: 5 | FR9: 5 | FU9: 5 | FV9: 5 | FW9: 5 | FX9: 5
A10: Student 9 | C10: 5 | D10: 5 | E10: 5 | F10: 5 | I10: 5 | J10: 5 | K10: 5 | L10: 5 | O10: 5 | P10: 5 | Q10: 5 | R10: 5 | U10: 5 | V10: 5 | W10: 5 | X10: 5 | AA10: 5 | AB10: 5 | AC10: 5 | AD10: 5 | AG10: 5 | AH10: 5 | AI10: 5 | AJ10: 5 | AM10: 5 | AN10: 5 | AO10: 5 | AP10: 5 | AS10: 5 | AT10: 5 | AU10: 5 | AV10: 5 | AY10: 5 | AZ10: 5 | BA10: 5 | BB10: 5 | BE10: 5 | BF10: 5 | BG10: 5 | BH10: 5 | BK10: 5 | BL10: 5 | BM10: 5 | BN10: 5 | BQ10: 5 | BR10: 5 | BS10: 5 | BT10: 5 | BW10: 5 | BX10: 5 | BY10: 5 | BZ10: 5 | CC10: 5 | CD10: 5 | CE10: 5 | CF10: 5 | CI10: 5 | CJ10: 5 | CK10: 5 | CL10: 5 | CO10: 5 | CP10: 5 | CQ10: 5 | CR10: 5 | CU10: 5 | CV10: 5 | CW10: 5 | CX10: 5 | DA10: 5 | DB10: 5 | DC10: 5 | DD10: 5 | DG10: 5 | DH10: 5 | DI10: 5 | DJ10: 5 | DM10: 5 | DN10: 5 | DO10: 5 | DP10: 5 | DS10: 5 | DT10: 5 | DU10: 5 | DV10: 5 | DY10: 5 | DZ10: 5 | EA10: 5 | EB10: 5 | EE10: 5 | EF10: 5 | EG10: 5 | EH10: 5 | EK10: 5 | EL10: 5 | EM10: 5 | EN10: 5 | EQ10: 5 | ER10: 5 | ES10: 5 | ET10: 5 | EW10: 5 | EX10: 5 | EY10: 5 | EZ10: 5 | FC10: 5 | FD10: 5 | FE10: 5 | FF10: 5 | FI10: 5 | FJ10: 5 | FK10: 5 | FL10: 5 | FO10: 5 | FP10: 5 | FQ10: 5 | FR10: 5 | FU10: 5 | FV10: 5 | FW10: 5 | FX10: 5
A11: Student 10 | C11: 5 | D11: 5 | E11: 5 | F11: 5 | I11: 5 | J11: 4 | K11: 5 | L11: 5 | O11: 5 | P11: 5 | Q11: 5 | R11: 5 | U11: 5 | V11: 4 | W11: 5 | X11: 5 | AA11: 5 | AB11: 5 | AC11: 5 | AD11: 5 | AG11: 5 | AH11: 4 | AI11: 5 | AJ11: 4 | AM11: 5 | AN11: 5 | AO11: 5 | AP11: 5 | AS11: 5 | AT11: 5 | AU11: 5 | AV11: 5 | AY11: 5 | AZ11: 5 | BA11: 5 | BB11: 5 | BE11: 4 | BF11: 5 | BG11: 5 | BH11: 5 | BK11: 5 | BL11: 5 | BM11: 4 | BN11: 5 | BQ11: 5 | BR11: 5 | BS11: 5 | BT11: 5 | BW11: 5 | BX11: 5 | BY11: 5 | BZ11: 5 | CC11: 4 | CD11: 4 | CE11: 5 | CF11: 5 | CI11: 5 | CJ11: 5 | CK11: 5 | CL11: 5 | CO11: 5 | CP11: 5 | CQ11: 5 | CR11: 5 | CU11: 4 | CV11: 5 | CW11: 5 | CX11: 5 | DA11: 5 | DB11: 5 | DC11: 5 | DD11: 5 | DG11: 5 | DH11: 5 | DI11: 5 | DJ11: 5 | DM11: 5 | DN11: 5 | DO11: 5 | DP11: 5 | DS11: 5 | DT11: 4 | DU11: 5 | DV11: 4 | DY11: 5 | DZ11: 5 | EA11: 5 | EB11: 5 | EE11: 5 | EF11: 5 | EG11: 5 | EH11: 4 | EK11: 4 | EL11: 5 | EM11: 5 | EN11: 4 | EQ11: 5 | ER11: 5 | ES11: 5 | ET11: 4 | EW11: 5 | EX11: 5 | EY11: 5 | EZ11: 4 | FC11: 5 | FD11: 5 | FE11: 5 | FF11: 5 | FI11: 5 | FJ11: 5 | FK11: 5 | FL11: 5 | FO11: 5 | FP11: 5 | FQ11: 5 | FR11: 5 | FU11: 5 | FV11: 5 | FW11: 5 | FX11: 5
A12: Student 11 | C12: 5 | D12: 5 | E12: 5 | F12: 5 | I12: 5 | J12: 5 | K12: 5 | L12: 5 | O12: 5 | P12: 5 | Q12: 5 | R12: 5 | U12: 5 | V12: 5 | W12: 5 | X12: 5 | AA12: 5 | AB12: 5 | AC12: 5 | AD12: 5 | AG12: 5 | AH12: 5 | AI12: 5 | AJ12: 5 | AM12: 5 | AN12: 5 | AO12: 5 | AP12: 5 | AS12: 5 | AT12: 2 | AU12: 5 | AV12: 5 | AY12: 5 | AZ12: 5 | BA12: 5 | BB12: 5 | BE12: 5 | BF12: 5 | BG12: 5 | BH12: 5 | BK12: 5 | BL12: 5 | BM12: 5 | BN12: 5 | BQ12: 5 | BR12: 5 | BS12: 5 | BT12: 5 | BW12: 5 | BX12: 2 | BY12: 5 | BZ12: 5 | CC12: 5 | CD12: 5 | CE12: 5 | CF12: 5 | CI12: 5 | CJ12: 5 | CK12: 5 | CL12: 5 | CO12: 5 | CP12: 5 | CQ12: 5 | CR12: 5 | CU12: 5 | CV12: 5 | CW12: 5 | CX12: 5 | DA12: 5 | DB12: 5 | DC12: 5 | DD12: 5 | DG12: 5 | DH12: 5 | DI12: 5 | DJ12: 5 | DM12: 5 | DN12: 5 | DO12: 5 | DP12: 5 | DS12: 5 | DT12: 5 | DU12: 5 | DV12: 5 | DY12: 5 | DZ12: 5 | EA12: 5 | EB12: 5 | EE12: 5 | EF12: 5 | EG12: 5 | EH12: 5 | FC12: 5 | FD12: 5 | FE12: 5 | FF12: 5 | FI12: 5 | FJ12: 5 | FK12: 5 | FL12: 5 | FO12: 5 | FP12: 5 | FQ12: 5 | FR12: 5 | FU12: 5 | FV12: 5 | FW12: 5 | FX12: 5
A13: Student 12 | C13: 5 | D13: 5 | E13: 5 | F13: 5 | I13: 5 | J13: 5 | K13: 5 | L13: 5 | O13: 5 | P13: 5 | Q13: 5 | R13: 5 | U13: 5 | V13: 5 | W13: 5 | X13: 5 | AA13: 5 | AB13: 5 | AC13: 5 | AD13: 5 | AG13: 5 | AH13: 5 | AI13: 5 | AJ13: 5 | AM13: 5 | AN13: 5 | AO13: 5 | AP13: 5 | AS13: 5 | AT13: 4 | AU13: 5 | AV13: 4 | AY13: 5 | AZ13: 4 | BA13: 5 | BB13: 4 | BE13: 5 | BF13: 4 | BG13: 5 | BH13: 4 | BK13: 5 | BL13: 5 | BM13: 5 | BN13: 5 | BO13: Needs more figures, but amazing lecture. | BQ13: 5 | BR13: 5 | BS13: 5 | BT13: 5 | BW13: 5 | BX13: 4 | BY13: 5 | BZ13: 4 | CC13: 3 | CD13: 2 | CE13: 1 | CF13: 2 | CI13: 5 | CJ13: 5 | CK13: 5 | CL13: 4 | CO13: 5 | CP13: 5 | CQ13: 5 | CR13: 5 | CS13: Needs more figures. | CU13: 4 | CV13: 4 | CW13: 4 | CX13: 4 | DA13: 5 | DB13: 5 | DC13: 5 | DD13: 5 | DG13: 4 | DH13: 4 | DI13: 4 | DJ13: 4 | DM13: 4 | DN13: 4 | DO13: 4 | DP13: 4 | DS13: 5 | DT13: 5 | DU13: 5 | DV13: 5 | DY13: 5 | DZ13: 5 | EA13: 5 | EB13: 5 | EE13: 5 | EF13: 5 | EG13: 5 | EH13: 5 | EK13: 5 | EL13: 5 | EM13: 5 | EN13: 4 | EQ13: 5 | ER13: 4 | ES13: 5 | ET13: 5 | EW13: 5 | EX13: 5 | EY13: 5 | EZ13: 5 | FC13: 5 | FD13: 5 | FE13: 5 | FF13: 5 | FI13: 5 | FJ13: 5 | FK13: 5 | FL13: 5 | FO13: 5 | FP13: 5 | FQ13: 5 | FR13: 5
A14: Student 13 | C14: 4 | D14: 5 | E14: 4 | F14: 4 | I14: 4 | J14: 4 | K14: 4 | L14: 4 | O14: 5 | P14: 5 | Q14: 5 | R14: 5 | U14: 5 | V14: 4 | W14: 4 | X14: 5 | AA14: 5 | AB14: 4 | AC14: 4 | AD14: 5 | AG14: 5 | AH14: 5 | AI14: 5 | AJ14: 5 | AM14: 5 | AN14: 5 | AO14: 5 | AP14: 5 | AS14: 5 | AT14: 5 | AU14: 5 | AV14: 4 | AY14: 5 | AZ14: 5 | BA14: 5 | BB14: 5 | BE14: 5 | BF14: 5 | BG14: 5 | BH14: 5 | BK14: 5 | BL14: 5 | BM14: 5 | BN14: 5 | BQ14: 5 | BR14: 5 | BS14: 5 | BT14: 4 | BW14: 5 | BX14: 5 | BY14: 5 | BZ14: 5 | CC14: 5 | CD14: 5 | CE14: 5 | CF14: 5 | CI14: 5 | CJ14: 5 | CK14: 5 | CL14: 5 | CO14: 5 | CP14: 5 | CQ14: 5 | CR14: 5 | CU14: 5 | CV14: 5 | CW14: 5 | CX14: 5 | DA14: 5 | DB14: 5 | DC14: 5 | DD14: 5 | DG14: 5 | DH14: 5 | DI14: 5 | DJ14: 5 | DM14: 5 | DN14: 5 | DO14: 5 | DP14: 5 | DS14: 5 | DT14: 5 | DU14: 5 | DV14: 5 | DY14: 5 | DZ14: 5 | EA14: 5 | EB14: 5 | EE14: 5 | EF14: 5 | EG14: 5 | EH14: 5 | EK14: 5 | EL14: 5 | EM14: 5 | EN14: 5 | EQ14: 5 | ER14: 5 | ES14: 5 | ET14: 5 | EW14: 5 | EX14: 5 | EY14: 5 | EZ14: 5 | FC14: 5 | FD14: 5 | FE14: 5 | FF14: 5 | FI14: 5 | FJ14: 5 | FK14: 5 | FL14: 5 | FO14: 5 | FP14: 5 | FQ14: 5 | FR14: 5 | FU14: 5 | FV14: 5 | FW14: 5 | FX14: 5
A15: Student 14 | C15: 5 | D15: 5 | E15: 5 | F15: 5 | I15: 5 | J15: 5 | K15: 5 | L15: 5 | O15: 5 | P15: 5 | Q15: 5 | R15: 5 | U15: 5 | V15: 5 | W15: 5 | X15: 5 | AA15: 5 | AB15: 5 | AC15: 5 | AD15: 5 | AG15: 5 | AH15: 5 | AI15: 5 | AJ15: 5 | AM15: 5 | AN15: 5 | AO15: 5 | AP15: 5 | AS15: 5 | AT15: 5 | AU15: 5 | AV15: 5 | AY15: 5 | AZ15: 5 | BA15: 5 | BB15: 5 | BE15: 5 | BF15: 5 | BG15: 5 | BH15: 5 | BK15: 5 | BL15: 5 | BM15: 5 | BN15: 5 | BQ15: 5 | BR15: 5 | BS15: 5 | BT15: 5 | BW15: 5 | BX15: 5 | BY15: 5 | BZ15: 5 | CC15: 5 | CD15: 5 | CE15: 5 | CF15: 5 | CI15: 5 | CJ15: 5 | CK15: 5 | CL15: 5 | CO15: 5 | CP15: 5 | CQ15: 5 | CR15: 5 | CU15: 5 | CV15: 5 | CW15: 5 | CX15: 5 | DA15: 5 | DB15: 5 | DC15: 5 | DD15: 5 | DG15: 5 | DH15: 5 | DI15: 5 | DJ15: 5 | DM15: 5 | DN15: 5 | DO15: 5 | DP15: 5 | DS15: 5 | DT15: 5 | DU15: 5 | DV15: 5 | DY15: 5 | DZ15: 5 | EA15: 5 | EB15: 5 | EE15: 5 | EF15: 5 | EG15: 5 | EH15: 5 | EK15: 5 | EL15: 5 | EM15: 5 | EN15: 5 | EQ15: 5 | ER15: 5 | ES15: 5 | ET15: 5 | EW15: 5 | EX15: 5 | EY15: 5 | EZ15: 5 | FC15: 5 | FD15: 5 | FE15: 5 | FF15: 5 | FI15: 5 | FJ15: 5 | FK15: 5 | FL15: 5 | FO15: 5 | FP15: 5 | FQ15: 5 | FR15: 5 | FU15: 5 | FV15: 5 | FW15: 5 | FX15: 5
A16: Student 15 | C16: 5 | D16: 5 | E16: 5 | F16: 5 | I16: 5 | J16: 5 | K16: 5 | L16: 5 | O16: 5 | P16: 5 | Q16: 5 | R16: 5 | U16: 5 | V16: 5 | W16: 5 | X16: 5 | AA16: 5 | AB16: 5 | AC16: 5 | AD16: 5 | AG16: 5 | AH16: 5 | AI16: 5 | AJ16: 5 | AM16: 5 | AN16: 5 | AO16: 5 | AP16: 5 | AS16: 5 | AT16: 5 | AU16: 5 | AV16: 5 | AY16: 5 | AZ16: 5 | BA16: 5 | BB16: 5 | BE16: 5 | BF16: 5 | BG16: 5 | BH16: 5 | BK16: 5 | BL16: 5 | BM16: 5 | BN16: 5 | BQ16: 5 | BR16: 5 | BS16: 5 | BT16: 5 | BW16: 5 | BX16: 5 | BY16: 4 | BZ16: 5 | CC16: 5 | CD16: 4 | CE16: 5 | CF16: 5 | CI16: 5 | CJ16: 5 | CK16: 4 | CL16: 5 | CO16: 5 | CP16: 5 | CQ16: 5 | CR16: 5 | DA16: 5 | DB16: 5 | DC16: 5 | DD16: 5 | DG16: 5 | DH16: 5 | DI16: 5 | DJ16: 5 | DM16: 5 | DN16: 5 | DO16: 5 | DP16: 5 | DS16: 5 | DT16: 5 | DU16: 5 | DV16: 5 | DY16: 5 | DZ16: 5 | EA16: 5 | EB16: 5 | EE16: 5 | EF16: 5 | EG16: 5 | EH16: 5 | EK16: 5 | EL16: 5 | EM16: 5 | EN16: 5 | EQ16: 5 | ER16: 5 | ES16: 5 | ET16: 5 | EW16: 5 | EX16: 5 | EY16: 5 | EZ16: 5 | FC16: 5 | FD16: 5 | FE16: 5 | FF16: 5 | FI16: 5 | FJ16: 5 | FK16: 5 | FL16: 5 | FO16: 5 | FP16: 5 | FQ16: 5 | FR16: 5 | FU16: 5 | FV16: 5 | FW16: 5 | FX16: 5
A17: Student 16
A18: AVERAGE | C18: =AVERAGE(C2:C17) -> 4.866666667 | D18: =AVERAGE(D2:D17) -> 4.933333333 | E18: =AVERAGE(E2:E17) -> 4.866666667 | F18: =AVERAGE(F2:F17) -> 4.866666667 | I18: =AVERAGE(I2:I17) -> 4.866666667 | J18: =AVERAGE(J2:J17) -> 4.8 | K18: =AVERAGE(K2:K17) -> 4.866666667 | L18: =AVERAGE(L2:L17) -> 4.866666667 | O18: =AVERAGE(O2:O17) -> 5 | P18: =AVERAGE(P2:P17) -> 4.933333333 | Q18: =AVERAGE(Q2:Q17) -> 4.933333333 | R18: =AVERAGE(R2:R17) -> 4.933333333 | U18: =AVERAGE(U2:U17) -> 4.866666667 | V18: =AVERAGE(V2:V17) -> 4.4 | W18: =AVERAGE(W2:W17) -> 4.533333333 | X18: =AVERAGE(X2:X17) -> 4.733333333 | AA18: =AVERAGE(AA2:AA17) -> 4.866666667 | AB18: =AVERAGE(AB2:AB17) -> 4.733333333 | AC18: =AVERAGE(AC2:AC17) -> 4.866666667 | AD18: =AVERAGE(AD2:AD17) -> 4.933333333 | AG18: =AVERAGE(AG2:AG17) -> 4.933333333 | AH18: =AVERAGE(AH2:AH17) -> 4.8 | AI18: =AVERAGE(AI2:AI17) -> 4.933333333 | AJ18: =AVERAGE(AJ2:AJ17) -> 4.866666667 | AM18: =AVERAGE(AM2:AM17) -> 5 | AN18: =AVERAGE(AN2:AN17) -> 4.933333333 | AO18: =AVERAGE(AO2:AO17) -> 5 | AP18: =AVERAGE(AP2:AP17) -> 4.933333333 | AS18: =AVERAGE(AS2:AS17) -> 4.8 | AT18: =AVERAGE(AT2:AT17) -> 4.4 | AU18: =AVERAGE(AU2:AU17) -> 4.866666667 | AV18: =AVERAGE(AV2:AV17) -> 4.6 | AY18: =AVERAGE(AY2:AY17) -> 4.933333333 | AZ18: =AVERAGE(AZ2:AZ17) -> 4.466666667 | BA18: =AVERAGE(BA2:BA17) -> 4.733333333 | BB18: =AVERAGE(BB2:BB17) -> 4.466666667 | BE18: =AVERAGE(BE2:BE17) -> 4.357142857 | BF18: =AVERAGE(BF2:BF17) -> 4.142857143 | BG18: =AVERAGE(BG2:BG17) -> 4.785714286 | BH18: =AVERAGE(BH2:BH17) -> 4.428571429 | BK18: =AVERAGE(BK2:BK17) -> 4.785714286 | BL18: =AVERAGE(BL2:BL17) -> 4.785714286 | BM18: =AVERAGE(BM2:BM17) -> 4.857142857 | BN18: =AVERAGE(BN2:BN17) -> 4.642857143 | BQ18: =AVERAGE(BQ2:BQ17) -> 4.928571429 | BR18: =AVERAGE(BR2:BR17) -> 4.714285714 | BS18: =AVERAGE(BS2:BS17) -> 4.857142857 | BT18: =AVERAGE(BT2:BT17) -> 4.642857143 | BW18: =AVERAGE(BW2:BW17) -> 4.857142857 | BX18: =AVERAGE(BX2:BX17) -> 4.571428571 | BY18: =AVERAGE(BY2:BY17) -> 4.785714286 | BZ18: =AVERAGE(BZ2:BZ17) -> 4.714285714 | CC18: =AVERAGE(CC2:CC17) -> 4.428571429 | CD18: =AVERAGE(CD2:CD17) -> 3.928571429 | CE18: =AVERAGE(CE2:CE17) -> 4.285714286 | CF18: =AVERAGE(CF2:CF17) -> 4.153846154 | CI18: =AVERAGE(CI2:CI17) -> 5 | CJ18: =AVERAGE(CJ2:CJ17) -> 5 | CK18: =AVERAGE(CK2:CK17) -> 4.928571429 | CL18: =AVERAGE(CL2:CL17) -> 4.923076923 | CO18: =AVERAGE(CO2:CO17) -> 4.928571429 | CP18: =AVERAGE(CP2:CP17) -> 4.857142857 | CQ18: =AVERAGE(CQ2:CQ17) -> 4.928571429 | CR18: =AVERAGE(CR2:CR17) -> 4.846153846 | CU18: =AVERAGE(CU2:CU17) -> 4.846153846 | CV18: =AVERAGE(CV2:CV17) -> 4.923076923 | CW18: =AVERAGE(CW2:CW17) -> 4.923076923 | CX18: =AVERAGE(CX2:CX17) -> 4.916666667 | DA18: =AVERAGE(DA2:DA17) -> 4.928571429 | DB18: =AVERAGE(DB2:DB17) -> 4.785714286 | DC18: =AVERAGE(DC2:DC17) -> 4.928571429 | DD18: =AVERAGE(DD2:DD17) -> 4.923076923 | DG18: =AVERAGE(DG2:DG17) -> 4.928571429 | DH18: =AVERAGE(DH2:DH17) -> 4.928571429 | DI18: =AVERAGE(DI2:DI17) -> 4.928571429 | DJ18: =AVERAGE(DJ2:DJ17) -> 4.923076923 | DM18: =AVERAGE(DM2:DM17) -> 4.928571429 | DN18: =AVERAGE(DN2:DN17) -> 4.928571429 | DO18: =AVERAGE(DO2:DO17) -> 4.928571429 | DP18: =AVERAGE(DP2:DP17) -> 4.923076923 | DS18: =AVERAGE(DS2:DS17) -> 5 | DT18: =AVERAGE(DT2:DT17) -> 4.928571429 | DU18: =AVERAGE(DU2:DU17) -> 5 | DV18: =AVERAGE(DV2:DV17) -> 4.923076923 | DY18: =AVERAGE(DY2:DY17) -> 4.928571429 | DZ18: =AVERAGE(DZ2:DZ17) -> 4.928571429 | EA18: =AVERAGE(EA2:EA17) -> 4.928571429 | EB18: =AVERAGE(EB2:EB17) -> 4.923076923 | EE18: =AVERAGE(EE2:EE17) -> 5 | EF18: =AVERAGE(EF2:EF17) -> 5 | EG18: =AVERAGE(EG2:EG17) -> 4.857142857 | EH18: =AVERAGE(EH2:EH17) -> 4.846153846 | EK18: =AVERAGE(EK2:EK17) -> 4.692307692 | EL18: =AVERAGE(EL2:EL17) -> 5 | EM18: =AVERAGE(EM2:EM17) -> 4.923076923 | EN18: =AVERAGE(EN2:EN17) -> 4.769230769 | EQ18: =AVERAGE(EQ2:EQ17) -> 4.916666667 | ER18: =AVERAGE(ER2:ER17) -> 4.916666667 | ES18: =AVERAGE(ES2:ES17) -> 4.916666667 | ET18: =AVERAGE(ET2:ET17) -> 4.818181818 | EW18: =AVERAGE(EW2:EW17) -> 4.916666667 | EX18: =AVERAGE(EX2:EX17) -> 4.916666667 | EY18: =AVERAGE(EY2:EY17) -> 4.916666667 | EZ18: =AVERAGE(EZ2:EZ17) -> 4.818181818 | FC18: =AVERAGE(FC2:FC17) -> 4.928571429 | FD18: =AVERAGE(FD2:FD17) -> 4.928571429 | FE18: =AVERAGE(FE2:FE17) -> 4.928571429 | FF18: =AVERAGE(FF2:FF17) -> 4.928571429 | FI18: =AVERAGE(FI2:FI17) -> 5 | FJ18: =AVERAGE(FJ2:FJ17) -> 5 | FK18: =AVERAGE(FK2:FK17) -> 4.714285714 | FL18: =AVERAGE(FL2:FL17) -> 4.857142857 | FO18: =AVERAGE(FO2:FO17) -> 5 | FP18: =AVERAGE(FP2:FP17) -> 5 | FQ18: =AVERAGE(FQ2:FQ17) -> 5 | FR18: =AVERAGE(FR2:FR17) -> 5 | FU18: =AVERAGE(FU2:FU17) -> 4.916666667 | FV18: =AVERAGE(FV2:FV17) -> 4.916666667 | FW18: =AVERAGE(FW2:FW17) -> 4.666666667 | FX18: =AVERAGE(FX2:FX17) -> 4.833333333
C19: =AVERAGE(C2:F17) -> 4.883333333 | I19: =AVERAGE(I2:L17) -> 4.85 | O19: =AVERAGE(O2:R17) -> 4.95 | U19: =AVERAGE(U2:X17) -> 4.633333333 | AA19: =AVERAGE(AA2:AD17) -> 4.85 | AG19: =AVERAGE(AG2:AJ17) -> 4.883333333 | AM19: =AVERAGE(AM2:AP17) -> 4.966666667 | AS19: =AVERAGE(AS2:AV17) -> 4.666666667 | AY19: =AVERAGE(AY2:BB17) -> 4.65 | BE19: =AVERAGE(BE2:BH17) -> 4.428571429 | BK19: =AVERAGE(BK2:BN17) -> 4.767857143 | BQ19: =AVERAGE(BQ2:BT17) -> 4.785714286 | BW19: =AVERAGE(BW2:BZ17) -> 4.732142857 | CC19: =AVERAGE(CC2:CF17) -> 4.2 | CI19: =AVERAGE(CI2:CL17) -> 4.963636364 | CO19: =AVERAGE(CO2:CR17) -> 4.890909091 | CU19: =AVERAGE(CU2:CX17) -> 4.901960784 | DA19: =AVERAGE(DA2:DD17) -> 4.890909091 | DG19: =AVERAGE(DG2:DJ17) -> 4.927272727 | DM19: =AVERAGE(DM2:DP17) -> 4.927272727 | DS19: =AVERAGE(DS2:DV17) -> 4.963636364 | DY19: =AVERAGE(DY2:EB17) -> 4.927272727 | EE19: =AVERAGE(EE2:EH17) -> 4.927272727 | EK19: =AVERAGE(EK2:EN17) -> 4.846153846 | EQ19: =AVERAGE(EQ2:ET17) -> 4.893617021 | EW19: =AVERAGE(EW2:EZ17) -> 4.893617021 | FC19: =AVERAGE(FC2:FF17) -> 4.928571429 | FI19: =AVERAGE(FI2:FL17) -> 4.892857143 | FO19: =AVERAGE(FO2:FR17) -> 5 | FU19: =AVERAGE(FU2:FX17) -> 4.833333333

Sheet opinions
A1: Introduction to the science of laboratory animals, use of animals for different areas of research. The procedure of modelling. History of animal experimentation | B1: European and Hungarian law, legislation and the Three Rs (Reduction, Replacement, Refinement), ethical permission & license. | C1: Ethical aspects and animal welfare (historical background, arguments for and against the use of animals for scientific purposes, moral aspects, ethical committees) | D1: Extrapolation of animal data to human. Model examples: from inflammation to circulatory shock | E1: Legislation in practice 1: animal welfare and the 3 Rs | F1: Legislation in practice 2: licensing of animal experiments | G1: Basics of statistics. Introduction of sample size estimation | H1: Biology of laboratory animals I. Species-specific biology of small laboratory animals. Rodent anatomy, physiology, behaviour. | I1: Biology of laboratory animals II. Species-specific biology of large laboratory animals. Anatomy, physiology, behaviour, care and housing. | J1: Examination of animal behaviour
A2: =IF('lectures and seminars'!G2="","",'lectures and seminars'!G2) -> Excellent knowledge of the field/subject. Clear explanation, message, handouts. | B2: =IF('lectures and seminars'!M2="","",'lectures and seminars'!M2) -> Very well explained situation in EU countries. We changed law systems hroughout EUROPE. Clear slide. | C2: =IF('lectures and seminars'!S2="","",'lectures and seminars'!S2) -> Overview of historical philosophy about animal experimentation was excellent. | D2: =IF('lectures and seminars'!Y2="","",'lectures and seminars'!Y2) -> Unfortunately the lecture was in the afternoon and we were tired and the speaker had a low-volume voice. Therefore we only partially understood the subject. | E2: =IF('lectures and seminars'!AE2="","",'lectures and seminars'!AE2) -> Very helpful and confirms what I already know about. | F2: =IF('lectures and seminars'!AK2="","",'lectures and seminars'!AK2) -> Very useful. | G2: =IF('lectures and seminars'!AQ2="","",'lectures and seminars'!AQ2) -> Very clear and practical examples were | H2: =IF('lectures and seminars'!AW2="","",'lectures and seminars'!AW2) -> The subject was interesting. Unfortunately the low-volume voice of the speaker did not help us to fully understand all the explanations. | I2: =IF('lectures and seminars'!BC2="","",'lectures and seminars'!BC2) -> Some as above. Handouts with lot of typing / grammar errors. | J2: =IF('lectures and seminars'!BI2="","",'lectures and seminars'!BI2) -> Low-volume voice. Hardly to follow. The subject was very interesting and there were a lot of quetions.
A3: =IF('lectures and seminars'!G3="","",'lectures and seminars'!G3) ->  | B3: =IF('lectures and seminars'!M3="","",'lectures and seminars'!M3) ->  | C3: =IF('lectures and seminars'!S3="","",'lectures and seminars'!S3) ->  | D3: =IF('lectures and seminars'!Y3="","",'lectures and seminars'!Y3) ->  | E3: =IF('lectures and seminars'!AE3="","",'lectures and seminars'!AE3) ->  | F3: =IF('lectures and seminars'!AK3="","",'lectures and seminars'!AK3) ->  | G3: =IF('lectures and seminars'!AQ3="","",'lectures and seminars'!AQ3) ->  | H3: =IF('lectures and seminars'!AW3="","",'lectures and seminars'!AW3) ->  | I3: =IF('lectures and seminars'!BC3="","",'lectures and seminars'!BC3) ->  | J3: =IF('lectures and seminars'!BI3="","",'lectures and seminars'!BI3) -> 
A4: =IF('lectures and seminars'!G4="","",'lectures and seminars'!G4) ->  | B4: =IF('lectures and seminars'!M4="","",'lectures and seminars'!M4) ->  | C4: =IF('lectures and seminars'!S4="","",'lectures and seminars'!S4) ->  | D4: =IF('lectures and seminars'!Y4="","",'lectures and seminars'!Y4) -> Too many diseases, too much info / slide. | E4: =IF('lectures and seminars'!AE4="","",'lectures and seminars'!AE4) ->  | F4: =IF('lectures and seminars'!AK4="","",'lectures and seminars'!AK4) ->  | G4: =IF('lectures and seminars'!AQ4="","",'lectures and seminars'!AQ4) ->  | H4: =IF('lectures and seminars'!AW4="","",'lectures and seminars'!AW4) -> More specific housing recommendations for scientific purposes would be useful. | I4: =IF('lectures and seminars'!BC4="","",'lectures and seminars'!BC4) -> More specific housing recommendations for scientific purposes would be useful. | J4: =IF('lectures and seminars'!BI4="","",'lectures and seminars'!BI4) -> Speaker should dare to speak more English, it was obvious that she had the kowledge but didn't dare to speak.
A5: =IF('lectures and seminars'!G5="","",'lectures and seminars'!G5) -> Good lessons. Nothing to say. | B5: =IF('lectures and seminars'!M5="","",'lectures and seminars'!M5) -> Excellent explanation. | C5: =IF('lectures and seminars'!S5="","",'lectures and seminars'!S5) -> Grat!!! | D5: =IF('lectures and seminars'!Y5="","",'lectures and seminars'!Y5) -> Not very clear, boring. | E5: =IF('lectures and seminars'!AE5="","",'lectures and seminars'!AE5) -> Nothing to suggest. | F5: =IF('lectures and seminars'!AK5="","",'lectures and seminars'!AK5) -> Tonthing to suggest. | G5: =IF('lectures and seminars'!AQ5="","",'lectures and seminars'!AQ5) -> Great lecture, very clear!! | H5: =IF('lectures and seminars'!AW5="","",'lectures and seminars'!AW5) -> I suggest to improve the lecture, english is not be clear. | I5: =IF('lectures and seminars'!BC5="","",'lectures and seminars'!BC5) -> English is not be clear. | J5: =IF('lectures and seminars'!BI5="","",'lectures and seminars'!BI5) -> Very boring lecture. English is not be clear.
A6: =IF('lectures and seminars'!G6="","",'lectures and seminars'!G6) -> The lecture was clear and understandable. | B6: =IF('lectures and seminars'!M6="","",'lectures and seminars'!M6) -> The lecture was very detailed. | C6: =IF('lectures and seminars'!S6="","",'lectures and seminars'!S6) ->  | D6: =IF('lectures and seminars'!Y6="","",'lectures and seminars'!Y6) ->  | E6: =IF('lectures and seminars'!AE6="","",'lectures and seminars'!AE6) ->  | F6: =IF('lectures and seminars'!AK6="","",'lectures and seminars'!AK6) ->  | G6: =IF('lectures and seminars'!AQ6="","",'lectures and seminars'!AQ6) ->  | H6: =IF('lectures and seminars'!AW6="","",'lectures and seminars'!AW6) ->  | I6: =IF('lectures and seminars'!BC6="","",'lectures and seminars'!BC6) ->  | J6: =IF('lectures and seminars'!BI6="","",'lectures and seminars'!BI6) -> 
A7: =IF('lectures and seminars'!G7="","",'lectures and seminars'!G7) ->  | B7: =IF('lectures and seminars'!M7="","",'lectures and seminars'!M7) ->  | C7: =IF('lectures and seminars'!S7="","",'lectures and seminars'!S7) ->  | D7: =IF('lectures and seminars'!Y7="","",'lectures and seminars'!Y7) ->  | E7: =IF('lectures and seminars'!AE7="","",'lectures and seminars'!AE7) ->  | F7: =IF('lectures and seminars'!AK7="","",'lectures and seminars'!AK7) ->  | G7: =IF('lectures and seminars'!AQ7="","",'lectures and seminars'!AQ7) ->  | H7: =IF('lectures and seminars'!AW7="","",'lectures and seminars'!AW7) ->  | I7: =IF('lectures and seminars'!BC7="","",'lectures and seminars'!BC7) ->  | J7: =IF('lectures and seminars'!BI7="","",'lectures and seminars'!BI7) -> 
A8: =IF('lectures and seminars'!G8="","",'lectures and seminars'!G8) ->  | B8: =IF('lectures and seminars'!M8="","",'lectures and seminars'!M8) ->  | C8: =IF('lectures and seminars'!S8="","",'lectures and seminars'!S8) ->  | D8: =IF('lectures and seminars'!Y8="","",'lectures and seminars'!Y8) ->  | E8: =IF('lectures and seminars'!AE8="","",'lectures and seminars'!AE8) ->  | F8: =IF('lectures and seminars'!AK8="","",'lectures and seminars'!AK8) ->  | G8: =IF('lectures and seminars'!AQ8="","",'lectures and seminars'!AQ8) ->  | H8: =IF('lectures and seminars'!AW8="","",'lectures and seminars'!AW8) ->  | I8: =IF('lectures and seminars'!BC8="","",'lectures and seminars'!BC8) ->  | J8: =IF('lectures and seminars'!BI8="","",'lectures and seminars'!BI8) -> 
A9: =IF('lectures and seminars'!G9="","",'lectures and seminars'!G9) ->  | B9: =IF('lectures and seminars'!M9="","",'lectures and seminars'!M9) ->  | C9: =IF('lectures and seminars'!S9="","",'lectures and seminars'!S9) ->  | D9: =IF('lectures and seminars'!Y9="","",'lectures and seminars'!Y9) ->  | E9: =IF('lectures and seminars'!AE9="","",'lectures and seminars'!AE9) ->  | F9: =IF('lectures and seminars'!AK9="","",'lectures and seminars'!AK9) ->  | G9: =IF('lectures and seminars'!AQ9="","",'lectures and seminars'!AQ9) ->  | H9: =IF('lectures and seminars'!AW9="","",'lectures and seminars'!AW9) ->  | I9: =IF('lectures and seminars'!BC9="","",'lectures and seminars'!BC9) ->  | J9: =IF('lectures and seminars'!BI9="","",'lectures and seminars'!BI9) -> 
A10: =IF('lectures and seminars'!G10="","",'lectures and seminars'!G10) ->  | B10: =IF('lectures and seminars'!M10="","",'lectures and seminars'!M10) ->  | C10: =IF('lectures and seminars'!S10="","",'lectures and seminars'!S10) ->  | D10: =IF('lectures and seminars'!Y10="","",'lectures and seminars'!Y10) ->  | E10: =IF('lectures and seminars'!AE10="","",'lectures and seminars'!AE10) ->  | F10: =IF('lectures and seminars'!AK10="","",'lectures and seminars'!AK10) ->  | G10: =IF('lectures and seminars'!AQ10="","",'lectures and seminars'!AQ10) ->  | H10: =IF('lectures and seminars'!AW10="","",'lectures and seminars'!AW10) ->  | I10: =IF('lectures and seminars'!BC10="","",'lectures and seminars'!BC10) ->  | J10: =IF('lectures and seminars'!BI10="","",'lectures and seminars'!BI10) -> 
A11: =IF('lectures and seminars'!G11="","",'lectures and seminars'!G11) ->  | B11: =IF('lectures and seminars'!M11="","",'lectures and seminars'!M11) ->  | C11: =IF('lectures and seminars'!S11="","",'lectures and seminars'!S11) ->  | D11: =IF('lectures and seminars'!Y11="","",'lectures and seminars'!Y11) ->  | E11: =IF('lectures and seminars'!AE11="","",'lectures and seminars'!AE11) ->  | F11: =IF('lectures and seminars'!AK11="","",'lectures and seminars'!AK11) ->  | G11: =IF('lectures and seminars'!AQ11="","",'lectures and seminars'!AQ11) ->  | H11: =IF('lectures and seminars'!AW11="","",'lectures and seminars'!AW11) ->  | I11: =IF('lectures and seminars'!BC11="","",'lectures and seminars'!BC11) ->  | J11: =IF('lectures and seminars'!BI11="","",'lectures and seminars'!BI11) -> 
A12: =IF('lectures and seminars'!G12="","",'lectures and seminars'!G12) ->  | B12: =IF('lectures and seminars'!M12="","",'lectures and seminars'!M12) ->  | C12: =IF('lectures and seminars'!S12="","",'lectures and seminars'!S12) ->  | D12: =IF('lectures and seminars'!Y12="","",'lectures and seminars'!Y12) ->  | E12: =IF('lectures and seminars'!AE12="","",'lectures and seminars'!AE12) ->  | F12: =IF('lectures and seminars'!AK12="","",'lectures and seminars'!AK12) ->  | G12: =IF('lectures and seminars'!AQ12="","",'lectures and seminars'!AQ12) ->  | H12: =IF('lectures and seminars'!AW12="","",'lectures and seminars'!AW12) ->  | I12: =IF('lectures and seminars'!BC12="","",'lectures and seminars'!BC12) ->  | J12: =IF('lectures and seminars'!BI12="","",'lectures and seminars'!BI12) -> 
A13: =IF('lectures and seminars'!G13="","",'lectures and seminars'!G13) ->  | B13: =IF('lectures and seminars'!M13="","",'lectures and seminars'!M13) ->  | C13: =IF('lectures and seminars'!S13="","",'lectures and seminars'!S13) ->  | D13: =IF('lectures and seminars'!Y13="","",'lectures and seminars'!Y13) ->  | E13: =IF('lectures and seminars'!AE13="","",'lectures and seminars'!AE13) ->  | F13: =IF('lectures and seminars'!AK13="","",'lectures and seminars'!AK13) ->  | G13: =IF('lectures and seminars'!AQ13="","",'lectures and seminars'!AQ13) ->  | H13: =IF('lectures and seminars'!AW13="","",'lectures and seminars'!AW13) ->  | I13: =IF('lectures and seminars'!BC13="","",'lectures and seminars'!BC13) ->  | J13: =IF('lectures and seminars'!BI13="","",'lectures and seminars'!BI13) -> 
A14: =IF('lectures and seminars'!G14="","",'lectures and seminars'!G14) ->  | B14: =IF('lectures and seminars'!M14="","",'lectures and seminars'!M14) ->  | C14: =IF('lectures and seminars'!S14="","",'lectures and seminars'!S14) ->  | D14: =IF('lectures and seminars'!Y14="","",'lectures and seminars'!Y14) ->  | E14: =IF('lectures and seminars'!AE14="","",'lectures and seminars'!AE14) ->  | F14: =IF('lectures and seminars'!AK14="","",'lectures and seminars'!AK14) ->  | G14: =IF('lectures and seminars'!AQ14="","",'lectures and seminars'!AQ14) ->  | H14: =IF('lectures and seminars'!AW14="","",'lectures and seminars'!AW14) ->  | I14: =IF('lectures and seminars'!BC14="","",'lectures and seminars'!BC14) ->  | J14: =IF('lectures and seminars'!BI14="","",'lectures and seminars'!BI14) -> 
A15: =IF('lectures and seminars'!G15="","",'lectures and seminars'!G15) ->  | B15: =IF('lectures and seminars'!M15="","",'lectures and seminars'!M15) ->  | C15: =IF('lectures and seminars'!S15="","",'lectures and seminars'!S15) ->  | D15: =IF('lectures and seminars'!Y15="","",'lectures and seminars'!Y15) ->  | E15: =IF('lectures and seminars'!AE15="","",'lectures and seminars'!AE15) ->  | F15: =IF('lectures and seminars'!AK15="","",'lectures and seminars'!AK15) ->  | G15: =IF('lectures and seminars'!AQ15="","",'lectures and seminars'!AQ15) ->  | H15: =IF('lectures and seminars'!AW15="","",'lectures and seminars'!AW15) ->  | I15: =IF('lectures and seminars'!BC15="","",'lectures and seminars'!BC15) ->  | J15: =IF('lectures and seminars'!BI15="","",'lectures and seminars'!BI15) -> 
A16: =IF('lectures and seminars'!G16="","",'lectures and seminars'!G16) ->  | B16: =IF('lectures and seminars'!M16="","",'lectures and seminars'!M16) ->  | C16: =IF('lectures and seminars'!S16="","",'lectures and seminars'!S16) ->  | D16: =IF('lectures and seminars'!Y16="","",'lectures and seminars'!Y16) ->  | E16: =IF('lectures and seminars'!AE16="","",'lectures and seminars'!AE16) ->  | F16: =IF('lectures and seminars'!AK16="","",'lectures and seminars'!AK16) ->  | G16: =IF('lectures and seminars'!AQ16="","",'lectures and seminars'!AQ16) ->  | H16: =IF('lectures and seminars'!AW16="","",'lectures and seminars'!AW16) ->  | I16: =IF('lectures and seminars'!BC16="","",'lectures and seminars'!BC16) ->  | J16: =IF('lectures and seminars'!BI16="","",'lectures and seminars'!BI16) -> 
A17: =IF('lectures and seminars'!G17="","",'lectures and seminars'!G17) ->  | B17: =IF('lectures and seminars'!M17="","",'lectures and seminars'!M17) ->  | C17: =IF('lectures and seminars'!S17="","",'lectures and seminars'!S17) ->  | D17: =IF('lectures and seminars'!Y17="","",'lectures and seminars'!Y17) ->  | E17: =IF('lectures and seminars'!AE17="","",'lectures and seminars'!AE17) ->  | F17: =IF('lectures and seminars'!AK17="","",'lectures and seminars'!AK17) ->  | G17: =IF('lectures and seminars'!AQ17="","",'lectures and seminars'!AQ17) ->  | H17: =IF('lectures and seminars'!AW17="","",'lectures and seminars'!AW17) ->  | I17: =IF('lectures and seminars'!BC17="","",'lectures and seminars'!BC17) ->  | J17: =IF('lectures and seminars'!BI17="","",'lectures and seminars'!BI17) -> 
A18: =IF('lectures and seminars'!G18="","",'lectures and seminars'!G18) ->  | B18: =IF('lectures and seminars'!M18="","",'lectures and seminars'!M18) ->  | C18: =IF('lectures and seminars'!S18="","",'lectures and seminars'!S18) ->  | D18: =IF('lectures and seminars'!Y18="","",'lectures and seminars'!Y18) ->  | E18: =IF('lectures and seminars'!AE18="","",'lectures and seminars'!AE18) ->  | F18: =IF('lectures and seminars'!AK18="","",'lectures and seminars'!AK18) ->  | G18: =IF('lectures and seminars'!AQ18="","",'lectures and seminars'!AQ18) ->  | H18: =IF('lectures and seminars'!AW18="","",'lectures and seminars'!AW18) ->  | I18: =IF('lectures and seminars'!BC18="","",'lectures and seminars'!BC18) ->  | J18: =IF('lectures and seminars'!BI18="","",'lectures and seminars'!BI18) -> 
A19: Outbred, inbred and transgenic animals, genetic characterization, standardization, genetic quality control. | B19: Animal care, husbandry and management: appropriate, safe and humane handling, sexing and restraint | C19: Significance of zebrafish in animal research | D19: The concept of gnotobiology. Important zoonotic diseases of laboratory animals. | E19: Care and housing of laboratory animals I. The grading of hygiene of animals and animal houses, environmental enrichment. | F19: Care and housing of laboratory animals II. Reproduction and breeding. Nutrition. Quarantine, hygiene and disinfection, health hazards and safe practices in animal houses. | G19: Minimally invasive procedures without anaesthesia. | H19: Species-specific recognition of pain, suffering and distress; monitoring of animal wellbeing. | I19: Anaesthesia and analgesia of laboratory animals. General rules of anaesthesia. Post-experimental management: humane endpoints, methods of euthanasia. | J19: Advanced anaesthesia for surgical or prolonged procedures. Applied drugs, doses and side effects.
A20: =IF('lectures and seminars'!BO2="","",'lectures and seminars'!BO2) -> Basic learning on mouse strains, nomenclature. Techniques to produce Tg/KO/KI were clearly explained but in my opinion should be little bit UPDATED (CRISPR/Cas9 techniques, microsatellite DNA techniques) | B20: =IF('lectures and seminars'!BU2="","",'lectures and seminars'!BU2) -> Useful. | C20: =IF('lectures and seminars'!CA2="","",'lectures and seminars'!CA2) -> Very interesting. | D20: =IF('lectures and seminars'!CG2="","",'lectures and seminars'!CG2) -> Too much detailed slides. Too much informations. | E20: =IF('lectures and seminars'!CM2="","",'lectures and seminars'!CM2) -> Very good. | F20: =IF('lectures and seminars'!CS2="","",'lectures and seminars'!CS2) -> Very good. | G20: =IF('lectures and seminars'!CY2="","",'lectures and seminars'!CY2) -> Very well explained and interesting. | H20: =IF('lectures and seminars'!DE2="","",'lectures and seminars'!DE2) ->  | I20: =IF('lectures and seminars'!DK2="","",'lectures and seminars'!DK2) ->  | J20: =IF('lectures and seminars'!DQ2="","",'lectures and seminars'!DQ2) -> Very useful!
A21: =IF('lectures and seminars'!BO3="","",'lectures and seminars'!BO3) ->  | B21: =IF('lectures and seminars'!BU3="","",'lectures and seminars'!BU3) ->  | C21: =IF('lectures and seminars'!CA3="","",'lectures and seminars'!CA3) ->  | D21: =IF('lectures and seminars'!CG3="","",'lectures and seminars'!CG3) ->  | E21: =IF('lectures and seminars'!CM3="","",'lectures and seminars'!CM3) ->  | F21: =IF('lectures and seminars'!CS3="","",'lectures and seminars'!CS3) ->  | G21: =IF('lectures and seminars'!CY3="","",'lectures and seminars'!CY3) ->  | H21: =IF('lectures and seminars'!DE3="","",'lectures and seminars'!DE3) ->  | I21: =IF('lectures and seminars'!DK3="","",'lectures and seminars'!DK3) ->  | J21: =IF('lectures and seminars'!DQ3="","",'lectures and seminars'!DQ3) -> 
A22: =IF('lectures and seminars'!BO4="","",'lectures and seminars'!BO4) -> Slides are too full with text, should be restructured a bit. Presentation was understandable though. | B22: =IF('lectures and seminars'!BU4="","",'lectures and seminars'!BU4) ->  | C22: =IF('lectures and seminars'!CA4="","",'lectures and seminars'!CA4) ->  | D22: =IF('lectures and seminars'!CG4="","",'lectures and seminars'!CG4) -> Lecture was a bit too fast. | E22: =IF('lectures and seminars'!CM4="","",'lectures and seminars'!CM4) ->  | F22: =IF('lectures and seminars'!CS4="","",'lectures and seminars'!CS4) ->  | G22: =IF('lectures and seminars'!CY4="","",'lectures and seminars'!CY4) ->  | H22: =IF('lectures and seminars'!DE4="","",'lectures and seminars'!DE4) ->  | I22: =IF('lectures and seminars'!DK4="","",'lectures and seminars'!DK4) ->  | J22: =IF('lectures and seminars'!DQ4="","",'lectures and seminars'!DQ4) -> 
A23: =IF('lectures and seminars'!BO5="","",'lectures and seminars'!BO5) -> Nothing to say. | B23: =IF('lectures and seminars'!BU5="","",'lectures and seminars'!BU5) -> Nothing to say. | C23: =IF('lectures and seminars'!CA5="","",'lectures and seminars'!CA5) -> Nothing to say. | D23: =IF('lectures and seminars'!CG5="","",'lectures and seminars'!CG5) -> To improve the lecture. | E23: =IF('lectures and seminars'!CM5="","",'lectures and seminars'!CM5) -> Nothing to say. | F23: =IF('lectures and seminars'!CS5="","",'lectures and seminars'!CS5) -> Nothing to say. | G23: =IF('lectures and seminars'!CY5="","",'lectures and seminars'!CY5) -> Nothing to say. | H23: =IF('lectures and seminars'!DE5="","",'lectures and seminars'!DE5) -> Nothing to say. | I23: =IF('lectures and seminars'!DK5="","",'lectures and seminars'!DK5) -> Nothing to say. | J23: =IF('lectures and seminars'!DQ5="","",'lectures and seminars'!DQ5) -> Nothing to say.
A24: =IF('lectures and seminars'!BO6="","",'lectures and seminars'!BO6) ->  | B24: =IF('lectures and seminars'!BU6="","",'lectures and seminars'!BU6) ->  | C24: =IF('lectures and seminars'!CA6="","",'lectures and seminars'!CA6) ->  | D24: =IF('lectures and seminars'!CG6="","",'lectures and seminars'!CG6) ->  | E24: =IF('lectures and seminars'!CM6="","",'lectures and seminars'!CM6) ->  | F24: =IF('lectures and seminars'!CS6="","",'lectures and seminars'!CS6) ->  | G24: =IF('lectures and seminars'!CY6="","",'lectures and seminars'!CY6) ->  | H24: =IF('lectures and seminars'!DE6="","",'lectures and seminars'!DE6) ->  | I24: =IF('lectures and seminars'!DK6="","",'lectures and seminars'!DK6) ->  | J24: =IF('lectures and seminars'!DQ6="","",'lectures and seminars'!DQ6) -> 
A25: =IF('lectures and seminars'!BO7="","",'lectures and seminars'!BO7) ->  | B25: =IF('lectures and seminars'!BU7="","",'lectures and seminars'!BU7) ->  | C25: =IF('lectures and seminars'!CA7="","",'lectures and seminars'!CA7) ->  | D25: =IF('lectures and seminars'!CG7="","",'lectures and seminars'!CG7) -> It is a very broad topic; it may help in the future to organize it in a more interactive way. | E25: =IF('lectures and seminars'!CM7="","",'lectures and seminars'!CM7) ->  | F25: =IF('lectures and seminars'!CS7="","",'lectures and seminars'!CS7) ->  | G25: =IF('lectures and seminars'!CY7="","",'lectures and seminars'!CY7) ->  | H25: =IF('lectures and seminars'!DE7="","",'lectures and seminars'!DE7) ->  | I25: =IF('lectures and seminars'!DK7="","",'lectures and seminars'!DK7) ->  | J25: =IF('lectures and seminars'!DQ7="","",'lectures and seminars'!DQ7) -> 
A26: =IF('lectures and seminars'!BO8="","",'lectures and seminars'!BO8) ->  | B26: =IF('lectures and seminars'!BU8="","",'lectures and seminars'!BU8) ->  | C26: =IF('lectures and seminars'!CA8="","",'lectures and seminars'!CA8) ->  | D26: =IF('lectures and seminars'!CG8="","",'lectures and seminars'!CG8) ->  | E26: =IF('lectures and seminars'!CM8="","",'lectures and seminars'!CM8) ->  | F26: =IF('lectures and seminars'!CS8="","",'lectures and seminars'!CS8) ->  | G26: =IF('lectures and seminars'!CY8="","",'lectures and seminars'!CY8) ->  | H26: =IF('lectures and seminars'!DE8="","",'lectures and seminars'!DE8) ->  | I26: =IF('lectures and seminars'!DK8="","",'lectures and seminars'!DK8) ->  | J26: =IF('lectures and seminars'!DQ8="","",'lectures and seminars'!DQ8) -> 
A27: =IF('lectures and seminars'!BO9="","",'lectures and seminars'!BO9) ->  | B27: =IF('lectures and seminars'!BU9="","",'lectures and seminars'!BU9) ->  | C27: =IF('lectures and seminars'!CA9="","",'lectures and seminars'!CA9) ->  | D27: =IF('lectures and seminars'!CG9="","",'lectures and seminars'!CG9) ->  | E27: =IF('lectures and seminars'!CM9="","",'lectures and seminars'!CM9) ->  | F27: =IF('lectures and seminars'!CS9="","",'lectures and seminars'!CS9) ->  | G27: =IF('lectures and seminars'!CY9="","",'lectures and seminars'!CY9) ->  | H27: =IF('lectures and seminars'!DE9="","",'lectures and seminars'!DE9) ->  | I27: =IF('lectures and seminars'!DK9="","",'lectures and seminars'!DK9) ->  | J27: =IF('lectures and seminars'!DQ9="","",'lectures and seminars'!DQ9) -> 
A28: =IF('lectures and seminars'!BO10="","",'lectures and seminars'!BO10) ->  | B28: =IF('lectures and seminars'!BU10="","",'lectures and seminars'!BU10) ->  | C28: =IF('lectures and seminars'!CA10="","",'lectures and seminars'!CA10) ->  | D28: =IF('lectures and seminars'!CG10="","",'lectures and seminars'!CG10) ->  | E28: =IF('lectures and seminars'!CM10="","",'lectures and seminars'!CM10) ->  | F28: =IF('lectures and seminars'!CS10="","",'lectures and seminars'!CS10) ->  | G28: =IF('lectures and seminars'!CY10="","",'lectures and seminars'!CY10) ->  | H28: =IF('lectures and seminars'!DE10="","",'lectures and seminars'!DE10) ->  | I28: =IF('lectures and seminars'!DK10="","",'lectures and seminars'!DK10) ->  | J28: =IF('lectures and seminars'!DQ10="","",'lectures and seminars'!DQ10) -> 
A29: =IF('lectures and seminars'!BO11="","",'lectures and seminars'!BO11) ->  | B29: =IF('lectures and seminars'!BU11="","",'lectures and seminars'!BU11) ->  | C29: =IF('lectures and seminars'!CA11="","",'lectures and seminars'!CA11) ->  | D29: =IF('lectures and seminars'!CG11="","",'lectures and seminars'!CG11) ->  | E29: =IF('lectures and seminars'!CM11="","",'lectures and seminars'!CM11) ->  | F29: =IF('lectures and seminars'!CS11="","",'lectures and seminars'!CS11) ->  | G29: =IF('lectures and seminars'!CY11="","",'lectures and seminars'!CY11) ->  | H29: =IF('lectures and seminars'!DE11="","",'lectures and seminars'!DE11) ->  | I29: =IF('lectures and seminars'!DK11="","",'lectures and seminars'!DK11) ->  | J29: =IF('lectures and seminars'!DQ11="","",'lectures and seminars'!DQ11) -> 
A30: =IF('lectures and seminars'!BO12="","",'lectures and seminars'!BO12) ->  | B30: =IF('lectures and seminars'!BU12="","",'lectures and seminars'!BU12) ->  | C30: =IF('lectures and seminars'!CA12="","",'lectures and seminars'!CA12) ->  | D30: =IF('lectures and seminars'!CG12="","",'lectures and seminars'!CG12) ->  | E30: =IF('lectures and seminars'!CM12="","",'lectures and seminars'!CM12) ->  | F30: =IF('lectures and seminars'!CS12="","",'lectures and seminars'!CS12) ->  | G30: =IF('lectures and seminars'!CY12="","",'lectures and seminars'!CY12) ->  | H30: =IF('lectures and seminars'!DE12="","",'lectures and seminars'!DE12) ->  | I30: =IF('lectures and seminars'!DK12="","",'lectures and seminars'!DK12) ->  | J30: =IF('lectures and seminars'!DQ12="","",'lectures and seminars'!DQ12) -> 
A31: =IF('lectures and seminars'!BO13="","",'lectures and seminars'!BO13) -> Needs more figures, but amazing lecture. | B31: =IF('lectures and seminars'!BU13="","",'lectures and seminars'!BU13) ->  | C31: =IF('lectures and seminars'!CA13="","",'lectures and seminars'!CA13) ->  | D31: =IF('lectures and seminars'!CG13="","",'lectures and seminars'!CG13) ->  | E31: =IF('lectures and seminars'!CM13="","",'lectures and seminars'!CM13) ->  | F31: =IF('lectures and seminars'!CS13="","",'lectures and seminars'!CS13) -> Needs more figures. | G31: =IF('lectures and seminars'!CY13="","",'lectures and seminars'!CY13) ->  | H31: =IF('lectures and seminars'!DE13="","",'lectures and seminars'!DE13) ->  | I31: =IF('lectures and seminars'!DK13="","",'lectures and seminars'!DK13) ->  | J31: =IF('lectures and seminars'!DQ13="","",'lectures and seminars'!DQ13) -> 
A32: =IF('lectures and seminars'!BO14="","",'lectures and seminars'!BO14) ->  | B32: =IF('lectures and seminars'!BU14="","",'lectures and seminars'!BU14) ->  | C32: =IF('lectures and seminars'!CA14="","",'lectures and seminars'!CA14) ->  | D32: =IF('lectures and seminars'!CG14="","",'lectures and seminars'!CG14) ->  | E32: =IF('lectures and seminars'!CM14="","",'lectures and seminars'!CM14) ->  | F32: =IF('lectures and seminars'!CS14="","",'lectures and seminars'!CS14) ->  | G32: =IF('lectures and seminars'!CY14="","",'lectures and seminars'!CY14) ->  | H32: =IF('lectures and seminars'!DE14="","",'lectures and seminars'!DE14) ->  | I32: =IF('lectures and seminars'!DK14="","",'lectures and seminars'!DK14) ->  | J32: =IF('lectures and seminars'!DQ14="","",'lectures and seminars'!DQ14) -> 
A33: =IF('lectures and seminars'!BO15="","",'lectures and seminars'!BO15) ->  | B33: =IF('lectures and seminars'!BU15="","",'lectures and seminars'!BU15) ->  | C33: =IF('lectures and seminars'!CA15="","",'lectures and seminars'!CA15) ->  | D33: =IF('lectures and seminars'!CG15="","",'lectures and seminars'!CG15) ->  | E33: =IF('lectures and seminars'!CM15="","",'lectures and seminars'!CM15) ->  | F33: =IF('lectures and seminars'!CS15="","",'lectures and seminars'!CS15) ->  | G33: =IF('lectures and seminars'!CY15="","",'lectures and seminars'!CY15) ->  | H33: =IF('lectures and seminars'!DE15="","",'lectures and seminars'!DE15) ->  | I33: =IF('lectures and seminars'!DK15="","",'lectures and seminars'!DK15) ->  | J33: =IF('lectures and seminars'!DQ15="","",'lectures and seminars'!DQ15) -> 
A34: =IF('lectures and seminars'!BO16="","",'lectures and seminars'!BO16) ->  | B34: =IF('lectures and seminars'!BU16="","",'lectures and seminars'!BU16) ->  | C34: =IF('lectures and seminars'!CA16="","",'lectures and seminars'!CA16) ->  | D34: =IF('lectures and seminars'!CG16="","",'lectures and seminars'!CG16) ->  | E34: =IF('lectures and seminars'!CM16="","",'lectures and seminars'!CM16) ->  | F34: =IF('lectures and seminars'!CS16="","",'lectures and seminars'!CS16) ->  | G34: =IF('lectures and seminars'!CY16="","",'lectures and seminars'!CY16) ->  | H34: =IF('lectures and seminars'!DE16="","",'lectures and seminars'!DE16) ->  | I34: =IF('lectures and seminars'!DK16="","",'lectures and seminars'!DK16) ->  | J34: =IF('lectures and seminars'!DQ16="","",'lectures and seminars'!DQ16) -> 
A35: =IF('lectures and seminars'!BO17="","",'lectures and seminars'!BO17) ->  | B35: =IF('lectures and seminars'!BU17="","",'lectures and seminars'!BU17) ->  | C35: =IF('lectures and seminars'!CA17="","",'lectures and seminars'!CA17) ->  | D35: =IF('lectures and seminars'!CG17="","",'lectures and seminars'!CG17) ->  | E35: =IF('lectures and seminars'!CM17="","",'lectures and seminars'!CM17) ->  | F35: =IF('lectures and seminars'!CS17="","",'lectures and seminars'!CS17) ->  | G35: =IF('lectures and seminars'!CY17="","",'lectures and seminars'!CY17) ->  | H35: =IF('lectures and seminars'!DE17="","",'lectures and seminars'!DE17) ->  | I35: =IF('lectures and seminars'!DK17="","",'lectures and seminars'!DK17) ->  | J35: =IF('lectures and seminars'!DQ17="","",'lectures and seminars'!DQ17) -> 
A36: =IF('lectures and seminars'!BO18="","",'lectures and seminars'!BO18) ->  | B36: =IF('lectures and seminars'!BU18="","",'lectures and seminars'!BU18) ->  | C36: =IF('lectures and seminars'!CA18="","",'lectures and seminars'!CA18) ->  | D36: =IF('lectures and seminars'!CG18="","",'lectures and seminars'!CG18) ->  | E36: =IF('lectures and seminars'!CM18="","",'lectures and seminars'!CM18) ->  | F36: =IF('lectures and seminars'!CS18="","",'lectures and seminars'!CS18) ->  | G36: =IF('lectures and seminars'!CY18="","",'lectures and seminars'!CY18) ->  | H36: =IF('lectures and seminars'!DE18="","",'lectures and seminars'!DE18) ->  | I36: =IF('lectures and seminars'!DK18="","",'lectures and seminars'!DK18) ->  | J36: =IF('lectures and seminars'!DQ18="","",'lectures and seminars'!DQ18) -> 
A37: Safety in working with animals carrying infectious diseases/agents. | B37: Principles of surgical procedures, the rules of asepsis. Basic surgical procedures. Wound management. | C37: Design of procedures and projects I. Experimental techniques in practice. Monitoring of vital signs. | D37: Alternatives to animal use 1. Possibilities and limitations of alternatives | E37: Design of procedures and projects II. Experimental design: the protocol of animal experiments | F37: Licensing of animal experiments in practice - recapitulation | G37: Sample size estimation. Interpretation of results - complex statistical analysis | H37: Basics of bibliometrics. Analysis of scientific literature; Publication of results. | I37: Dilemmas of translating animal experiments to clinical practice. Lost of translation? | J37: Alternatives to animal use 2. In vitro and ex vivo experimental techniques; tissue cultures, Langendorff method | K37: OTHER COMMENTS
A38: =IF('lectures and seminars'!DW2="","",'lectures and seminars'!DW2) -> Excellent! | B38: =IF('lectures and seminars'!EC2="","",'lectures and seminars'!EC2) -> Super excellent! | C38: =IF('lectures and seminars'!EI2="","",'lectures and seminars'!EI2) -> Excellent! | D38: =IF('lectures and seminars'!EO2="","",'lectures and seminars'!EO2) -> Excellent english. | E38: =IF('lectures and seminars'!EU2="","",'lectures and seminars'!EU2) ->  | F38: =IF('lectures and seminars'!FA2="","",'lectures and seminars'!FA2) ->  | G38: =IF('lectures and seminars'!FG2="","",'lectures and seminars'!FG2) -> Excellent! | H38: =IF('lectures and seminars'!FM2="","",'lectures and seminars'!FM2) -> Excellent lecture & english language. | I38: =IF('lectures and seminars'!FS2="","",'lectures and seminars'!FS2) ->  | J38: =IF('lectures and seminars'!FY2="","",'lectures and seminars'!FY2) -> Pity I was little bit tired I did not follow the entire seminar. | K38: =IF('lectures and seminars'!FZ2="","",'lectures and seminars'!FZ2) -> 
A39: =IF('lectures and seminars'!DW3="","",'lectures and seminars'!DW3) ->  | B39: =IF('lectures and seminars'!EC3="","",'lectures and seminars'!EC3) ->  | C39: =IF('lectures and seminars'!EI3="","",'lectures and seminars'!EI3) ->  | D39: =IF('lectures and seminars'!EO3="","",'lectures and seminars'!EO3) ->  | E39: =IF('lectures and seminars'!EU3="","",'lectures and seminars'!EU3) ->  | F39: =IF('lectures and seminars'!FA3="","",'lectures and seminars'!FA3) ->  | G39: =IF('lectures and seminars'!FG3="","",'lectures and seminars'!FG3) ->  | H39: =IF('lectures and seminars'!FM3="","",'lectures and seminars'!FM3) ->  | I39: =IF('lectures and seminars'!FS3="","",'lectures and seminars'!FS3) ->  | J39: =IF('lectures and seminars'!FY3="","",'lectures and seminars'!FY3) ->  | K39: =IF('lectures and seminars'!FZ3="","",'lectures and seminars'!FZ3) -> In my opinion, in general, the content of the lectures is adequate and very interesting. However, some of them are too long, they have many information for one lecture and is questionable if this information is really necessary, like for example "Microbiology and disease" lecture and "Anaesthesia (description of anaesthetics)". On the other hand, a few lectures lacked of enthusiasm and dinamic of theirs teachers, like for example Diana Martos lecture. The english level of all the teachers was really good, even for the ones that were really conscious about it, I think they just need to be more confident. The course should be more days, to the students have more time to integrate the information they are receiving. The opinion pole, should somehow to be shorten or more direct, otherwise you are not going to have a real opinion. And finally, thank you so much for everything, the course is really well organized, and all the students had a really good reception. Everybody will be missed, everyone was really nice and friendly. Thank you. :)
A40: =IF('lectures and seminars'!DW4="","",'lectures and seminars'!DW4) ->  | B40: =IF('lectures and seminars'!EC4="","",'lectures and seminars'!EC4) ->  | C40: =IF('lectures and seminars'!EI4="","",'lectures and seminars'!EI4) ->  | D40: =IF('lectures and seminars'!EO4="","",'lectures and seminars'!EO4) ->  | E40: =IF('lectures and seminars'!EU4="","",'lectures and seminars'!EU4) ->  | F40: =IF('lectures and seminars'!FA4="","",'lectures and seminars'!FA4) -> Maybe better earlier during the course. | G40: =IF('lectures and seminars'!FG4="","",'lectures and seminars'!FG4) ->  | H40: =IF('lectures and seminars'!FM4="","",'lectures and seminars'!FM4) ->  | I40: =IF('lectures and seminars'!FS4="","",'lectures and seminars'!FS4) ->  | J40: =IF('lectures and seminars'!FY4="","",'lectures and seminars'!FY4) ->  | K40: =IF('lectures and seminars'!FZ4="","",'lectures and seminars'!FZ4) -> 
A41: =IF('lectures and seminars'!DW5="","",'lectures and seminars'!DW5) -> Nothing to say. | B41: =IF('lectures and seminars'!EC5="","",'lectures and seminars'!EC5) -> Nothing to say. | C41: =IF('lectures and seminars'!EI5="","",'lectures and seminars'!EI5) -> Nothing to say. | D41: =IF('lectures and seminars'!EO5="","",'lectures and seminars'!EO5) -> Nothing to suggest. | E41: =IF('lectures and seminars'!EU5="","",'lectures and seminars'!EU5) -> Nothing to suggest. | F41: =IF('lectures and seminars'!FA5="","",'lectures and seminars'!FA5) -> Nothing to suggest. | G41: =IF('lectures and seminars'!FG5="","",'lectures and seminars'!FG5) -> Nothing to suggest. | H41: =IF('lectures and seminars'!FM5="","",'lectures and seminars'!FM5) -> Nothing to suggest. | I41: =IF('lectures and seminars'!FS5="","",'lectures and seminars'!FS5) -> Nothing to suggest. | J41: =IF('lectures and seminars'!FY5="","",'lectures and seminars'!FY5) -> Nothing to suggest. | K41: =IF('lectures and seminars'!FZ5="","",'lectures and seminars'!FZ5) -> 
A42: =IF('lectures and seminars'!DW6="","",'lectures and seminars'!DW6) ->  | B42: =IF('lectures and seminars'!EC6="","",'lectures and seminars'!EC6) ->  | C42: =IF('lectures and seminars'!EI6="","",'lectures and seminars'!EI6) ->  | D42: =IF('lectures and seminars'!EO6="","",'lectures and seminars'!EO6) ->  | E42: =IF('lectures and seminars'!EU6="","",'lectures and seminars'!EU6) ->  | F42: =IF('lectures and seminars'!FA6="","",'lectures and seminars'!FA6) ->  | G42: =IF('lectures and seminars'!FG6="","",'lectures and seminars'!FG6) ->  | H42: =IF('lectures and seminars'!FM6="","",'lectures and seminars'!FM6) ->  | I42: =IF('lectures and seminars'!FS6="","",'lectures and seminars'!FS6) ->  | J42: =IF('lectures and seminars'!FY6="","",'lectures and seminars'!FY6) ->  | K42: =IF('lectures and seminars'!FZ6="","",'lectures and seminars'!FZ6) -> 
A43: =IF('lectures and seminars'!DW7="","",'lectures and seminars'!DW7) ->  | B43: =IF('lectures and seminars'!EC7="","",'lectures and seminars'!EC7) ->  | C43: =IF('lectures and seminars'!EI7="","",'lectures and seminars'!EI7) ->  | D43: =IF('lectures and seminars'!EO7="","",'lectures and seminars'!EO7) ->  | E43: =IF('lectures and seminars'!EU7="","",'lectures and seminars'!EU7) ->  | F43: =IF('lectures and seminars'!FA7="","",'lectures and seminars'!FA7) ->  | G43: =IF('lectures and seminars'!FG7="","",'lectures and seminars'!FG7) ->  | H43: =IF('lectures and seminars'!FM7="","",'lectures and seminars'!FM7) ->  | I43: =IF('lectures and seminars'!FS7="","",'lectures and seminars'!FS7) ->  | J43: =IF('lectures and seminars'!FY7="","",'lectures and seminars'!FY7) ->  | K43: =IF('lectures and seminars'!FZ7="","",'lectures and seminars'!FZ7) -> It is an excellent course, intense but the level of teaching was very high. It may be helpful for future non experienced participants to suggest to undertake FELASA course B prior this one.
A44: =IF('lectures and seminars'!DW8="","",'lectures and seminars'!DW8) -> It's better if it was in morning. | B44: =IF('lectures and seminars'!EC8="","",'lectures and seminars'!EC8) ->  | C44: =IF('lectures and seminars'!EI8="","",'lectures and seminars'!EI8) ->  | D44: =IF('lectures and seminars'!EO8="","",'lectures and seminars'!EO8) -> Some information should be updated and new techniques also should be introduced. | E44: =IF('lectures and seminars'!EU8="","",'lectures and seminars'!EU8) ->  | F44: =IF('lectures and seminars'!FA8="","",'lectures and seminars'!FA8) ->  | G44: =IF('lectures and seminars'!FG8="","",'lectures and seminars'!FG8) ->  | H44: =IF('lectures and seminars'!FM8="","",'lectures and seminars'!FM8) ->  | I44: =IF('lectures and seminars'!FS8="","",'lectures and seminars'!FS8) ->  | J44: =IF('lectures and seminars'!FY8="","",'lectures and seminars'!FY8) ->  | K44: =IF('lectures and seminars'!FZ8="","",'lectures and seminars'!FZ8) -> 
A45: =IF('lectures and seminars'!DW9="","",'lectures and seminars'!DW9) ->  | B45: =IF('lectures and seminars'!EC9="","",'lectures and seminars'!EC9) ->  | C45: =IF('lectures and seminars'!EI9="","",'lectures and seminars'!EI9) ->  | D45: =IF('lectures and seminars'!EO9="","",'lectures and seminars'!EO9) ->  | E45: =IF('lectures and seminars'!EU9="","",'lectures and seminars'!EU9) ->  | F45: =IF('lectures and seminars'!FA9="","",'lectures and seminars'!FA9) ->  | G45: =IF('lectures and seminars'!FG9="","",'lectures and seminars'!FG9) ->  | H45: =IF('lectures and seminars'!FM9="","",'lectures and seminars'!FM9) ->  | I45: =IF('lectures and seminars'!FS9="","",'lectures and seminars'!FS9) ->  | J45: =IF('lectures and seminars'!FY9="","",'lectures and seminars'!FY9) ->  | K45: =IF('lectures and seminars'!FZ9="","",'lectures and seminars'!FZ9) -> 
A46: =IF('lectures and seminars'!DW10="","",'lectures and seminars'!DW10) ->  | B46: =IF('lectures and seminars'!EC10="","",'lectures and seminars'!EC10) ->  | C46: =IF('lectures and seminars'!EI10="","",'lectures and seminars'!EI10) ->  | D46: =IF('lectures and seminars'!EO10="","",'lectures and seminars'!EO10) ->  | E46: =IF('lectures and seminars'!EU10="","",'lectures and seminars'!EU10) ->  | F46: =IF('lectures and seminars'!FA10="","",'lectures and seminars'!FA10) ->  | G46: =IF('lectures and seminars'!FG10="","",'lectures and seminars'!FG10) ->  | H46: =IF('lectures and seminars'!FM10="","",'lectures and seminars'!FM10) ->  | I46: =IF('lectures and seminars'!FS10="","",'lectures and seminars'!FS10) ->  | J46: =IF('lectures and seminars'!FY10="","",'lectures and seminars'!FY10) ->  | K46: =IF('lectures and seminars'!FZ10="","",'lectures and seminars'!FZ10) -> 
A47: =IF('lectures and seminars'!DW11="","",'lectures and seminars'!DW11) ->  | B47: =IF('lectures and seminars'!EC11="","",'lectures and seminars'!EC11) ->  | C47: =IF('lectures and seminars'!EI11="","",'lectures and seminars'!EI11) ->  | D47: =IF('lectures and seminars'!EO11="","",'lectures and seminars'!EO11) ->  | E47: =IF('lectures and seminars'!EU11="","",'lectures and seminars'!EU11) ->  | F47: =IF('lectures and seminars'!FA11="","",'lectures and seminars'!FA11) ->  | G47: =IF('lectures and seminars'!FG11="","",'lectures and seminars'!FG11) ->  | H47: =IF('lectures and seminars'!FM11="","",'lectures and seminars'!FM11) ->  | I47: =IF('lectures and seminars'!FS11="","",'lectures and seminars'!FS11) ->  | J47: =IF('lectures and seminars'!FY11="","",'lectures and seminars'!FY11) ->  | K47: =IF('lectures and seminars'!FZ11="","",'lectures and seminars'!FZ11) -> 
A48: =IF('lectures and seminars'!DW12="","",'lectures and seminars'!DW12) ->  | B48: =IF('lectures and seminars'!EC12="","",'lectures and seminars'!EC12) ->  | C48: =IF('lectures and seminars'!EI12="","",'lectures and seminars'!EI12) ->  | D48: =IF('lectures and seminars'!EO12="","",'lectures and seminars'!EO12) ->  | E48: =IF('lectures and seminars'!EU12="","",'lectures and seminars'!EU12) ->  | F48: =IF('lectures and seminars'!FA12="","",'lectures and seminars'!FA12) ->  | G48: =IF('lectures and seminars'!FG12="","",'lectures and seminars'!FG12) ->  | H48: =IF('lectures and seminars'!FM12="","",'lectures and seminars'!FM12) ->  | I48: =IF('lectures and seminars'!FS12="","",'lectures and seminars'!FS12) ->  | J48: =IF('lectures and seminars'!FY12="","",'lectures and seminars'!FY12) ->  | K48: =IF('lectures and seminars'!FZ12="","",'lectures and seminars'!FZ12) -> 
A49: =IF('lectures and seminars'!DW13="","",'lectures and seminars'!DW13) ->  | B49: =IF('lectures and seminars'!EC13="","",'lectures and seminars'!EC13) ->  | C49: =IF('lectures and seminars'!EI13="","",'lectures and seminars'!EI13) ->  | D49: =IF('lectures and seminars'!EO13="","",'lectures and seminars'!EO13) ->  | E49: =IF('lectures and seminars'!EU13="","",'lectures and seminars'!EU13) ->  | F49: =IF('lectures and seminars'!FA13="","",'lectures and seminars'!FA13) ->  | G49: =IF('lectures and seminars'!FG13="","",'lectures and seminars'!FG13) ->  | H49: =IF('lectures and seminars'!FM13="","",'lectures and seminars'!FM13) ->  | I49: =IF('lectures and seminars'!FS13="","",'lectures and seminars'!FS13) ->  | J49: =IF('lectures and seminars'!FY13="","",'lectures and seminars'!FY13) ->  | K49: =IF('lectures and seminars'!FZ13="","",'lectures and seminars'!FZ13) -> 
A50: =IF('lectures and seminars'!DW14="","",'lectures and seminars'!DW14) ->  | B50: =IF('lectures and seminars'!EC14="","",'lectures and seminars'!EC14) ->  | C50: =IF('lectures and seminars'!EI14="","",'lectures and seminars'!EI14) ->  | D50: =IF('lectures and seminars'!EO14="","",'lectures and seminars'!EO14) ->  | E50: =IF('lectures and seminars'!EU14="","",'lectures and seminars'!EU14) ->  | F50: =IF('lectures and seminars'!FA14="","",'lectures and seminars'!FA14) ->  | G50: =IF('lectures and seminars'!FG14="","",'lectures and seminars'!FG14) ->  | H50: =IF('lectures and seminars'!FM14="","",'lectures and seminars'!FM14) ->  | I50: =IF('lectures and seminars'!FS14="","",'lectures and seminars'!FS14) ->  | J50: =IF('lectures and seminars'!FY14="","",'lectures and seminars'!FY14) ->  | K50: =IF('lectures and seminars'!FZ14="","",'lectures and seminars'!FZ14) -> 
A51: =IF('lectures and seminars'!DW15="","",'lectures and seminars'!DW15) ->  | B51: =IF('lectures and seminars'!EC15="","",'lectures and seminars'!EC15) ->  | C51: =IF('lectures and seminars'!EI15="","",'lectures and seminars'!EI15) ->  | D51: =IF('lectures and seminars'!EO15="","",'lectures and seminars'!EO15) ->  | E51: =IF('lectures and seminars'!EU15="","",'lectures and seminars'!EU15) ->  | F51: =IF('lectures and seminars'!FA15="","",'lectures and seminars'!FA15) ->  | G51: =IF('lectures and seminars'!FG15="","",'lectures and seminars'!FG15) ->  | H51: =IF('lectures and seminars'!FM15="","",'lectures and seminars'!FM15) ->  | I51: =IF('lectures and seminars'!FS15="","",'lectures and seminars'!FS15) ->  | J51: =IF('lectures and seminars'!FY15="","",'lectures and seminars'!FY15) ->  | K51: =IF('lectures and seminars'!FZ15="","",'lectures and seminars'!FZ15) -> 
A52: =IF('lectures and seminars'!DW16="","",'lectures and seminars'!DW16) ->  | B52: =IF('lectures and seminars'!EC16="","",'lectures and seminars'!EC16) ->  | C52: =IF('lectures and seminars'!EI16="","",'lectures and seminars'!EI16) ->  | D52: =IF('lectures and seminars'!EO16="","",'lectures and seminars'!EO16) ->  | E52: =IF('lectures and seminars'!EU16="","",'lectures and seminars'!EU16) ->  | F52: =IF('lectures and seminars'!FA16="","",'lectures and seminars'!FA16) ->  | G52: =IF('lectures and seminars'!FG16="","",'lectures and seminars'!FG16) ->  | H52: =IF('lectures and seminars'!FM16="","",'lectures and seminars'!FM16) ->  | I52: =IF('lectures and seminars'!FS16="","",'lectures and seminars'!FS16) ->  | J52: =IF('lectures and seminars'!FY16="","",'lectures and seminars'!FY16) ->  | K52: =IF('lectures and seminars'!FZ16="","",'lectures and seminars'!FZ16) -> 
A53: =IF('lectures and seminars'!DW17="","",'lectures and seminars'!DW17) ->  | B53: =IF('lectures and seminars'!EC17="","",'lectures and seminars'!EC17) ->  | C53: =IF('lectures and seminars'!EI17="","",'lectures and seminars'!EI17) ->  | D53: =IF('lectures and seminars'!EO17="","",'lectures and seminars'!EO17) ->  | E53: =IF('lectures and seminars'!EU17="","",'lectures and seminars'!EU17) ->  | F53: =IF('lectures and seminars'!FA17="","",'lectures and seminars'!FA17) ->  | G53: =IF('lectures and seminars'!FG17="","",'lectures and seminars'!FG17) ->  | H53: =IF('lectures and seminars'!FM17="","",'lectures and seminars'!FM17) ->  | I53: =IF('lectures and seminars'!FS17="","",'lectures and seminars'!FS17) ->  | J53: =IF('lectures and seminars'!FY17="","",'lectures and seminars'!FY17) ->  | K53: =IF('lectures and seminars'!FZ17="","",'lectures and seminars'!FZ17) -> 
A54: =IF('lectures and seminars'!DW18="","",'lectures and seminars'!DW18) ->  | B54: =IF('lectures and seminars'!EC18="","",'lectures and seminars'!EC18) ->  | C54: =IF('lectures and seminars'!EI18="","",'lectures and seminars'!EI18) ->  | D54: =IF('lectures and seminars'!EO18="","",'lectures and seminars'!EO18) ->  | E54: =IF('lectures and seminars'!EU18="","",'lectures and seminars'!EU18) ->  | F54: =IF('lectures and seminars'!FA18="","",'lectures and seminars'!FA18) ->  | G54: =IF('lectures and seminars'!FG18="","",'lectures and seminars'!FG18) ->  | H54: =IF('lectures and seminars'!FM18="","",'lectures and seminars'!FM18) ->  | I54: =IF('lectures and seminars'!FS18="","",'lectures and seminars'!FS18) ->  | J54: =IF('lectures and seminars'!FY18="","",'lectures and seminars'!FY18) ->  | K54: =IF('lectures and seminars'!FZ18="","",'lectures and seminars'!FZ18) -> 
A55: Biology and experimental practice of zebrafish | B55: Handling, sexing and restraint of laboratory animals. | C55: Methods of investigating laboratory animals behaviour in practice. | D55: Care and housing of laboratory animals in practice: nutrition, cleaning and bedding. | E55: Minimally invasive procedures without anaesthesia: injections. Intravenous access with Braun catheters, infusions on phantoms | F55: Minimally invasive procedures without anaesthesia: oral and parenteral drug administration to rodents in practice. Calculation of the dose of anaesthetic drugs for different species; Anaesthesia of rodents, recognition and control of pain. Advanced anaesthesia in practice: inhalation anaesthesia of rodents. Sampling methods under anaesthesia (urine, blood, tissue biopsies) Anaesthesia, instrumentation and non-invasive procedures on minipig. Scoring system to evaluate humane endpoint. | G55: Practice in operating theatre I: aseptic techniques, working under sterile circumstances on dummies and phantoms | H55: Practice in operating theatre II: basic surgical procedures, suturing, wound management on dummies and phantoms | I55: Basic surgical procedures on anaesthetised rodents: Preparation of trachea – mechanical ventilation; Preparation of carotid artery - in vivo monitoring of vital signs; Preparation of jugular vein – infusion; Median laparotomy, anatomy of abdominal cavity; Suturing in two layers; Microsurgery (on mice) | J55: Alternatives to animal use 2. In vitro and ex vivo experimental techniques; tissue cultures and the Langendorff method
A56: =IF(practices!I2="","",practices!I2) -> Practice not so useful. Small space for too many participants. | B56: =IF(practices!Q2="","",practices!Q2) ->  | C56: =IF(practices!Y2="","",practices!Y2) -> Very interesting. | D56: =IF(practices!AG2="","",practices!AG2) ->  | E56: =IF(practices!AO2="","",practices!AO2) ->  | F56: =IF(practices!AW2="","",practices!AW2) -> Excellent! I appeciated the efforts of all teachers and trainers! | G56: =IF(practices!BE2="","",practices!BE2) -> Very useful! | H56: =IF(practices!BM2="","",practices!BM2) -> Very useful! | I56: =IF(practices!BU2="","",practices!BU2) -> Crowded tables. Rats were not well sedated, anesthetized. | J56: =IF(practices!CC2="","",practices!CC2) -> 
A57: =IF(practices!I3="","",practices!I3) ->  | B57: =IF(practices!Q3="","",practices!Q3) ->  | C57: =IF(practices!Y3="","",practices!Y3) ->  | D57: =IF(practices!AG3="","",practices!AG3) ->  | E57: =IF(practices!AO3="","",practices!AO3) ->  | F57: =IF(practices!AW3="","",practices!AW3) ->  | G57: =IF(practices!BE3="","",practices!BE3) ->  | H57: =IF(practices!BM3="","",practices!BM3) ->  | I57: =IF(practices!BU3="","",practices!BU3) ->  | J57: =IF(practices!CC3="","",practices!CC3) -> 
A58: =IF(practices!I4="","",practices!I4) ->  | B58: =IF(practices!Q4="","",practices!Q4) ->  | C58: =IF(practices!Y4="","",practices!Y4) ->  | D58: =IF(practices!AG4="","",practices!AG4) ->  | E58: =IF(practices!AO4="","",practices!AO4) ->  | F58: =IF(practices!AW4="","",practices!AW4) -> Lectures were not translated into practice, e.g. no eye ointment, no warming plates, no pain medication, no disinfection, retroorbital bleeding should not be performed without general anaesthesia, retroorbital injection should only be done by experienced staff, not by participants. It's okay to take more time for certain practice part. We don't mind waiting, it's better than rushing through the practice. | G58: =IF(practices!BE4="","",practices!BE4) ->  | H58: =IF(practices!BM4="","",practices!BM4) ->  | I58: =IF(practices!BU4="","",practices!BU4) ->  | J58: =IF(practices!CC4="","",practices!CC4) -> 
A59: =IF(practices!I5="","",practices!I5) -> To improve. Different groups in one lesson, didn't allow a good practice. | B59: =IF(practices!Q5="","",practices!Q5) -> To improve the organization. I think it's been to divide the participant according to experiences and knowledge. | C59: =IF(practices!Y5="","",practices!Y5) ->  | D59: =IF(practices!AG5="","",practices!AG5) -> Rats and mice in the same keeping room!!!! | E59: =IF(practices!AO5="","",practices!AO5) -> How I already wrote, I think that the participants should be separate according their knowledge. I think that you should use more personnel because some procedures were performed without supervision. | F59: =IF(practices!AW5="","",practices!AW5) -> Mice and rats should not be in the same room!!! You should give more time for other species such as mini-pig. The blood collection from retro-orbital plexus in mice needs the sedation!!! | G59: =IF(practices!BE5="","",practices!BE5) -> It should be better the practice on animal. Separate the participnats according their knowledge. | H59: =IF(practices!BM5="","",practices!BM5) ->  | I59: =IF(practices!BU5="","",practices!BU5) -> Rats and mice in the same room!!!! No skin disinfection prior the incision!!! | J59: =IF(practices!CC5="","",practices!CC5) -> Nothing to suggest.
A60: =IF(practices!I6="","",practices!I6) ->  | B60: =IF(practices!Q6="","",practices!Q6) ->  | C60: =IF(practices!Y6="","",practices!Y6) ->  | D60: =IF(practices!AG6="","",practices!AG6) ->  | E60: =IF(practices!AO6="","",practices!AO6) ->  | F60: =IF(practices!AW6="","",practices!AW6) -> The procedures need more practice time. | G60: =IF(practices!BE6="","",practices!BE6) ->  | H60: =IF(practices!BM6="","",practices!BM6) ->  | I60: =IF(practices!BU6="","",practices!BU6) ->  | J60: =IF(practices!CC6="","",practices!CC6) -> 
A61: =IF(practices!I7="","",practices!I7) ->  | B61: =IF(practices!Q7="","",practices!Q7) ->  | C61: =IF(practices!Y7="","",practices!Y7) ->  | D61: =IF(practices!AG7="","",practices!AG7) ->  | E61: =IF(practices!AO7="","",practices!AO7) ->  | F61: =IF(practices!AW7="","",practices!AW7) ->  | G61: =IF(practices!BE7="","",practices!BE7) ->  | H61: =IF(practices!BM7="","",practices!BM7) ->  | I61: =IF(practices!BU7="","",practices!BU7) ->  | J61: =IF(practices!CC7="","",practices!CC7) -> 
A62: =IF(practices!I8="","",practices!I8) ->  | B62: =IF(practices!Q8="","",practices!Q8) ->  | C62: =IF(practices!Y8="","",practices!Y8) ->  | D62: =IF(practices!AG8="","",practices!AG8) ->  | E62: =IF(practices!AO8="","",practices!AO8) ->  | F62: =IF(practices!AW8="","",practices!AW8) ->  | G62: =IF(practices!BE8="","",practices!BE8) -> It's better that the practice right agter the lecture. | H62: =IF(practices!BM8="","",practices!BM8) ->  | I62: =IF(practices!BU8="","",practices!BU8) -> The elective courses are really useful for certain people. | J62: =IF(practices!CC8="","",practices!CC8) -> 
A63: =IF(practices!I9="","",practices!I9) ->  | B63: =IF(practices!Q9="","",practices!Q9) ->  | C63: =IF(practices!Y9="","",practices!Y9) ->  | D63: =IF(practices!AG9="","",practices!AG9) ->  | E63: =IF(practices!AO9="","",practices!AO9) ->  | F63: =IF(practices!AW9="","",practices!AW9) ->  | G63: =IF(practices!BE9="","",practices!BE9) ->  | H63: =IF(practices!BM9="","",practices!BM9) ->  | I63: =IF(practices!BU9="","",practices!BU9) ->  | J63: =IF(practices!CC9="","",practices!CC9) -> 
A64: =IF(practices!I10="","",practices!I10) ->  | B64: =IF(practices!Q10="","",practices!Q10) ->  | C64: =IF(practices!Y10="","",practices!Y10) ->  | D64: =IF(practices!AG10="","",practices!AG10) ->  | E64: =IF(practices!AO10="","",practices!AO10) ->  | F64: =IF(practices!AW10="","",practices!AW10) ->  | G64: =IF(practices!BE10="","",practices!BE10) ->  | H64: =IF(practices!BM10="","",practices!BM10) ->  | I64: =IF(practices!BU10="","",practices!BU10) ->  | J64: =IF(practices!CC10="","",practices!CC10) -> 
A65: =IF(practices!I11="","",practices!I11) ->  | B65: =IF(practices!Q11="","",practices!Q11) ->  | C65: =IF(practices!Y11="","",practices!Y11) ->  | D65: =IF(practices!AG11="","",practices!AG11) ->  | E65: =IF(practices!AO11="","",practices!AO11) ->  | F65: =IF(practices!AW11="","",practices!AW11) ->  | G65: =IF(practices!BE11="","",practices!BE11) ->  | H65: =IF(practices!BM11="","",practices!BM11) ->  | I65: =IF(practices!BU11="","",practices!BU11) ->  | J65: =IF(practices!CC11="","",practices!CC11) -> 
A66: =IF(practices!I12="","",practices!I12) ->  | B66: =IF(practices!Q12="","",practices!Q12) ->  | C66: =IF(practices!Y12="","",practices!Y12) ->  | D66: =IF(practices!AG12="","",practices!AG12) ->  | E66: =IF(practices!AO12="","",practices!AO12) ->  | F66: =IF(practices!AW12="","",practices!AW12) ->  | G66: =IF(practices!BE12="","",practices!BE12) ->  | H66: =IF(practices!BM12="","",practices!BM12) ->  | I66: =IF(practices!BU12="","",practices!BU12) ->  | J66: =IF(practices!CC12="","",practices!CC12) -> 
A67: =IF(practices!I13="","",practices!I13) ->  | B67: =IF(practices!Q13="","",practices!Q13) ->  | C67: =IF(practices!Y13="","",practices!Y13) ->  | D67: =IF(practices!AG13="","",practices!AG13) ->  | E67: =IF(practices!AO13="","",practices!AO13) ->  | F67: =IF(practices!AW13="","",practices!AW13) ->  | G67: =IF(practices!BE13="","",practices!BE13) ->  | H67: =IF(practices!BM13="","",practices!BM13) ->  | I67: =IF(practices!BU13="","",practices!BU13) ->  | J67: =IF(practices!CC13="","",practices!CC13) -> 
A68: =IF(practices!I14="","",practices!I14) ->  | B68: =IF(practices!Q14="","",practices!Q14) ->  | C68: =IF(practices!Y14="","",practices!Y14) ->  | D68: =IF(practices!AG14="","",practices!AG14) ->  | E68: =IF(practices!AO14="","",practices!AO14) ->  | F68: =IF(practices!AW14="","",practices!AW14) ->  | G68: =IF(practices!BE14="","",practices!BE14) ->  | H68: =IF(practices!BM14="","",practices!BM14) ->  | I68: =IF(practices!BU14="","",practices!BU14) ->  | J68: =IF(practices!CC14="","",practices!CC14) -> 
A69: =IF(practices!I15="","",practices!I15) ->  | B69: =IF(practices!Q15="","",practices!Q15) ->  | C69: =IF(practices!Y15="","",practices!Y15) ->  | D69: =IF(practices!AG15="","",practices!AG15) ->  | E69: =IF(practices!AO15="","",practices!AO15) ->  | F69: =IF(practices!AW15="","",practices!AW15) ->  | G69: =IF(practices!BE15="","",practices!BE15) ->  | H69: =IF(practices!BM15="","",practices!BM15) ->  | I69: =IF(practices!BU15="","",practices!BU15) ->  | J69: =IF(practices!CC15="","",practices!CC15) -> 
A70: =IF(practices!I16="","",practices!I16) ->  | B70: =IF(practices!Q16="","",practices!Q16) ->  | C70: =IF(practices!Y16="","",practices!Y16) ->  | D70: =IF(practices!AG16="","",practices!AG16) ->  | E70: =IF(practices!AO16="","",practices!AO16) ->  | F70: =IF(practices!AW16="","",practices!AW16) ->  | G70: =IF(practices!BE16="","",practices!BE16) ->  | H70: =IF(practices!BM16="","",practices!BM16) ->  | I70: =IF(practices!BU16="","",practices!BU16) ->  | J70: =IF(practices!CC16="","",practices!CC16) -> 
A71: =IF(practices!I17="","",practices!I17) ->  | B71: =IF(practices!Q17="","",practices!Q17) ->  | C71: =IF(practices!Y17="","",practices!Y17) ->  | D71: =IF(practices!AG17="","",practices!AG17) ->  | E71: =IF(practices!AO17="","",practices!AO17) ->  | F71: =IF(practices!AW17="","",practices!AW17) ->  | G71: =IF(practices!BE17="","",practices!BE17) ->  | H71: =IF(practices!BM17="","",practices!BM17) ->  | I71: =IF(practices!BU17="","",practices!BU17) ->  | J71: =IF(practices!CC17="","",practices!CC17) -> 

Sheet practice data, grafik
A1: PRACTICES | B1: Theme selection | C1: Organization | D1: Active participation | E1: Teacher readiness | F1: Practice value | G1: Syllabus
A2: Zebrafish | B2: =IF(practices!C2="","",practices!C2) -> 4 | C2: =IF(practices!D2="","",practices!D2) -> 3 | D2: =IF(practices!E2="","",practices!E2) -> 3 | E2: =IF(practices!F2="","",practices!F2) -> 5 | F2: =IF(practices!G2="","",practices!G2) -> 3 | G2: =IF(practices!H2="","",practices!H2) -> 4 | J2: Sorcímkék | K2: Átlag / Theme selection
A3: Zebrafish | B3: =IF(practices!C3="","",practices!C3) ->  | C3: =IF(practices!D3="","",practices!D3) ->  | D3: =IF(practices!E3="","",practices!E3) ->  | E3: =IF(practices!F3="","",practices!F3) ->  | F3: =IF(practices!G3="","",practices!G3) ->  | G3: =IF(practices!H3="","",practices!H3) ->  | J3: Alternatives | K3: 4.909090909
A4: Zebrafish | B4: =IF(practices!C4="","",practices!C4) -> 5 | C4: =IF(practices!D4="","",practices!D4) -> 5 | D4: =IF(practices!E4="","",practices!E4) -> 5 | E4: =IF(practices!F4="","",practices!F4) -> 5 | F4: =IF(practices!G4="","",practices!G4) -> 5 | G4: =IF(practices!H4="","",practices!H4) -> 5 | J4: Anaesthesia | K4: 4.785714286
A5: Zebrafish | B5: =IF(practices!C5="","",practices!C5) -> 5 | C5: =IF(practices!D5="","",practices!D5) -> 2 | D5: =IF(practices!E5="","",practices!E5) -> 2 | E5: =IF(practices!F5="","",practices!F5) -> 5 | F5: =IF(practices!G5="","",practices!G5) -> 3 | G5: =IF(practices!H5="","",practices!H5) -> 3 | J5: Aseptic techniques | K5: 4.928571429
A6: Zebrafish | B6: =IF(practices!C6="","",practices!C6) -> 5 | C6: =IF(practices!D6="","",practices!D6) -> 5 | D6: =IF(practices!E6="","",practices!E6) -> 5 | E6: =IF(practices!F6="","",practices!F6) -> 5 | F6: =IF(practices!G6="","",practices!G6) -> 5 | G6: =IF(practices!H6="","",practices!H6) -> 5 | J6: Behaviour | K6: 4.928571429
A7: Zebrafish | B7: =IF(practices!C7="","",practices!C7) -> 5 | C7: =IF(practices!D7="","",practices!D7) -> 5 | D7: =IF(practices!E7="","",practices!E7) -> 5 | E7: =IF(practices!F7="","",practices!F7) -> 5 | F7: =IF(practices!G7="","",practices!G7) -> 5 | G7: =IF(practices!H7="","",practices!H7) -> 5 | J7: Housing | K7: 4.714285714
A8: Zebrafish | B8: =IF(practices!C8="","",practices!C8) -> 5 | C8: =IF(practices!D8="","",practices!D8) -> 5 | D8: =IF(practices!E8="","",practices!E8) -> 5 | E8: =IF(practices!F8="","",practices!F8) -> 5 | F8: =IF(practices!G8="","",practices!G8) -> 5 | G8: =IF(practices!H8="","",practices!H8) -> 5 | J8: Infusion on phantoms | K8: 4.928571429
A9: Zebrafish | B9: =IF(practices!C9="","",practices!C9) -> 5 | C9: =IF(practices!D9="","",practices!D9) -> 5 | D9: =IF(practices!E9="","",practices!E9) -> 5 | E9: =IF(practices!F9="","",practices!F9) -> 5 | F9: =IF(practices!G9="","",practices!G9) -> 5 | G9: =IF(practices!H9="","",practices!H9) ->  | J9: Restraint | K9: 4.928571429
A10: Zebrafish | B10: =IF(practices!C10="","",practices!C10) -> 5 | C10: =IF(practices!D10="","",practices!D10) -> 5 | D10: =IF(practices!E10="","",practices!E10) -> 5 | E10: =IF(practices!F10="","",practices!F10) -> 5 | F10: =IF(practices!G10="","",practices!G10) -> 5 | G10: =IF(practices!H10="","",practices!H10) -> 5 | J10: Surgical procedures | K10: 5
A11: Zebrafish | B11: =IF(practices!C11="","",practices!C11) -> 5 | C11: =IF(practices!D11="","",practices!D11) -> 5 | D11: =IF(practices!E11="","",practices!E11) -> 5 | E11: =IF(practices!F11="","",practices!F11) -> 5 | F11: =IF(practices!G11="","",practices!G11) -> 5 | G11: =IF(practices!H11="","",practices!H11) -> 4 | J11: Suturing | K11: 4.928571429
A12: Zebrafish | B12: =IF(practices!C12="","",practices!C12) -> 5 | C12: =IF(practices!D12="","",practices!D12) -> 5 | D12: =IF(practices!E12="","",practices!E12) -> 5 | E12: =IF(practices!F12="","",practices!F12) -> 2 | F12: =IF(practices!G12="","",practices!G12) -> 5 | G12: =IF(practices!H12="","",practices!H12) -> 5 | J12: Zebrafish | K12: 4.928571429
A13: Zebrafish | B13: =IF(practices!C13="","",practices!C13) -> 5 | C13: =IF(practices!D13="","",practices!D13) -> 5 | D13: =IF(practices!E13="","",practices!E13) -> 5 | E13: =IF(practices!F13="","",practices!F13) -> 5 | F13: =IF(practices!G13="","",practices!G13) -> 5 | G13: =IF(practices!H13="","",practices!H13) -> 5 | J13: Végösszeg | K13: 4.897058824
A14: Zebrafish | B14: =IF(practices!C14="","",practices!C14) -> 5 | C14: =IF(practices!D14="","",practices!D14) -> 5 | D14: =IF(practices!E14="","",practices!E14) -> 5 | E14: =IF(practices!F14="","",practices!F14) -> 5 | F14: =IF(practices!G14="","",practices!G14) -> 5 | G14: =IF(practices!H14="","",practices!H14) -> 5
A15: Zebrafish | B15: =IF(practices!C15="","",practices!C15) -> 5 | C15: =IF(practices!D15="","",practices!D15) -> 5 | D15: =IF(practices!E15="","",practices!E15) -> 5 | E15: =IF(practices!F15="","",practices!F15) -> 5 | F15: =IF(practices!G15="","",practices!G15) -> 5 | G15: =IF(practices!H15="","",practices!H15) -> 5
A16: Zebrafish | B16: =IF(practices!C16="","",practices!C16) -> 5 | C16: =IF(practices!D16="","",practices!D16) -> 5 | D16: =IF(practices!E16="","",practices!E16) -> 5 | E16: =IF(practices!F16="","",practices!F16) -> 5 | F16: =IF(practices!G16="","",practices!G16) -> 5 | G16: =IF(practices!H16="","",practices!H16) -> 5
A17: Restraint | B17: =IF(practices!K2="","",practices!K2) -> 5 | C17: =IF(practices!L2="","",practices!L2) -> 5 | D17: =IF(practices!M2="","",practices!M2) -> 5 | E17: =IF(practices!N2="","",practices!N2) -> 5 | F17: =IF(practices!O2="","",practices!O2) -> 5 | G17: =IF(practices!P2="","",practices!P2) -> 5
A18: Restraint | B18: =IF(practices!K3="","",practices!K3) ->  | C18: =IF(practices!L3="","",practices!L3) ->  | D18: =IF(practices!M3="","",practices!M3) ->  | E18: =IF(practices!N3="","",practices!N3) ->  | F18: =IF(practices!O3="","",practices!O3) ->  | G18: =IF(practices!P3="","",practices!P3) -> 
A19: Restraint | B19: =IF(practices!K4="","",practices!K4) -> 5 | C19: =IF(practices!L4="","",practices!L4) -> 5 | D19: =IF(practices!M4="","",practices!M4) -> 5 | E19: =IF(practices!N4="","",practices!N4) -> 5 | F19: =IF(practices!O4="","",practices!O4) -> 5 | G19: =IF(practices!P4="","",practices!P4) -> 5 | J19: Sorcímkék | K19: Átlag / Organization
A20: Restraint | B20: =IF(practices!K5="","",practices!K5) -> 4 | C20: =IF(practices!L5="","",practices!L5) -> 3 | D20: =IF(practices!M5="","",practices!M5) -> 5 | E20: =IF(practices!N5="","",practices!N5) -> 5 | F20: =IF(practices!O5="","",practices!O5) -> 4 | G20: =IF(practices!P5="","",practices!P5) -> 4 | J20: Alternatives | K20: 4.909090909
A21: Restraint | B21: =IF(practices!K6="","",practices!K6) -> 5 | C21: =IF(practices!L6="","",practices!L6) -> 5 | D21: =IF(practices!M6="","",practices!M6) -> 5 | E21: =IF(practices!N6="","",practices!N6) -> 5 | F21: =IF(practices!O6="","",practices!O6) -> 5 | G21: =IF(practices!P6="","",practices!P6) -> 5 | J21: Anaesthesia | K21: 4.5
A22: Restraint | B22: =IF(practices!K7="","",practices!K7) -> 5 | C22: =IF(practices!L7="","",practices!L7) -> 5 | D22: =IF(practices!M7="","",practices!M7) -> 5 | E22: =IF(practices!N7="","",practices!N7) -> 5 | F22: =IF(practices!O7="","",practices!O7) -> 5 | G22: =IF(practices!P7="","",practices!P7) -> 5 | J22: Aseptic techniques | K22: 4.785714286
A23: Restraint | B23: =IF(practices!K8="","",practices!K8) -> 5 | C23: =IF(practices!L8="","",practices!L8) -> 5 | D23: =IF(practices!M8="","",practices!M8) -> 5 | E23: =IF(practices!N8="","",practices!N8) -> 5 | F23: =IF(practices!O8="","",practices!O8) -> 5 | G23: =IF(practices!P8="","",practices!P8) -> 5 | J23: Behaviour | K23: 4.857142857
A24: Restraint | B24: =IF(practices!K9="","",practices!K9) -> 5 | C24: =IF(practices!L9="","",practices!L9) -> 5 | D24: =IF(practices!M9="","",practices!M9) -> 5 | E24: =IF(practices!N9="","",practices!N9) -> 5 | F24: =IF(practices!O9="","",practices!O9) -> 5 | G24: =IF(practices!P9="","",practices!P9) ->  | J24: Housing | K24: 4.714285714
A25: Restraint | B25: =IF(practices!K10="","",practices!K10) -> 5 | C25: =IF(practices!L10="","",practices!L10) -> 5 | D25: =IF(practices!M10="","",practices!M10) -> 5 | E25: =IF(practices!N10="","",practices!N10) -> 5 | F25: =IF(practices!O10="","",practices!O10) -> 5 | G25: =IF(practices!P10="","",practices!P10) -> 5 | J25: Infusion on phantoms | K25: 4.571428571
A26: Restraint | B26: =IF(practices!K11="","",practices!K11) -> 5 | C26: =IF(practices!L11="","",practices!L11) -> 5 | D26: =IF(practices!M11="","",practices!M11) -> 5 | E26: =IF(practices!N11="","",practices!N11) -> 5 | F26: =IF(practices!O11="","",practices!O11) -> 5 | G26: =IF(practices!P11="","",practices!P11) ->  | J26: Restraint | K26: 4.857142857
A27: Restraint | B27: =IF(practices!K12="","",practices!K12) -> 5 | C27: =IF(practices!L12="","",practices!L12) -> 5 | D27: =IF(practices!M12="","",practices!M12) -> 5 | E27: =IF(practices!N12="","",practices!N12) -> 5 | F27: =IF(practices!O12="","",practices!O12) -> 5 | G27: =IF(practices!P12="","",practices!P12) -> 5 | J27: Surgical procedures | K27: 4.846153846
A28: Restraint | B28: =IF(practices!K13="","",practices!K13) -> 5 | C28: =IF(practices!L13="","",practices!L13) -> 5 | D28: =IF(practices!M13="","",practices!M13) -> 5 | E28: =IF(practices!N13="","",practices!N13) -> 5 | F28: =IF(practices!O13="","",practices!O13) -> 5 | G28: =IF(practices!P13="","",practices!P13) -> 5 | J28: Suturing | K28: 4.785714286
A29: Restraint | B29: =IF(practices!K14="","",practices!K14) -> 5 | C29: =IF(practices!L14="","",practices!L14) -> 5 | D29: =IF(practices!M14="","",practices!M14) -> 5 | E29: =IF(practices!N14="","",practices!N14) -> 5 | F29: =IF(practices!O14="","",practices!O14) -> 5 | G29: =IF(practices!P14="","",practices!P14) -> 5 | J29: Zebrafish | K29: 4.642857143
A30: Restraint | B30: =IF(practices!K15="","",practices!K15) -> 5 | C30: =IF(practices!L15="","",practices!L15) -> 5 | D30: =IF(practices!M15="","",practices!M15) -> 5 | E30: =IF(practices!N15="","",practices!N15) -> 5 | F30: =IF(practices!O15="","",practices!O15) -> 5 | G30: =IF(practices!P15="","",practices!P15) -> 5 | J30: Végösszeg | K30: 4.742647059
A31: Restraint | B31: =IF(practices!K16="","",practices!K16) -> 5 | C31: =IF(practices!L16="","",practices!L16) -> 5 | D31: =IF(practices!M16="","",practices!M16) -> 5 | E31: =IF(practices!N16="","",practices!N16) -> 5 | F31: =IF(practices!O16="","",practices!O16) -> 5 | G31: =IF(practices!P16="","",practices!P16) -> 5
A32: Behaviour | B32: =IF(practices!S2="","",practices!S2) -> 5 | C32: =IF(practices!T2="","",practices!T2) -> 5 | D32: =IF(practices!U2="","",practices!U2) -> 5 | E32: =IF(practices!V2="","",practices!V2) -> 5 | F32: =IF(practices!W2="","",practices!W2) -> 5 | G32: =IF(practices!X2="","",practices!X2) -> 5
A33: Behaviour | B33: =IF(practices!S3="","",practices!S3) ->  | C33: =IF(practices!T3="","",practices!T3) ->  | D33: =IF(practices!U3="","",practices!U3) ->  | E33: =IF(practices!V3="","",practices!V3) ->  | F33: =IF(practices!W3="","",practices!W3) ->  | G33: =IF(practices!X3="","",practices!X3) -> 
A34: Behaviour | B34: =IF(practices!S4="","",practices!S4) -> 5 | C34: =IF(practices!T4="","",practices!T4) -> 5 | D34: =IF(practices!U4="","",practices!U4) -> 5 | E34: =IF(practices!V4="","",practices!V4) -> 5 | F34: =IF(practices!W4="","",practices!W4) -> 5 | G34: =IF(practices!X4="","",practices!X4) -> 5 | J34: Sorcímkék | K34: Átlag / Active participation
A35: Behaviour | B35: =IF(practices!S5="","",practices!S5) -> 4 | C35: =IF(practices!T5="","",practices!T5) -> 3 | D35: =IF(practices!U5="","",practices!U5) -> 3 | E35: =IF(practices!V5="","",practices!V5) -> 5 | F35: =IF(practices!W5="","",practices!W5) -> 4 | G35: =IF(practices!X5="","",practices!X5) -> 4 | J35: Alternatives | K35: 4.909090909
A36: Behaviour | B36: =IF(practices!S6="","",practices!S6) -> 5 | C36: =IF(practices!T6="","",practices!T6) -> 5 | D36: =IF(practices!U6="","",practices!U6) -> 5 | E36: =IF(practices!V6="","",practices!V6) -> 5 | F36: =IF(practices!W6="","",practices!W6) -> 5 | G36: =IF(practices!X6="","",practices!X6) -> 5 | J36: Anaesthesia | K36: 4.785714286
A37: Behaviour | B37: =IF(practices!S7="","",practices!S7) -> 5 | C37: =IF(practices!T7="","",practices!T7) -> 5 | D37: =IF(practices!U7="","",practices!U7) -> 5 | E37: =IF(practices!V7="","",practices!V7) -> 4 | F37: =IF(practices!W7="","",practices!W7) -> 5 | G37: =IF(practices!X7="","",practices!X7) -> 4 | J37: Aseptic techniques | K37: 5
A38: Behaviour | B38: =IF(practices!S8="","",practices!S8) -> 5 | C38: =IF(practices!T8="","",practices!T8) -> 5 | D38: =IF(practices!U8="","",practices!U8) -> 5 | E38: =IF(practices!V8="","",practices!V8) -> 5 | F38: =IF(practices!W8="","",practices!W8) -> 5 | G38: =IF(practices!X8="","",practices!X8) -> 5 | J38: Behaviour | K38: 4.857142857
A39: Behaviour | B39: =IF(practices!S9="","",practices!S9) -> 5 | C39: =IF(practices!T9="","",practices!T9) -> 5 | D39: =IF(practices!U9="","",practices!U9) -> 5 | E39: =IF(practices!V9="","",practices!V9) -> 5 | F39: =IF(practices!W9="","",practices!W9) -> 5 | G39: =IF(practices!X9="","",practices!X9) ->  | J39: Housing | K39: 4.928571429
A40: Behaviour | B40: =IF(practices!S10="","",practices!S10) -> 5 | C40: =IF(practices!T10="","",practices!T10) -> 5 | D40: =IF(practices!U10="","",practices!U10) -> 5 | E40: =IF(practices!V10="","",practices!V10) -> 5 | F40: =IF(practices!W10="","",practices!W10) -> 5 | G40: =IF(practices!X10="","",practices!X10) -> 5 | J40: Infusion on phantoms | K40: 4.785714286
A41: Behaviour | B41: =IF(practices!S11="","",practices!S11) -> 5 | C41: =IF(practices!T11="","",practices!T11) -> 5 | D41: =IF(practices!U11="","",practices!U11) -> 5 | E41: =IF(practices!V11="","",practices!V11) -> 5 | F41: =IF(practices!W11="","",practices!W11) -> 5 | G41: =IF(practices!X11="","",practices!X11) ->  | J41: Restraint | K41: 5
A42: Behaviour | B42: =IF(practices!S12="","",practices!S12) -> 5 | C42: =IF(practices!T12="","",practices!T12) -> 5 | D42: =IF(practices!U12="","",practices!U12) -> 5 | E42: =IF(practices!V12="","",practices!V12) -> 5 | F42: =IF(practices!W12="","",practices!W12) -> 5 | G42: =IF(practices!X12="","",practices!X12) -> 5 | J42: Surgical procedures | K42: 5
A43: Behaviour | B43: =IF(practices!S13="","",practices!S13) -> 5 | C43: =IF(practices!T13="","",practices!T13) -> 5 | D43: =IF(practices!U13="","",practices!U13) -> 5 | E43: =IF(practices!V13="","",practices!V13) -> 5 | F43: =IF(practices!W13="","",practices!W13) -> 5 | G43: =IF(practices!X13="","",practices!X13) -> 5 | J43: Suturing | K43: 4.928571429
A44: Behaviour | B44: =IF(practices!S14="","",practices!S14) -> 5 | C44: =IF(practices!T14="","",practices!T14) -> 5 | D44: =IF(practices!U14="","",practices!U14) -> 5 | E44: =IF(practices!V14="","",practices!V14) -> 5 | F44: =IF(practices!W14="","",practices!W14) -> 5 | G44: =IF(practices!X14="","",practices!X14) -> 5 | J44: Zebrafish | K44: 4.642857143
A45: Behaviour | B45: =IF(practices!S15="","",practices!S15) -> 5 | C45: =IF(practices!T15="","",practices!T15) -> 5 | D45: =IF(practices!U15="","",practices!U15) -> 5 | E45: =IF(practices!V15="","",practices!V15) -> 5 | F45: =IF(practices!W15="","",practices!W15) -> 5 | G45: =IF(practices!X15="","",practices!X15) -> 5 | J45: Végösszeg | K45: 4.882352941
A46: Behaviour | B46: =IF(practices!S16="","",practices!S16) -> 5 | C46: =IF(practices!T16="","",practices!T16) -> 5 | D46: =IF(practices!U16="","",practices!U16) -> 5 | E46: =IF(practices!V16="","",practices!V16) -> 5 | F46: =IF(practices!W16="","",practices!W16) -> 5 | G46: =IF(practices!X16="","",practices!X16) -> 5
A47: Housing | B47: =IF(practices!AA2="","",practices!AA2) -> 5 | C47: =IF(practices!AB2="","",practices!AB2) -> 5 | D47: =IF(practices!AC2="","",practices!AC2) -> 5 | E47: =IF(practices!AD2="","",practices!AD2) -> 5 | F47: =IF(practices!AE2="","",practices!AE2) -> 5 | G47: =IF(practices!AF2="","",practices!AF2) -> 5
A48: Housing | B48: =IF(practices!AA3="","",practices!AA3) ->  | C48: =IF(practices!AB3="","",practices!AB3) ->  | D48: =IF(practices!AC3="","",practices!AC3) ->  | E48: =IF(practices!AD3="","",practices!AD3) ->  | F48: =IF(practices!AE3="","",practices!AE3) ->  | G48: =IF(practices!AF3="","",practices!AF3) -> 
A49: Housing | B49: =IF(practices!AA4="","",practices!AA4) -> 5 | C49: =IF(practices!AB4="","",practices!AB4) -> 5 | D49: =IF(practices!AC4="","",practices!AC4) -> 5 | E49: =IF(practices!AD4="","",practices!AD4) -> 5 | F49: =IF(practices!AE4="","",practices!AE4) -> 4 | G49: =IF(practices!AF4="","",practices!AF4) -> 5
A50: Housing | B50: =IF(practices!AA5="","",practices!AA5) -> 2 | C50: =IF(practices!AB5="","",practices!AB5) -> 1 | D50: =IF(practices!AC5="","",practices!AC5) -> 4 | E50: =IF(practices!AD5="","",practices!AD5) -> 4 | F50: =IF(practices!AE5="","",practices!AE5) -> 3 | G50: =IF(practices!AF5="","",practices!AF5) -> 4
A51: Housing | B51: =IF(practices!AA6="","",practices!AA6) -> 5 | C51: =IF(practices!AB6="","",practices!AB6) -> 5 | D51: =IF(practices!AC6="","",practices!AC6) -> 5 | E51: =IF(practices!AD6="","",practices!AD6) -> 5 | F51: =IF(practices!AE6="","",practices!AE6) -> 5 | G51: =IF(practices!AF6="","",practices!AF6) -> 5
A52: Housing | B52: =IF(practices!AA7="","",practices!AA7) -> 5 | C52: =IF(practices!AB7="","",practices!AB7) -> 5 | D52: =IF(practices!AC7="","",practices!AC7) -> 5 | E52: =IF(practices!AD7="","",practices!AD7) -> 5 | F52: =IF(practices!AE7="","",practices!AE7) -> 5 | G52: =IF(practices!AF7="","",practices!AF7) -> 5 | J52: Sorcímkék | K52: Átlag / Teacher readiness
A53: Housing | B53: =IF(practices!AA8="","",practices!AA8) -> 5 | C53: =IF(practices!AB8="","",practices!AB8) -> 5 | D53: =IF(practices!AC8="","",practices!AC8) -> 5 | E53: =IF(practices!AD8="","",practices!AD8) -> 5 | F53: =IF(practices!AE8="","",practices!AE8) -> 5 | G53: =IF(practices!AF8="","",practices!AF8) -> 5 | J53: Alternatives | K53: 4.909090909
A54: Housing | B54: =IF(practices!AA9="","",practices!AA9) -> 5 | C54: =IF(practices!AB9="","",practices!AB9) -> 5 | D54: =IF(practices!AC9="","",practices!AC9) -> 5 | E54: =IF(practices!AD9="","",practices!AD9) -> 5 | F54: =IF(practices!AE9="","",practices!AE9) -> 5 | G54: =IF(practices!AF9="","",practices!AF9) ->  | J54: Anaesthesia | K54: 4.785714286
A55: Housing | B55: =IF(practices!AA10="","",practices!AA10) -> 5 | C55: =IF(practices!AB10="","",practices!AB10) -> 5 | D55: =IF(practices!AC10="","",practices!AC10) -> 5 | E55: =IF(practices!AD10="","",practices!AD10) -> 5 | F55: =IF(practices!AE10="","",practices!AE10) -> 5 | G55: =IF(practices!AF10="","",practices!AF10) -> 5 | J55: Aseptic techniques | K55: 4.928571429
A56: Housing | B56: =IF(practices!AA11="","",practices!AA11) -> 4 | C56: =IF(practices!AB11="","",practices!AB11) -> 5 | D56: =IF(practices!AC11="","",practices!AC11) -> 5 | E56: =IF(practices!AD11="","",practices!AD11) -> 5 | F56: =IF(practices!AE11="","",practices!AE11) -> 4 | G56: =IF(practices!AF11="","",practices!AF11) -> 5 | J56: Behaviour | K56: 4.928571429
A57: Housing | B57: =IF(practices!AA12="","",practices!AA12) -> 5 | C57: =IF(practices!AB12="","",practices!AB12) -> 5 | D57: =IF(practices!AC12="","",practices!AC12) -> 5 | E57: =IF(practices!AD12="","",practices!AD12) -> 5 | F57: =IF(practices!AE12="","",practices!AE12) -> 5 | G57: =IF(practices!AF12="","",practices!AF12) -> 5 | J57: Housing | K57: 4.928571429
A58: Housing | B58: =IF(practices!AA13="","",practices!AA13) -> 5 | C58: =IF(practices!AB13="","",practices!AB13) -> 5 | D58: =IF(practices!AC13="","",practices!AC13) -> 5 | E58: =IF(practices!AD13="","",practices!AD13) -> 5 | F58: =IF(practices!AE13="","",practices!AE13) -> 5 | G58: =IF(practices!AF13="","",practices!AF13) -> 5 | J58: Infusion on phantoms | K58: 5
A59: Housing | B59: =IF(practices!AA14="","",practices!AA14) -> 5 | C59: =IF(practices!AB14="","",practices!AB14) -> 5 | D59: =IF(practices!AC14="","",practices!AC14) -> 5 | E59: =IF(practices!AD14="","",practices!AD14) -> 5 | F59: =IF(practices!AE14="","",practices!AE14) -> 5 | G59: =IF(practices!AF14="","",practices!AF14) -> 5 | J59: Restraint | K59: 5
A60: Housing | B60: =IF(practices!AA15="","",practices!AA15) -> 5 | C60: =IF(practices!AB15="","",practices!AB15) -> 5 | D60: =IF(practices!AC15="","",practices!AC15) -> 5 | E60: =IF(practices!AD15="","",practices!AD15) -> 5 | F60: =IF(practices!AE15="","",practices!AE15) -> 5 | G60: =IF(practices!AF15="","",practices!AF15) -> 5 | J60: Surgical procedures | K60: 5
A61: Housing | B61: =IF(practices!AA16="","",practices!AA16) -> 5 | C61: =IF(practices!AB16="","",practices!AB16) -> 5 | D61: =IF(practices!AC16="","",practices!AC16) -> 5 | E61: =IF(practices!AD16="","",practices!AD16) -> 5 | F61: =IF(practices!AE16="","",practices!AE16) -> 5 | G61: =IF(practices!AF16="","",practices!AF16) -> 5 | J61: Suturing | K61: 5
A62: Infusion on phantoms | B62: =IF(practices!AI2="","",practices!AI2) -> 5 | C62: =IF(practices!AJ2="","",practices!AJ2) -> 5 | D62: =IF(practices!AK2="","",practices!AK2) -> 5 | E62: =IF(practices!AL2="","",practices!AL2) -> 5 | F62: =IF(practices!AM2="","",practices!AM2) -> 5 | G62: =IF(practices!AN2="","",practices!AN2) -> 5 | J62: Zebrafish | K62: 4.785714286
A63: Infusion on phantoms | B63: =IF(practices!AI3="","",practices!AI3) ->  | C63: =IF(practices!AJ3="","",practices!AJ3) ->  | D63: =IF(practices!AK3="","",practices!AK3) ->  | E63: =IF(practices!AL3="","",practices!AL3) ->  | F63: =IF(practices!AM3="","",practices!AM3) ->  | G63: =IF(practices!AN3="","",practices!AN3) ->  | J63: Végösszeg | K63: 4.926470588
A64: Infusion on phantoms | B64: =IF(practices!AI4="","",practices!AI4) -> 5 | C64: =IF(practices!AJ4="","",practices!AJ4) -> 5 | D64: =IF(practices!AK4="","",practices!AK4) -> 5 | E64: =IF(practices!AL4="","",practices!AL4) -> 5 | F64: =IF(practices!AM4="","",practices!AM4) -> 5 | G64: =IF(practices!AN4="","",practices!AN4) -> 5
A65: Infusion on phantoms | B65: =IF(practices!AI5="","",practices!AI5) -> 4 | C65: =IF(practices!AJ5="","",practices!AJ5) -> 2 | D65: =IF(practices!AK5="","",practices!AK5) -> 3 | E65: =IF(practices!AL5="","",practices!AL5) -> 5 | F65: =IF(practices!AM5="","",practices!AM5) -> 3 | G65: =IF(practices!AN5="","",practices!AN5) -> 4
A66: Infusion on phantoms | B66: =IF(practices!AI6="","",practices!AI6) -> 5 | C66: =IF(practices!AJ6="","",practices!AJ6) -> 5 | D66: =IF(practices!AK6="","",practices!AK6) -> 5 | E66: =IF(practices!AL6="","",practices!AL6) -> 5 | F66: =IF(practices!AM6="","",practices!AM6) -> 5 | G66: =IF(practices!AN6="","",practices!AN6) -> 5
A67: Infusion on phantoms | B67: =IF(practices!AI7="","",practices!AI7) -> 5 | C67: =IF(practices!AJ7="","",practices!AJ7) -> 4 | D67: =IF(practices!AK7="","",practices!AK7) -> 4 | E67: =IF(practices!AL7="","",practices!AL7) -> 5 | F67: =IF(practices!AM7="","",practices!AM7) -> 5 | G67: =IF(practices!AN7="","",practices!AN7) -> 5
A68: Infusion on phantoms | B68: =IF(practices!AI8="","",practices!AI8) -> 5 | C68: =IF(practices!AJ8="","",practices!AJ8) -> 5 | D68: =IF(practices!AK8="","",practices!AK8) -> 5 | E68: =IF(practices!AL8="","",practices!AL8) -> 5 | F68: =IF(practices!AM8="","",practices!AM8) -> 5 | G68: =IF(practices!AN8="","",practices!AN8) -> 5
A69: Infusion on phantoms | B69: =IF(practices!AI9="","",practices!AI9) -> 5 | C69: =IF(practices!AJ9="","",practices!AJ9) -> 5 | D69: =IF(practices!AK9="","",practices!AK9) -> 5 | E69: =IF(practices!AL9="","",practices!AL9) -> 5 | F69: =IF(practices!AM9="","",practices!AM9) -> 5 | G69: =IF(practices!AN9="","",practices!AN9) ->  | J69: Sorcímkék | K69: Átlag / Practice value
A70: Infusion on phantoms | B70: =IF(practices!AI10="","",practices!AI10) -> 5 | C70: =IF(practices!AJ10="","",practices!AJ10) -> 5 | D70: =IF(practices!AK10="","",practices!AK10) -> 5 | E70: =IF(practices!AL10="","",practices!AL10) -> 5 | F70: =IF(practices!AM10="","",practices!AM10) -> 5 | G70: =IF(practices!AN10="","",practices!AN10) -> 5 | J70: Alternatives | K70: 4.818181818
A71: Infusion on phantoms | B71: =IF(practices!AI11="","",practices!AI11) -> 5 | C71: =IF(practices!AJ11="","",practices!AJ11) -> 4 | D71: =IF(practices!AK11="","",practices!AK11) -> 5 | E71: =IF(practices!AL11="","",practices!AL11) -> 5 | F71: =IF(practices!AM11="","",practices!AM11) -> 5 | G71: =IF(practices!AN11="","",practices!AN11) -> 5 | J71: Anaesthesia | K71: 4.714285714
A72: Infusion on phantoms | B72: =IF(practices!AI12="","",practices!AI12) -> 5 | C72: =IF(practices!AJ12="","",practices!AJ12) -> 5 | D72: =IF(practices!AK12="","",practices!AK12) -> 5 | E72: =IF(practices!AL12="","",practices!AL12) -> 5 | F72: =IF(practices!AM12="","",practices!AM12) -> 5 | G72: =IF(practices!AN12="","",practices!AN12) -> 5 | J72: Aseptic techniques | K72: 4.928571429
A73: Infusion on phantoms | B73: =IF(practices!AI13="","",practices!AI13) -> 5 | C73: =IF(practices!AJ13="","",practices!AJ13) -> 5 | D73: =IF(practices!AK13="","",practices!AK13) -> 5 | E73: =IF(practices!AL13="","",practices!AL13) -> 5 | F73: =IF(practices!AM13="","",practices!AM13) -> 5 | G73: =IF(practices!AN13="","",practices!AN13) -> 5 | J73: Behaviour | K73: 4.928571429
A74: Infusion on phantoms | B74: =IF(practices!AI14="","",practices!AI14) -> 5 | C74: =IF(practices!AJ14="","",practices!AJ14) -> 5 | D74: =IF(practices!AK14="","",practices!AK14) -> 5 | E74: =IF(practices!AL14="","",practices!AL14) -> 5 | F74: =IF(practices!AM14="","",practices!AM14) -> 5 | G74: =IF(practices!AN14="","",practices!AN14) -> 5 | J74: Housing | K74: 4.714285714
A75: Infusion on phantoms | B75: =IF(practices!AI15="","",practices!AI15) -> 5 | C75: =IF(practices!AJ15="","",practices!AJ15) -> 5 | D75: =IF(practices!AK15="","",practices!AK15) -> 5 | E75: =IF(practices!AL15="","",practices!AL15) -> 5 | F75: =IF(practices!AM15="","",practices!AM15) -> 5 | G75: =IF(practices!AN15="","",practices!AN15) -> 5 | J75: Infusion on phantoms | K75: 4.857142857
A76: Infusion on phantoms | B76: =IF(practices!AI16="","",practices!AI16) -> 5 | C76: =IF(practices!AJ16="","",practices!AJ16) -> 4 | D76: =IF(practices!AK16="","",practices!AK16) -> 5 | E76: =IF(practices!AL16="","",practices!AL16) -> 5 | F76: =IF(practices!AM16="","",practices!AM16) -> 5 | G76: =IF(practices!AN16="","",practices!AN16) -> 5 | J76: Restraint | K76: 4.928571429
A77: Anaesthesia | B77: =IF(practices!AQ2="","",practices!AQ2) -> 5 | C77: =IF(practices!AR2="","",practices!AR2) -> 5 | D77: =IF(practices!AS2="","",practices!AS2) -> 5 | E77: =IF(practices!AT2="","",practices!AT2) -> 5 | F77: =IF(practices!AU2="","",practices!AU2) -> 5 | G77: =IF(practices!AV2="","",practices!AV2) -> 5 | J77: Surgical procedures | K77: 4.923076923
A78: Anaesthesia | B78: =IF(practices!AQ3="","",practices!AQ3) ->  | C78: =IF(practices!AR3="","",practices!AR3) ->  | D78: =IF(practices!AS3="","",practices!AS3) ->  | E78: =IF(practices!AT3="","",practices!AT3) ->  | F78: =IF(practices!AU3="","",practices!AU3) ->  | G78: =IF(practices!AV3="","",practices!AV3) ->  | J78: Suturing | K78: 4.857142857
A79: Anaesthesia | B79: =IF(practices!AQ4="","",practices!AQ4) -> 2 | C79: =IF(practices!AR4="","",practices!AR4) -> 2 | D79: =IF(practices!AS4="","",practices!AS4) -> 2 | E79: =IF(practices!AT4="","",practices!AT4) -> 3 | F79: =IF(practices!AU4="","",practices!AU4) -> 3 | G79: =IF(practices!AV4="","",practices!AV4) ->  | J79: Zebrafish | K79: 4.714285714
A80: Anaesthesia | B80: =IF(practices!AQ5="","",practices!AQ5) -> 5 | C80: =IF(practices!AR5="","",practices!AR5) -> 3 | D80: =IF(practices!AS5="","",practices!AS5) -> 5 | E80: =IF(practices!AT5="","",practices!AT5) -> 5 | F80: =IF(practices!AU5="","",practices!AU5) -> 4 | G80: =IF(practices!AV5="","",practices!AV5) -> 5 | J80: Végösszeg | K80: 4.838235294
A81: Anaesthesia | B81: =IF(practices!AQ6="","",practices!AQ6) -> 5 | C81: =IF(practices!AR6="","",practices!AR6) -> 5 | D81: =IF(practices!AS6="","",practices!AS6) -> 5 | E81: =IF(practices!AT6="","",practices!AT6) -> 5 | F81: =IF(practices!AU6="","",practices!AU6) -> 5 | G81: =IF(practices!AV6="","",practices!AV6) -> 5
A82: Anaesthesia | B82: =IF(practices!AQ7="","",practices!AQ7) -> 5 | C82: =IF(practices!AR7="","",practices!AR7) -> 3 | D82: =IF(practices!AS7="","",practices!AS7) -> 5 | E82: =IF(practices!AT7="","",practices!AT7) -> 4 | F82: =IF(practices!AU7="","",practices!AU7) -> 4 | G82: =IF(practices!AV7="","",practices!AV7) -> 4
A83: Anaesthesia | B83: =IF(practices!AQ8="","",practices!AQ8) -> 5 | C83: =IF(practices!AR8="","",practices!AR8) -> 5 | D83: =IF(practices!AS8="","",practices!AS8) -> 5 | E83: =IF(practices!AT8="","",practices!AT8) -> 5 | F83: =IF(practices!AU8="","",practices!AU8) -> 5 | G83: =IF(practices!AV8="","",practices!AV8) -> 5
A84: Anaesthesia | B84: =IF(practices!AQ9="","",practices!AQ9) -> 5 | C84: =IF(practices!AR9="","",practices!AR9) -> 5 | D84: =IF(practices!AS9="","",practices!AS9) -> 5 | E84: =IF(practices!AT9="","",practices!AT9) -> 5 | F84: =IF(practices!AU9="","",practices!AU9) -> 5 | G84: =IF(practices!AV9="","",practices!AV9) -> 
A85: Anaesthesia | B85: =IF(practices!AQ10="","",practices!AQ10) -> 5 | C85: =IF(practices!AR10="","",practices!AR10) -> 5 | D85: =IF(practices!AS10="","",practices!AS10) -> 5 | E85: =IF(practices!AT10="","",practices!AT10) -> 5 | F85: =IF(practices!AU10="","",practices!AU10) -> 5 | G85: =IF(practices!AV10="","",practices!AV10) -> 5
A86: Anaesthesia | B86: =IF(practices!AQ11="","",practices!AQ11) -> 5 | C86: =IF(practices!AR11="","",practices!AR11) -> 5 | D86: =IF(practices!AS11="","",practices!AS11) -> 5 | E86: =IF(practices!AT11="","",practices!AT11) -> 5 | F86: =IF(practices!AU11="","",practices!AU11) -> 5 | G86: =IF(practices!AV11="","",practices!AV11) -> 
A87: Anaesthesia | B87: =IF(practices!AQ12="","",practices!AQ12) -> 5 | C87: =IF(practices!AR12="","",practices!AR12) -> 5 | D87: =IF(practices!AS12="","",practices!AS12) -> 5 | E87: =IF(practices!AT12="","",practices!AT12) -> 5 | F87: =IF(practices!AU12="","",practices!AU12) -> 5 | G87: =IF(practices!AV12="","",practices!AV12) -> 5 | J87: Sorcímkék | K87: Átlag / Syllabus
A88: Anaesthesia | B88: =IF(practices!AQ13="","",practices!AQ13) -> 5 | C88: =IF(practices!AR13="","",practices!AR13) -> 5 | D88: =IF(practices!AS13="","",practices!AS13) -> 5 | E88: =IF(practices!AT13="","",practices!AT13) -> 5 | F88: =IF(practices!AU13="","",practices!AU13) -> 5 | G88: =IF(practices!AV13="","",practices!AV13) -> 5 | J88: Alternatives | K88: 4.9
A89: Anaesthesia | B89: =IF(practices!AQ14="","",practices!AQ14) -> 5 | C89: =IF(practices!AR14="","",practices!AR14) -> 5 | D89: =IF(practices!AS14="","",practices!AS14) -> 5 | E89: =IF(practices!AT14="","",practices!AT14) -> 5 | F89: =IF(practices!AU14="","",practices!AU14) -> 5 | G89: =IF(practices!AV14="","",practices!AV14) -> 5 | J89: Anaesthesia | K89: 4.909090909
A90: Anaesthesia | B90: =IF(practices!AQ15="","",practices!AQ15) -> 5 | C90: =IF(practices!AR15="","",practices!AR15) -> 5 | D90: =IF(practices!AS15="","",practices!AS15) -> 5 | E90: =IF(practices!AT15="","",practices!AT15) -> 5 | F90: =IF(practices!AU15="","",practices!AU15) -> 5 | G90: =IF(practices!AV15="","",practices!AV15) -> 5 | J90: Aseptic techniques | K90: 4.846153846
A91: Anaesthesia | B91: =IF(practices!AQ16="","",practices!AQ16) -> 5 | C91: =IF(practices!AR16="","",practices!AR16) -> 5 | D91: =IF(practices!AS16="","",practices!AS16) -> 5 | E91: =IF(practices!AT16="","",practices!AT16) -> 5 | F91: =IF(practices!AU16="","",practices!AU16) -> 5 | G91: =IF(practices!AV16="","",practices!AV16) -> 5 | J91: Behaviour | K91: 4.833333333
A92: Aseptic techniques | B92: =IF(practices!AY2="","",practices!AY2) -> 5 | C92: =IF(practices!AZ2="","",practices!AZ2) -> 5 | D92: =IF(practices!BA2="","",practices!BA2) -> 5 | E92: =IF(practices!BB2="","",practices!BB2) -> 5 | F92: =IF(practices!BC2="","",practices!BC2) -> 5 | G92: =IF(practices!BD2="","",practices!BD2) -> 5 | J92: Housing | K92: 4.923076923
A93: Aseptic techniques | B93: =IF(practices!AY3="","",practices!AY3) ->  | C93: =IF(practices!AZ3="","",practices!AZ3) ->  | D93: =IF(practices!BA3="","",practices!BA3) ->  | E93: =IF(practices!BB3="","",practices!BB3) ->  | F93: =IF(practices!BC3="","",practices!BC3) ->  | G93: =IF(practices!BD3="","",practices!BD3) ->  | J93: Infusion on phantoms | K93: 4.923076923
A94: Aseptic techniques | B94: =IF(practices!AY4="","",practices!AY4) -> 5 | C94: =IF(practices!AZ4="","",practices!AZ4) -> 5 | D94: =IF(practices!BA4="","",practices!BA4) -> 5 | E94: =IF(practices!BB4="","",practices!BB4) -> 5 | F94: =IF(practices!BC4="","",practices!BC4) -> 5 | G94: =IF(practices!BD4="","",practices!BD4) -> 5 | J94: Restraint | K94: 4.916666667
A95: Aseptic techniques | B95: =IF(practices!AY5="","",practices!AY5) -> 4 | C95: =IF(practices!AZ5="","",practices!AZ5) -> 3 | D95: =IF(practices!BA5="","",practices!BA5) -> 5 | E95: =IF(practices!BB5="","",practices!BB5) -> 5 | F95: =IF(practices!BC5="","",practices!BC5) -> 4 | G95: =IF(practices!BD5="","",practices!BD5) -> 5 | J95: Surgical procedures | K95: 5
A96: Aseptic techniques | B96: =IF(practices!AY6="","",practices!AY6) -> 5 | C96: =IF(practices!AZ6="","",practices!AZ6) -> 5 | D96: =IF(practices!BA6="","",practices!BA6) -> 5 | E96: =IF(practices!BB6="","",practices!BB6) -> 5 | F96: =IF(practices!BC6="","",practices!BC6) -> 5 | G96: =IF(practices!BD6="","",practices!BD6) -> 5 | J96: Suturing | K96: 4.923076923
A97: Aseptic techniques | B97: =IF(practices!AY7="","",practices!AY7) -> 5 | C97: =IF(practices!AZ7="","",practices!AZ7) -> 5 | D97: =IF(practices!BA7="","",practices!BA7) -> 5 | E97: =IF(practices!BB7="","",practices!BB7) -> 5 | F97: =IF(practices!BC7="","",practices!BC7) -> 5 | G97: =IF(practices!BD7="","",practices!BD7) -> 4 | J97: Zebrafish | K97: 4.692307692
A98: Aseptic techniques | B98: =IF(practices!AY8="","",practices!AY8) -> 5 | C98: =IF(practices!AZ8="","",practices!AZ8) -> 5 | D98: =IF(practices!BA8="","",practices!BA8) -> 5 | E98: =IF(practices!BB8="","",practices!BB8) -> 5 | F98: =IF(practices!BC8="","",practices!BC8) -> 5 | G98: =IF(practices!BD8="","",practices!BD8) -> 5 | J98: Végösszeg | K98: 4.885245902
A99: Aseptic techniques | B99: =IF(practices!AY9="","",practices!AY9) -> 5 | C99: =IF(practices!AZ9="","",practices!AZ9) -> 5 | D99: =IF(practices!BA9="","",practices!BA9) -> 5 | E99: =IF(practices!BB9="","",practices!BB9) -> 5 | F99: =IF(practices!BC9="","",practices!BC9) -> 5 | G99: =IF(practices!BD9="","",practices!BD9) -> 
A100: Aseptic techniques | B100: =IF(practices!AY10="","",practices!AY10) -> 5 | C100: =IF(practices!AZ10="","",practices!AZ10) -> 5 | D100: =IF(practices!BA10="","",practices!BA10) -> 5 | E100: =IF(practices!BB10="","",practices!BB10) -> 5 | F100: =IF(practices!BC10="","",practices!BC10) -> 5 | G100: =IF(practices!BD10="","",practices!BD10) -> 5
A101: Aseptic techniques | B101: =IF(practices!AY11="","",practices!AY11) -> 5 | C101: =IF(practices!AZ11="","",practices!AZ11) -> 4 | D101: =IF(practices!BA11="","",practices!BA11) -> 5 | E101: =IF(practices!BB11="","",practices!BB11) -> 4 | F101: =IF(practices!BC11="","",practices!BC11) -> 5 | G101: =IF(practices!BD11="","",practices!BD11) -> 4
A102: Aseptic techniques | B102: =IF(practices!AY12="","",practices!AY12) -> 5 | C102: =IF(practices!AZ12="","",practices!AZ12) -> 5 | D102: =IF(practices!BA12="","",practices!BA12) -> 5 | E102: =IF(practices!BB12="","",practices!BB12) -> 5 | F102: =IF(practices!BC12="","",practices!BC12) -> 5 | G102: =IF(practices!BD12="","",practices!BD12) -> 5
A103: Aseptic techniques | B103: =IF(practices!AY13="","",practices!AY13) -> 5 | C103: =IF(practices!AZ13="","",practices!AZ13) -> 5 | D103: =IF(practices!BA13="","",practices!BA13) -> 5 | E103: =IF(practices!BB13="","",practices!BB13) -> 5 | F103: =IF(practices!BC13="","",practices!BC13) -> 5 | G103: =IF(practices!BD13="","",practices!BD13) -> 5
A104: Aseptic techniques | B104: =IF(practices!AY14="","",practices!AY14) -> 5 | C104: =IF(practices!AZ14="","",practices!AZ14) -> 5 | D104: =IF(practices!BA14="","",practices!BA14) -> 5 | E104: =IF(practices!BB14="","",practices!BB14) -> 5 | F104: =IF(practices!BC14="","",practices!BC14) -> 5 | G104: =IF(practices!BD14="","",practices!BD14) -> 5
A105: Aseptic techniques | B105: =IF(practices!AY15="","",practices!AY15) -> 5 | C105: =IF(practices!AZ15="","",practices!AZ15) -> 5 | D105: =IF(practices!BA15="","",practices!BA15) -> 5 | E105: =IF(practices!BB15="","",practices!BB15) -> 5 | F105: =IF(practices!BC15="","",practices!BC15) -> 5 | G105: =IF(practices!BD15="","",practices!BD15) -> 5
A106: Aseptic techniques | B106: =IF(practices!AY16="","",practices!AY16) -> 5 | C106: =IF(practices!AZ16="","",practices!AZ16) -> 5 | D106: =IF(practices!BA16="","",practices!BA16) -> 5 | E106: =IF(practices!BB16="","",practices!BB16) -> 5 | F106: =IF(practices!BC16="","",practices!BC16) -> 5 | G106: =IF(practices!BD16="","",practices!BD16) -> 5
A107: Suturing | B107: =IF(practices!BG2="","",practices!BG2) -> 5 | C107: =IF(practices!BH2="","",practices!BH2) -> 5 | D107: =IF(practices!BI2="","",practices!BI2) -> 5 | E107: =IF(practices!BJ2="","",practices!BJ2) -> 5 | F107: =IF(practices!BK2="","",practices!BK2) -> 5 | G107: =IF(practices!BL2="","",practices!BL2) -> 5
A108: Suturing | B108: =IF(practices!BG3="","",practices!BG3) ->  | C108: =IF(practices!BH3="","",practices!BH3) ->  | D108: =IF(practices!BI3="","",practices!BI3) ->  | E108: =IF(practices!BJ3="","",practices!BJ3) ->  | F108: =IF(practices!BK3="","",practices!BK3) ->  | G108: =IF(practices!BL3="","",practices!BL3) -> 
A109: Suturing | B109: =IF(practices!BG4="","",practices!BG4) -> 5 | C109: =IF(practices!BH4="","",practices!BH4) -> 5 | D109: =IF(practices!BI4="","",practices!BI4) -> 5 | E109: =IF(practices!BJ4="","",practices!BJ4) -> 5 | F109: =IF(practices!BK4="","",practices!BK4) -> 5 | G109: =IF(practices!BL4="","",practices!BL4) -> 5
A110: Suturing | B110: =IF(practices!BG5="","",practices!BG5) -> 4 | C110: =IF(practices!BH5="","",practices!BH5) -> 3 | D110: =IF(practices!BI5="","",practices!BI5) -> 5 | E110: =IF(practices!BJ5="","",practices!BJ5) -> 5 | F110: =IF(practices!BK5="","",practices!BK5) -> 4 | G110: =IF(practices!BL5="","",practices!BL5) -> 5
A111: Suturing | B111: =IF(practices!BG6="","",practices!BG6) -> 5 | C111: =IF(practices!BH6="","",practices!BH6) -> 5 | D111: =IF(practices!BI6="","",practices!BI6) -> 5 | E111: =IF(practices!BJ6="","",practices!BJ6) -> 5 | F111: =IF(practices!BK6="","",practices!BK6) -> 5 | G111: =IF(practices!BL6="","",practices!BL6) -> 5
A112: Suturing | B112: =IF(practices!BG7="","",practices!BG7) -> 5 | C112: =IF(practices!BH7="","",practices!BH7) -> 5 | D112: =IF(practices!BI7="","",practices!BI7) -> 5 | E112: =IF(practices!BJ7="","",practices!BJ7) -> 5 | F112: =IF(practices!BK7="","",practices!BK7) -> 5 | G112: =IF(practices!BL7="","",practices!BL7) -> 4
A113: Suturing | B113: =IF(practices!BG8="","",practices!BG8) -> 5 | C113: =IF(practices!BH8="","",practices!BH8) -> 5 | D113: =IF(practices!BI8="","",practices!BI8) -> 5 | E113: =IF(practices!BJ8="","",practices!BJ8) -> 5 | F113: =IF(practices!BK8="","",practices!BK8) -> 5 | G113: =IF(practices!BL8="","",practices!BL8) -> 5
A114: Suturing | B114: =IF(practices!BG9="","",practices!BG9) -> 5 | C114: =IF(practices!BH9="","",practices!BH9) -> 5 | D114: =IF(practices!BI9="","",practices!BI9) -> 5 | E114: =IF(practices!BJ9="","",practices!BJ9) -> 5 | F114: =IF(practices!BK9="","",practices!BK9) -> 5 | G114: =IF(practices!BL9="","",practices!BL9) -> 
A115: Suturing | B115: =IF(practices!BG10="","",practices!BG10) -> 5 | C115: =IF(practices!BH10="","",practices!BH10) -> 5 | D115: =IF(practices!BI10="","",practices!BI10) -> 5 | E115: =IF(practices!BJ10="","",practices!BJ10) -> 5 | F115: =IF(practices!BK10="","",practices!BK10) -> 5 | G115: =IF(practices!BL10="","",practices!BL10) -> 5
A116: Suturing | B116: =IF(practices!BG11="","",practices!BG11) -> 5 | C116: =IF(practices!BH11="","",practices!BH11) -> 4 | D116: =IF(practices!BI11="","",practices!BI11) -> 4 | E116: =IF(practices!BJ11="","",practices!BJ11) -> 5 | F116: =IF(practices!BK11="","",practices!BK11) -> 4 | G116: =IF(practices!BL11="","",practices!BL11) -> 5
A117: Suturing | B117: =IF(practices!BG12="","",practices!BG12) -> 5 | C117: =IF(practices!BH12="","",practices!BH12) -> 5 | D117: =IF(practices!BI12="","",practices!BI12) -> 5 | E117: =IF(practices!BJ12="","",practices!BJ12) -> 5 | F117: =IF(practices!BK12="","",practices!BK12) -> 5 | G117: =IF(practices!BL12="","",practices!BL12) -> 5
A118: Suturing | B118: =IF(practices!BG13="","",practices!BG13) -> 5 | C118: =IF(practices!BH13="","",practices!BH13) -> 5 | D118: =IF(practices!BI13="","",practices!BI13) -> 5 | E118: =IF(practices!BJ13="","",practices!BJ13) -> 5 | F118: =IF(practices!BK13="","",practices!BK13) -> 5 | G118: =IF(practices!BL13="","",practices!BL13) -> 5
A119: Suturing | B119: =IF(practices!BG14="","",practices!BG14) -> 5 | C119: =IF(practices!BH14="","",practices!BH14) -> 5 | D119: =IF(practices!BI14="","",practices!BI14) -> 5 | E119: =IF(practices!BJ14="","",practices!BJ14) -> 5 | F119: =IF(practices!BK14="","",practices!BK14) -> 5 | G119: =IF(practices!BL14="","",practices!BL14) -> 5
A120: Suturing | B120: =IF(practices!BG15="","",practices!BG15) -> 5 | C120: =IF(practices!BH15="","",practices!BH15) -> 5 | D120: =IF(practices!BI15="","",practices!BI15) -> 5 | E120: =IF(practices!BJ15="","",practices!BJ15) -> 5 | F120: =IF(practices!BK15="","",practices!BK15) -> 5 | G120: =IF(practices!BL15="","",practices!BL15) -> 5
A121: Suturing | B121: =IF(practices!BG16="","",practices!BG16) -> 5 | C121: =IF(practices!BH16="","",practices!BH16) -> 5 | D121: =IF(practices!BI16="","",practices!BI16) -> 5 | E121: =IF(practices!BJ16="","",practices!BJ16) -> 5 | F121: =IF(practices!BK16="","",practices!BK16) -> 5 | G121: =IF(practices!BL16="","",practices!BL16) -> 5
A122: Surgical procedures | B122: =IF(practices!BO2="","",practices!BO2) -> 5 | C122: =IF(practices!BP2="","",practices!BP2) -> 3 | D122: =IF(practices!BQ2="","",practices!BQ2) -> 5 | E122: =IF(practices!BR2="","",practices!BR2) -> 5 | F122: =IF(practices!BS2="","",practices!BS2) -> 4 | G122: =IF(practices!BT2="","",practices!BT2) -> 5
A123: Surgical procedures | B123: =IF(practices!BO3="","",practices!BO3) ->  | C123: =IF(practices!BP3="","",practices!BP3) ->  | D123: =IF(practices!BQ3="","",practices!BQ3) ->  | E123: =IF(practices!BR3="","",practices!BR3) ->  | F123: =IF(practices!BS3="","",practices!BS3) ->  | G123: =IF(practices!BT3="","",practices!BT3) -> 
A124: Surgical procedures | B124: =IF(practices!BO4="","",practices!BO4) -> 5 | C124: =IF(practices!BP4="","",practices!BP4) -> 5 | D124: =IF(practices!BQ4="","",practices!BQ4) -> 5 | E124: =IF(practices!BR4="","",practices!BR4) -> 5 | F124: =IF(practices!BS4="","",practices!BS4) -> 5 | G124: =IF(practices!BT4="","",practices!BT4) -> 5
A125: Surgical procedures | B125: =IF(practices!BO5="","",practices!BO5) -> 5 | C125: =IF(practices!BP5="","",practices!BP5) -> 5 | D125: =IF(practices!BQ5="","",practices!BQ5) -> 5 | E125: =IF(practices!BR5="","",practices!BR5) -> 5 | F125: =IF(practices!BS5="","",practices!BS5) -> 5 | G125: =IF(practices!BT5="","",practices!BT5) -> 5
A126: Surgical procedures | B126: =IF(practices!BO6="","",practices!BO6) -> 5 | C126: =IF(practices!BP6="","",practices!BP6) -> 5 | D126: =IF(practices!BQ6="","",practices!BQ6) -> 5 | E126: =IF(practices!BR6="","",practices!BR6) -> 5 | F126: =IF(practices!BS6="","",practices!BS6) -> 5 | G126: =IF(practices!BT6="","",practices!BT6) -> 5
A127: Surgical procedures | B127: =IF(practices!BO7="","",practices!BO7) -> 5 | C127: =IF(practices!BP7="","",practices!BP7) -> 5 | D127: =IF(practices!BQ7="","",practices!BQ7) -> 5 | E127: =IF(practices!BR7="","",practices!BR7) -> 5 | F127: =IF(practices!BS7="","",practices!BS7) -> 5 | G127: =IF(practices!BT7="","",practices!BT7) -> 5
A128: Surgical procedures | B128: =IF(practices!BO8="","",practices!BO8) -> 5 | C128: =IF(practices!BP8="","",practices!BP8) -> 5 | D128: =IF(practices!BQ8="","",practices!BQ8) -> 5 | E128: =IF(practices!BR8="","",practices!BR8) -> 5 | F128: =IF(practices!BS8="","",practices!BS8) -> 5 | G128: =IF(practices!BT8="","",practices!BT8) -> 5
A129: Surgical procedures | B129: =IF(practices!BO9="","",practices!BO9) -> 5 | C129: =IF(practices!BP9="","",practices!BP9) -> 5 | D129: =IF(practices!BQ9="","",practices!BQ9) -> 5 | E129: =IF(practices!BR9="","",practices!BR9) -> 5 | F129: =IF(practices!BS9="","",practices!BS9) -> 5 | G129: =IF(practices!BT9="","",practices!BT9) -> 
A130: Surgical procedures | B130: =IF(practices!BO10="","",practices!BO10) -> 5 | C130: =IF(practices!BP10="","",practices!BP10) -> 5 | D130: =IF(practices!BQ10="","",practices!BQ10) -> 5 | E130: =IF(practices!BR10="","",practices!BR10) -> 5 | F130: =IF(practices!BS10="","",practices!BS10) -> 5 | G130: =IF(practices!BT10="","",practices!BT10) -> 5
A131: Surgical procedures | B131: =IF(practices!BO11="","",practices!BO11) -> 5 | C131: =IF(practices!BP11="","",practices!BP11) -> 5 | D131: =IF(practices!BQ11="","",practices!BQ11) -> 5 | E131: =IF(practices!BR11="","",practices!BR11) -> 5 | F131: =IF(practices!BS11="","",practices!BS11) -> 5 | G131: =IF(practices!BT11="","",practices!BT11) -> 5
A132: Surgical procedures | B132: =IF(practices!BO12="","",practices!BO12) ->  | C132: =IF(practices!BP12="","",practices!BP12) ->  | D132: =IF(practices!BQ12="","",practices!BQ12) ->  | E132: =IF(practices!BR12="","",practices!BR12) ->  | F132: =IF(practices!BS12="","",practices!BS12) ->  | G132: =IF(practices!BT12="","",practices!BT12) -> 
A133: Surgical procedures | B133: =IF(practices!BO13="","",practices!BO13) -> 5 | C133: =IF(practices!BP13="","",practices!BP13) -> 5 | D133: =IF(practices!BQ13="","",practices!BQ13) -> 5 | E133: =IF(practices!BR13="","",practices!BR13) -> 5 | F133: =IF(practices!BS13="","",practices!BS13) -> 5 | G133: =IF(practices!BT13="","",practices!BT13) -> 5
A134: Surgical procedures | B134: =IF(practices!BO14="","",practices!BO14) -> 5 | C134: =IF(practices!BP14="","",practices!BP14) -> 5 | D134: =IF(practices!BQ14="","",practices!BQ14) -> 5 | E134: =IF(practices!BR14="","",practices!BR14) -> 5 | F134: =IF(practices!BS14="","",practices!BS14) -> 5 | G134: =IF(practices!BT14="","",practices!BT14) -> 5
A135: Surgical procedures | B135: =IF(practices!BO15="","",practices!BO15) -> 5 | C135: =IF(practices!BP15="","",practices!BP15) -> 5 | D135: =IF(practices!BQ15="","",practices!BQ15) -> 5 | E135: =IF(practices!BR15="","",practices!BR15) -> 5 | F135: =IF(practices!BS15="","",practices!BS15) -> 5 | G135: =IF(practices!BT15="","",practices!BT15) -> 5
A136: Surgical procedures | B136: =IF(practices!BO16="","",practices!BO16) -> 5 | C136: =IF(practices!BP16="","",practices!BP16) -> 5 | D136: =IF(practices!BQ16="","",practices!BQ16) -> 5 | E136: =IF(practices!BR16="","",practices!BR16) -> 5 | F136: =IF(practices!BS16="","",practices!BS16) -> 5 | G136: =IF(practices!BT16="","",practices!BT16) -> 5
A137: Alternatives | B137: =IF(practices!BW2="","",practices!BW2) ->  | C137: =IF(practices!BX2="","",practices!BX2) ->  | D137: =IF(practices!BY2="","",practices!BY2) ->  | E137: =IF(practices!BZ2="","",practices!BZ2) ->  | F137: =IF(practices!CA2="","",practices!CA2) ->  | G137: =IF(practices!CB2="","",practices!CB2) -> 
A138: Alternatives | B138: =IF(practices!BW3="","",practices!BW3) ->  | C138: =IF(practices!BX3="","",practices!BX3) ->  | D138: =IF(practices!BY3="","",practices!BY3) ->  | E138: =IF(practices!BZ3="","",practices!BZ3) ->  | F138: =IF(practices!CA3="","",practices!CA3) ->  | G138: =IF(practices!CB3="","",practices!CB3) -> 
A139: Alternatives | B139: =IF(practices!BW4="","",practices!BW4) -> 5 | C139: =IF(practices!BX4="","",practices!BX4) -> 5 | D139: =IF(practices!BY4="","",practices!BY4) -> 5 | E139: =IF(practices!BZ4="","",practices!BZ4) -> 5 | F139: =IF(practices!CA4="","",practices!CA4) -> 5 | G139: =IF(practices!CB4="","",practices!CB4) -> 5
A140: Alternatives | B140: =IF(practices!BW5="","",practices!BW5) -> 4 | C140: =IF(practices!BX5="","",practices!BX5) -> 4 | D140: =IF(practices!BY5="","",practices!BY5) -> 4 | E140: =IF(practices!BZ5="","",practices!BZ5) -> 4 | F140: =IF(practices!CA5="","",practices!CA5) -> 4 | G140: =IF(practices!CB5="","",practices!CB5) -> 4
A141: Alternatives | B141: =IF(practices!BW6="","",practices!BW6) ->  | C141: =IF(practices!BX6="","",practices!BX6) ->  | D141: =IF(practices!BY6="","",practices!BY6) ->  | E141: =IF(practices!BZ6="","",practices!BZ6) ->  | F141: =IF(practices!CA6="","",practices!CA6) ->  | G141: =IF(practices!CB6="","",practices!CB6) -> 
A142: Alternatives | B142: =IF(practices!BW7="","",practices!BW7) -> 5 | C142: =IF(practices!BX7="","",practices!BX7) -> 5 | D142: =IF(practices!BY7="","",practices!BY7) -> 5 | E142: =IF(practices!BZ7="","",practices!BZ7) -> 5 | F142: =IF(practices!CA7="","",practices!CA7) -> 4 | G142: =IF(practices!CB7="","",practices!CB7) -> 5
A143: Alternatives | B143: =IF(practices!BW8="","",practices!BW8) -> 5 | C143: =IF(practices!BX8="","",practices!BX8) -> 5 | D143: =IF(practices!BY8="","",practices!BY8) -> 5 | E143: =IF(practices!BZ8="","",practices!BZ8) -> 5 | F143: =IF(practices!CA8="","",practices!CA8) -> 5 | G143: =IF(practices!CB8="","",practices!CB8) -> 5
A144: Alternatives | B144: =IF(practices!BW9="","",practices!BW9) -> 5 | C144: =IF(practices!BX9="","",practices!BX9) -> 5 | D144: =IF(practices!BY9="","",practices!BY9) -> 5 | E144: =IF(practices!BZ9="","",practices!BZ9) -> 5 | F144: =IF(practices!CA9="","",practices!CA9) -> 5 | G144: =IF(practices!CB9="","",practices!CB9) -> 
A145: Alternatives | B145: =IF(practices!BW10="","",practices!BW10) -> 5 | C145: =IF(practices!BX10="","",practices!BX10) -> 5 | D145: =IF(practices!BY10="","",practices!BY10) -> 5 | E145: =IF(practices!BZ10="","",practices!BZ10) -> 5 | F145: =IF(practices!CA10="","",practices!CA10) -> 5 | G145: =IF(practices!CB10="","",practices!CB10) -> 5
A146: Alternatives | B146: =IF(practices!BW11="","",practices!BW11) -> 5 | C146: =IF(practices!BX11="","",practices!BX11) -> 5 | D146: =IF(practices!BY11="","",practices!BY11) -> 5 | E146: =IF(practices!BZ11="","",practices!BZ11) -> 5 | F146: =IF(practices!CA11="","",practices!CA11) -> 5 | G146: =IF(practices!CB11="","",practices!CB11) -> 5
A147: Alternatives | B147: =IF(practices!BW12="","",practices!BW12) -> 5 | C147: =IF(practices!BX12="","",practices!BX12) -> 5 | D147: =IF(practices!BY12="","",practices!BY12) -> 5 | E147: =IF(practices!BZ12="","",practices!BZ12) -> 5 | F147: =IF(practices!CA12="","",practices!CA12) -> 5 | G147: =IF(practices!CB12="","",practices!CB12) -> 5
A148: Alternatives | B148: =IF(practices!BW13="","",practices!BW13) ->  | C148: =IF(practices!BX13="","",practices!BX13) ->  | D148: =IF(practices!BY13="","",practices!BY13) ->  | E148: =IF(practices!BZ13="","",practices!BZ13) ->  | F148: =IF(practices!CA13="","",practices!CA13) ->  | G148: =IF(practices!CB13="","",practices!CB13) -> 
A149: Alternatives | B149: =IF(practices!BW14="","",practices!BW14) -> 5 | C149: =IF(practices!BX14="","",practices!BX14) -> 5 | D149: =IF(practices!BY14="","",practices!BY14) -> 5 | E149: =IF(practices!BZ14="","",practices!BZ14) -> 5 | F149: =IF(practices!CA14="","",practices!CA14) -> 5 | G149: =IF(practices!CB14="","",practices!CB14) -> 5
A150: Alternatives | B150: =IF(practices!BW15="","",practices!BW15) -> 5 | C150: =IF(practices!BX15="","",practices!BX15) -> 5 | D150: =IF(practices!BY15="","",practices!BY15) -> 5 | E150: =IF(practices!BZ15="","",practices!BZ15) -> 5 | F150: =IF(practices!CA15="","",practices!CA15) -> 5 | G150: =IF(practices!CB15="","",practices!CB15) -> 5
A151: Alternatives | B151: =IF(practices!BW16="","",practices!BW16) -> 5 | C151: =IF(practices!BX16="","",practices!BX16) -> 5 | D151: =IF(practices!BY16="","",practices!BY16) -> 5 | E151: =IF(practices!BZ16="","",practices!BZ16) -> 5 | F151: =IF(practices!CA16="","",practices!CA16) -> 5 | G151: =IF(practices!CB16="","",practices!CB16) -> 5

Sheet lectures data, grafik
A1: LECTURES | B1: Subject-specific expertise | C1: Style of performance | D1: Choice of subject | E1: Handouts
A2: History | B2: =IF('lectures and seminars'!C2="","",'lectures and seminars'!C2) -> 5 | C2: =IF('lectures and seminars'!D2="","",'lectures and seminars'!D2) -> 5 | D2: =IF('lectures and seminars'!E2="","",'lectures and seminars'!E2) -> 5 | E2: =IF('lectures and seminars'!F2="","",'lectures and seminars'!F2) -> 5 | H2: Sorcímkék | I2: Átlag / Subject-specific expertise
A3: History | B3: =IF('lectures and seminars'!C3="","",'lectures and seminars'!C3) -> 5 | C3: =IF('lectures and seminars'!D3="","",'lectures and seminars'!D3) -> 5 | D3: =IF('lectures and seminars'!E3="","",'lectures and seminars'!E3) -> 5 | E3: =IF('lectures and seminars'!F3="","",'lectures and seminars'!F3) -> 5 | H3: 3 Rs | I3: 4.866666667
A4: History | B4: =IF('lectures and seminars'!C4="","",'lectures and seminars'!C4) -> 5 | C4: =IF('lectures and seminars'!D4="","",'lectures and seminars'!D4) -> 5 | D4: =IF('lectures and seminars'!E4="","",'lectures and seminars'!E4) -> 5 | E4: =IF('lectures and seminars'!F4="","",'lectures and seminars'!F4) -> 5 | H4: Advanced anaesthesia | I4: 4.928571429
A5: History | B5: =IF('lectures and seminars'!C5="","",'lectures and seminars'!C5) -> 4 | C5: =IF('lectures and seminars'!D5="","",'lectures and seminars'!D5) -> 4 | D5: =IF('lectures and seminars'!E5="","",'lectures and seminars'!E5) -> 4 | E5: =IF('lectures and seminars'!F5="","",'lectures and seminars'!F5) -> 4 | H5: Alternatives | I5: 4.692307692
A6: History | B6: =IF('lectures and seminars'!C6="","",'lectures and seminars'!C6) -> 5 | C6: =IF('lectures and seminars'!D6="","",'lectures and seminars'!D6) -> 5 | D6: =IF('lectures and seminars'!E6="","",'lectures and seminars'!E6) -> 5 | E6: =IF('lectures and seminars'!F6="","",'lectures and seminars'!F6) -> 5 | H6: Anaesthesia | I6: 4.928571429
A7: History | B7: =IF('lectures and seminars'!C7="","",'lectures and seminars'!C7) -> 5 | C7: =IF('lectures and seminars'!D7="","",'lectures and seminars'!D7) -> 5 | D7: =IF('lectures and seminars'!E7="","",'lectures and seminars'!E7) -> 5 | E7: =IF('lectures and seminars'!F7="","",'lectures and seminars'!F7) -> 5 | H7: Basic surgical procedures | I7: 4.928571429
A8: History | B8: =IF('lectures and seminars'!C8="","",'lectures and seminars'!C8) -> 5 | C8: =IF('lectures and seminars'!D8="","",'lectures and seminars'!D8) -> 5 | D8: =IF('lectures and seminars'!E8="","",'lectures and seminars'!E8) -> 5 | E8: =IF('lectures and seminars'!F8="","",'lectures and seminars'!F8) -> 5 | H8: Basics of statistics | I8: 5
A9: History | B9: =IF('lectures and seminars'!C9="","",'lectures and seminars'!C9) -> 5 | C9: =IF('lectures and seminars'!D9="","",'lectures and seminars'!D9) -> 5 | D9: =IF('lectures and seminars'!E9="","",'lectures and seminars'!E9) -> 5 | E9: =IF('lectures and seminars'!F9="","",'lectures and seminars'!F9) -> 5 | H9: Behaviour | I9: 4.357142857
A10: History | B10: =IF('lectures and seminars'!C10="","",'lectures and seminars'!C10) -> 5 | C10: =IF('lectures and seminars'!D10="","",'lectures and seminars'!D10) -> 5 | D10: =IF('lectures and seminars'!E10="","",'lectures and seminars'!E10) -> 5 | E10: =IF('lectures and seminars'!F10="","",'lectures and seminars'!F10) -> 5 | H10: Bibliometrics | I10: 5
A11: History | B11: =IF('lectures and seminars'!C11="","",'lectures and seminars'!C11) -> 5 | C11: =IF('lectures and seminars'!D11="","",'lectures and seminars'!D11) -> 5 | D11: =IF('lectures and seminars'!E11="","",'lectures and seminars'!E11) -> 5 | E11: =IF('lectures and seminars'!F11="","",'lectures and seminars'!F11) -> 5 | H11: Environmental enrichment | I11: 5
A12: History | B12: =IF('lectures and seminars'!C12="","",'lectures and seminars'!C12) -> 5 | C12: =IF('lectures and seminars'!D12="","",'lectures and seminars'!D12) -> 5 | D12: =IF('lectures and seminars'!E12="","",'lectures and seminars'!E12) -> 5 | E12: =IF('lectures and seminars'!F12="","",'lectures and seminars'!F12) -> 5 | H12: Ethics | I12: 5
A13: History | B13: =IF('lectures and seminars'!C13="","",'lectures and seminars'!C13) -> 5 | C13: =IF('lectures and seminars'!D13="","",'lectures and seminars'!D13) -> 5 | D13: =IF('lectures and seminars'!E13="","",'lectures and seminars'!E13) -> 5 | E13: =IF('lectures and seminars'!F13="","",'lectures and seminars'!F13) -> 5 | H13: Extrapolation | I13: 4.866666667
A14: History | B14: =IF('lectures and seminars'!C14="","",'lectures and seminars'!C14) -> 4 | C14: =IF('lectures and seminars'!D14="","",'lectures and seminars'!D14) -> 5 | D14: =IF('lectures and seminars'!E14="","",'lectures and seminars'!E14) -> 4 | E14: =IF('lectures and seminars'!F14="","",'lectures and seminars'!F14) -> 4 | H14: History | I14: 4.866666667
A15: History | B15: =IF('lectures and seminars'!C15="","",'lectures and seminars'!C15) -> 5 | C15: =IF('lectures and seminars'!D15="","",'lectures and seminars'!D15) -> 5 | D15: =IF('lectures and seminars'!E15="","",'lectures and seminars'!E15) -> 5 | E15: =IF('lectures and seminars'!F15="","",'lectures and seminars'!F15) -> 5 | H15: Housing | I15: 4.928571429
A16: History | B16: =IF('lectures and seminars'!C16="","",'lectures and seminars'!C16) -> 5 | C16: =IF('lectures and seminars'!D16="","",'lectures and seminars'!D16) -> 5 | D16: =IF('lectures and seminars'!E16="","",'lectures and seminars'!E16) -> 5 | E16: =IF('lectures and seminars'!F16="","",'lectures and seminars'!F16) -> 5 | H16: In vitro, ex vivo | I16: 4.916666667
A17: Law and 3 Rs | B17: =IF('lectures and seminars'!I2="","",'lectures and seminars'!I2) -> 5 | C17: =IF('lectures and seminars'!J2="","",'lectures and seminars'!J2) -> 5 | D17: =IF('lectures and seminars'!K2="","",'lectures and seminars'!K2) -> 5 | E17: =IF('lectures and seminars'!L2="","",'lectures and seminars'!L2) -> 5 | H17: Inbred, outbred | I17: 4.785714286
A18: Law and 3 Rs | B18: =IF('lectures and seminars'!I3="","",'lectures and seminars'!I3) -> 5 | C18: =IF('lectures and seminars'!J3="","",'lectures and seminars'!J3) -> 5 | D18: =IF('lectures and seminars'!K3="","",'lectures and seminars'!K3) -> 5 | E18: =IF('lectures and seminars'!L3="","",'lectures and seminars'!L3) -> 5 | H18: Large animal biology | I18: 4.933333333
A19: Law and 3 Rs | B19: =IF('lectures and seminars'!I4="","",'lectures and seminars'!I4) -> 4 | C19: =IF('lectures and seminars'!J4="","",'lectures and seminars'!J4) -> 5 | D19: =IF('lectures and seminars'!K4="","",'lectures and seminars'!K4) -> 4 | E19: =IF('lectures and seminars'!L4="","",'lectures and seminars'!L4) -> 4 | H19: Law and 3 Rs | I19: 4.866666667
A20: Law and 3 Rs | B20: =IF('lectures and seminars'!I5="","",'lectures and seminars'!I5) -> 5 | C20: =IF('lectures and seminars'!J5="","",'lectures and seminars'!J5) -> 5 | D20: =IF('lectures and seminars'!K5="","",'lectures and seminars'!K5) -> 5 | E20: =IF('lectures and seminars'!L5="","",'lectures and seminars'!L5) -> 5 | H20: Licensing | I20: 4.933333333
A21: Law and 3 Rs | B21: =IF('lectures and seminars'!I6="","",'lectures and seminars'!I6) -> 5 | C21: =IF('lectures and seminars'!J6="","",'lectures and seminars'!J6) -> 5 | D21: =IF('lectures and seminars'!K6="","",'lectures and seminars'!K6) -> 5 | E21: =IF('lectures and seminars'!L6="","",'lectures and seminars'!L6) -> 5 | H21: Licensing in practice | I21: 4.916666667
A22: Law and 3 Rs | B22: =IF('lectures and seminars'!I7="","",'lectures and seminars'!I7) -> 5 | C22: =IF('lectures and seminars'!J7="","",'lectures and seminars'!J7) -> 5 | D22: =IF('lectures and seminars'!K7="","",'lectures and seminars'!K7) -> 5 | E22: =IF('lectures and seminars'!L7="","",'lectures and seminars'!L7) -> 5 | H22: Microbiology | I22: 4.428571429
A23: Law and 3 Rs | B23: =IF('lectures and seminars'!I8="","",'lectures and seminars'!I8) -> 5 | C23: =IF('lectures and seminars'!J8="","",'lectures and seminars'!J8) -> 4 | D23: =IF('lectures and seminars'!K8="","",'lectures and seminars'!K8) -> 5 | E23: =IF('lectures and seminars'!L8="","",'lectures and seminars'!L8) -> 5 | H23: Min. inv. | I23: 4.846153846
A24: Law and 3 Rs | B24: =IF('lectures and seminars'!I9="","",'lectures and seminars'!I9) -> 5 | C24: =IF('lectures and seminars'!J9="","",'lectures and seminars'!J9) -> 5 | D24: =IF('lectures and seminars'!K9="","",'lectures and seminars'!K9) -> 5 | E24: =IF('lectures and seminars'!L9="","",'lectures and seminars'!L9) -> 5 | H24: Monitoring | I24: 5
A25: Law and 3 Rs | B25: =IF('lectures and seminars'!I10="","",'lectures and seminars'!I10) -> 5 | C25: =IF('lectures and seminars'!J10="","",'lectures and seminars'!J10) -> 5 | D25: =IF('lectures and seminars'!K10="","",'lectures and seminars'!K10) -> 5 | E25: =IF('lectures and seminars'!L10="","",'lectures and seminars'!L10) -> 5 | H25: Pain, suffering | I25: 4.928571429
A26: Law and 3 Rs | B26: =IF('lectures and seminars'!I11="","",'lectures and seminars'!I11) -> 5 | C26: =IF('lectures and seminars'!J11="","",'lectures and seminars'!J11) -> 4 | D26: =IF('lectures and seminars'!K11="","",'lectures and seminars'!K11) -> 5 | E26: =IF('lectures and seminars'!L11="","",'lectures and seminars'!L11) -> 5 | H26: Protocol design | I26: 4.916666667
A27: Law and 3 Rs | B27: =IF('lectures and seminars'!I12="","",'lectures and seminars'!I12) -> 5 | C27: =IF('lectures and seminars'!J12="","",'lectures and seminars'!J12) -> 5 | D27: =IF('lectures and seminars'!K12="","",'lectures and seminars'!K12) -> 5 | E27: =IF('lectures and seminars'!L12="","",'lectures and seminars'!L12) -> 5 | H27: Restraint | I27: 4.928571429
A28: Law and 3 Rs | B28: =IF('lectures and seminars'!I13="","",'lectures and seminars'!I13) -> 5 | C28: =IF('lectures and seminars'!J13="","",'lectures and seminars'!J13) -> 5 | D28: =IF('lectures and seminars'!K13="","",'lectures and seminars'!K13) -> 5 | E28: =IF('lectures and seminars'!L13="","",'lectures and seminars'!L13) -> 5 | H28: Safety | I28: 5
A29: Law and 3 Rs | B29: =IF('lectures and seminars'!I14="","",'lectures and seminars'!I14) -> 4 | C29: =IF('lectures and seminars'!J14="","",'lectures and seminars'!J14) -> 4 | D29: =IF('lectures and seminars'!K14="","",'lectures and seminars'!K14) -> 4 | E29: =IF('lectures and seminars'!L14="","",'lectures and seminars'!L14) -> 4 | H29: Sample size | I29: 4.928571429
A30: Law and 3 Rs | B30: =IF('lectures and seminars'!I15="","",'lectures and seminars'!I15) -> 5 | C30: =IF('lectures and seminars'!J15="","",'lectures and seminars'!J15) -> 5 | D30: =IF('lectures and seminars'!K15="","",'lectures and seminars'!K15) -> 5 | E30: =IF('lectures and seminars'!L15="","",'lectures and seminars'!L15) -> 5 | H30: Small animal biology | I30: 4.8
A31: Law and 3 Rs | B31: =IF('lectures and seminars'!I16="","",'lectures and seminars'!I16) -> 5 | C31: =IF('lectures and seminars'!J16="","",'lectures and seminars'!J16) -> 5 | D31: =IF('lectures and seminars'!K16="","",'lectures and seminars'!K16) -> 5 | E31: =IF('lectures and seminars'!L16="","",'lectures and seminars'!L16) -> 5 | H31: Translation | I31: 5
A32: Ethics | B32: =IF('lectures and seminars'!O2="","",'lectures and seminars'!O2) -> 5 | C32: =IF('lectures and seminars'!P2="","",'lectures and seminars'!P2) -> 5 | D32: =IF('lectures and seminars'!Q2="","",'lectures and seminars'!Q2) -> 5 | E32: =IF('lectures and seminars'!R2="","",'lectures and seminars'!R2) -> 5 | H32: Zebrafish | I32: 4.857142857
A33: Ethics | B33: =IF('lectures and seminars'!O3="","",'lectures and seminars'!O3) -> 5 | C33: =IF('lectures and seminars'!P3="","",'lectures and seminars'!P3) -> 5 | D33: =IF('lectures and seminars'!Q3="","",'lectures and seminars'!Q3) -> 5 | E33: =IF('lectures and seminars'!R3="","",'lectures and seminars'!R3) -> 5 | H33: Végösszeg | I33: 4.878859857
A34: Ethics | B34: =IF('lectures and seminars'!O4="","",'lectures and seminars'!O4) -> 5 | C34: =IF('lectures and seminars'!P4="","",'lectures and seminars'!P4) -> 4 | D34: =IF('lectures and seminars'!Q4="","",'lectures and seminars'!Q4) -> 4 | E34: =IF('lectures and seminars'!R4="","",'lectures and seminars'!R4) -> 4
A35: Ethics | B35: =IF('lectures and seminars'!O5="","",'lectures and seminars'!O5) -> 5 | C35: =IF('lectures and seminars'!P5="","",'lectures and seminars'!P5) -> 5 | D35: =IF('lectures and seminars'!Q5="","",'lectures and seminars'!Q5) -> 5 | E35: =IF('lectures and seminars'!R5="","",'lectures and seminars'!R5) -> 5
A36: Ethics | B36: =IF('lectures and seminars'!O6="","",'lectures and seminars'!O6) -> 5 | C36: =IF('lectures and seminars'!P6="","",'lectures and seminars'!P6) -> 5 | D36: =IF('lectures and seminars'!Q6="","",'lectures and seminars'!Q6) -> 5 | E36: =IF('lectures and seminars'!R6="","",'lectures and seminars'!R6) -> 5
A37: Ethics | B37: =IF('lectures and seminars'!O7="","",'lectures and seminars'!O7) -> 5 | C37: =IF('lectures and seminars'!P7="","",'lectures and seminars'!P7) -> 5 | D37: =IF('lectures and seminars'!Q7="","",'lectures and seminars'!Q7) -> 5 | E37: =IF('lectures and seminars'!R7="","",'lectures and seminars'!R7) -> 5
A38: Ethics | B38: =IF('lectures and seminars'!O8="","",'lectures and seminars'!O8) -> 5 | C38: =IF('lectures and seminars'!P8="","",'lectures and seminars'!P8) -> 5 | D38: =IF('lectures and seminars'!Q8="","",'lectures and seminars'!Q8) -> 5 | E38: =IF('lectures and seminars'!R8="","",'lectures and seminars'!R8) -> 5 | H38: Sorcímkék | I38: Átlag / Style of performance
A39: Ethics | B39: =IF('lectures and seminars'!O9="","",'lectures and seminars'!O9) -> 5 | C39: =IF('lectures and seminars'!P9="","",'lectures and seminars'!P9) -> 5 | D39: =IF('lectures and seminars'!Q9="","",'lectures and seminars'!Q9) -> 5 | E39: =IF('lectures and seminars'!R9="","",'lectures and seminars'!R9) -> 5 | H39: 3 Rs | I39: 4.733333333
A40: Ethics | B40: =IF('lectures and seminars'!O10="","",'lectures and seminars'!O10) -> 5 | C40: =IF('lectures and seminars'!P10="","",'lectures and seminars'!P10) -> 5 | D40: =IF('lectures and seminars'!Q10="","",'lectures and seminars'!Q10) -> 5 | E40: =IF('lectures and seminars'!R10="","",'lectures and seminars'!R10) -> 5 | H40: Advanced anaesthesia | I40: 4.928571429
A41: Ethics | B41: =IF('lectures and seminars'!O11="","",'lectures and seminars'!O11) -> 5 | C41: =IF('lectures and seminars'!P11="","",'lectures and seminars'!P11) -> 5 | D41: =IF('lectures and seminars'!Q11="","",'lectures and seminars'!Q11) -> 5 | E41: =IF('lectures and seminars'!R11="","",'lectures and seminars'!R11) -> 5 | H41: Alternatives | I41: 5
A42: Ethics | B42: =IF('lectures and seminars'!O12="","",'lectures and seminars'!O12) -> 5 | C42: =IF('lectures and seminars'!P12="","",'lectures and seminars'!P12) -> 5 | D42: =IF('lectures and seminars'!Q12="","",'lectures and seminars'!Q12) -> 5 | E42: =IF('lectures and seminars'!R12="","",'lectures and seminars'!R12) -> 5 | H42: Anaesthesia | I42: 4.928571429
A43: Ethics | B43: =IF('lectures and seminars'!O13="","",'lectures and seminars'!O13) -> 5 | C43: =IF('lectures and seminars'!P13="","",'lectures and seminars'!P13) -> 5 | D43: =IF('lectures and seminars'!Q13="","",'lectures and seminars'!Q13) -> 5 | E43: =IF('lectures and seminars'!R13="","",'lectures and seminars'!R13) -> 5 | H43: Basic surgical procedures | I43: 4.928571429
A44: Ethics | B44: =IF('lectures and seminars'!O14="","",'lectures and seminars'!O14) -> 5 | C44: =IF('lectures and seminars'!P14="","",'lectures and seminars'!P14) -> 5 | D44: =IF('lectures and seminars'!Q14="","",'lectures and seminars'!Q14) -> 5 | E44: =IF('lectures and seminars'!R14="","",'lectures and seminars'!R14) -> 5 | H44: Basics of statistics | I44: 4.933333333
A45: Ethics | B45: =IF('lectures and seminars'!O15="","",'lectures and seminars'!O15) -> 5 | C45: =IF('lectures and seminars'!P15="","",'lectures and seminars'!P15) -> 5 | D45: =IF('lectures and seminars'!Q15="","",'lectures and seminars'!Q15) -> 5 | E45: =IF('lectures and seminars'!R15="","",'lectures and seminars'!R15) -> 5 | H45: Behaviour | I45: 4.142857143
A46: Ethics | B46: =IF('lectures and seminars'!O16="","",'lectures and seminars'!O16) -> 5 | C46: =IF('lectures and seminars'!P16="","",'lectures and seminars'!P16) -> 5 | D46: =IF('lectures and seminars'!Q16="","",'lectures and seminars'!Q16) -> 5 | E46: =IF('lectures and seminars'!R16="","",'lectures and seminars'!R16) -> 5 | H46: Bibliometrics | I46: 5
A47: Extrapolation | B47: =IF('lectures and seminars'!U2="","",'lectures and seminars'!U2) -> 5 | C47: =IF('lectures and seminars'!V2="","",'lectures and seminars'!V2) -> 3 | D47: =IF('lectures and seminars'!W2="","",'lectures and seminars'!W2) -> 3 | E47: =IF('lectures and seminars'!X2="","",'lectures and seminars'!X2) -> 5 | H47: Environmental enrichment | I47: 5
A48: Extrapolation | B48: =IF('lectures and seminars'!U3="","",'lectures and seminars'!U3) -> 5 | C48: =IF('lectures and seminars'!V3="","",'lectures and seminars'!V3) -> 5 | D48: =IF('lectures and seminars'!W3="","",'lectures and seminars'!W3) -> 5 | E48: =IF('lectures and seminars'!X3="","",'lectures and seminars'!X3) -> 5 | H48: Ethics | I48: 4.933333333
A49: Extrapolation | B49: =IF('lectures and seminars'!U4="","",'lectures and seminars'!U4) -> 4 | C49: =IF('lectures and seminars'!V4="","",'lectures and seminars'!V4) -> 3 | D49: =IF('lectures and seminars'!W4="","",'lectures and seminars'!W4) -> 3 | E49: =IF('lectures and seminars'!X4="","",'lectures and seminars'!X4) -> 3 | H49: Extrapolation | I49: 4.4
A50: Extrapolation | B50: =IF('lectures and seminars'!U5="","",'lectures and seminars'!U5) -> 4 | C50: =IF('lectures and seminars'!V5="","",'lectures and seminars'!V5) -> 2 | D50: =IF('lectures and seminars'!W5="","",'lectures and seminars'!W5) -> 3 | E50: =IF('lectures and seminars'!X5="","",'lectures and seminars'!X5) -> 3 | H50: History | I50: 4.933333333
A51: Extrapolation | B51: =IF('lectures and seminars'!U6="","",'lectures and seminars'!U6) -> 5 | C51: =IF('lectures and seminars'!V6="","",'lectures and seminars'!V6) -> 5 | D51: =IF('lectures and seminars'!W6="","",'lectures and seminars'!W6) -> 5 | E51: =IF('lectures and seminars'!X6="","",'lectures and seminars'!X6) -> 5 | H51: Housing | I51: 4.857142857
A52: Extrapolation | B52: =IF('lectures and seminars'!U7="","",'lectures and seminars'!U7) -> 5 | C52: =IF('lectures and seminars'!V7="","",'lectures and seminars'!V7) -> 5 | D52: =IF('lectures and seminars'!W7="","",'lectures and seminars'!W7) -> 5 | E52: =IF('lectures and seminars'!X7="","",'lectures and seminars'!X7) -> 5 | H52: In vitro, ex vivo | I52: 4.916666667
A53: Extrapolation | B53: =IF('lectures and seminars'!U8="","",'lectures and seminars'!U8) -> 5 | C53: =IF('lectures and seminars'!V8="","",'lectures and seminars'!V8) -> 5 | D53: =IF('lectures and seminars'!W8="","",'lectures and seminars'!W8) -> 5 | E53: =IF('lectures and seminars'!X8="","",'lectures and seminars'!X8) -> 5 | H53: Inbred, outbred | I53: 4.785714286
A54: Extrapolation | B54: =IF('lectures and seminars'!U9="","",'lectures and seminars'!U9) -> 5 | C54: =IF('lectures and seminars'!V9="","",'lectures and seminars'!V9) -> 5 | D54: =IF('lectures and seminars'!W9="","",'lectures and seminars'!W9) -> 5 | E54: =IF('lectures and seminars'!X9="","",'lectures and seminars'!X9) -> 5 | H54: Large animal biology | I54: 4.466666667
A55: Extrapolation | B55: =IF('lectures and seminars'!U10="","",'lectures and seminars'!U10) -> 5 | C55: =IF('lectures and seminars'!V10="","",'lectures and seminars'!V10) -> 5 | D55: =IF('lectures and seminars'!W10="","",'lectures and seminars'!W10) -> 5 | E55: =IF('lectures and seminars'!X10="","",'lectures and seminars'!X10) -> 5 | H55: Law and 3 Rs | I55: 4.8
A56: Extrapolation | B56: =IF('lectures and seminars'!U11="","",'lectures and seminars'!U11) -> 5 | C56: =IF('lectures and seminars'!V11="","",'lectures and seminars'!V11) -> 4 | D56: =IF('lectures and seminars'!W11="","",'lectures and seminars'!W11) -> 5 | E56: =IF('lectures and seminars'!X11="","",'lectures and seminars'!X11) -> 5 | H56: Licensing | I56: 4.8
A57: Extrapolation | B57: =IF('lectures and seminars'!U12="","",'lectures and seminars'!U12) -> 5 | C57: =IF('lectures and seminars'!V12="","",'lectures and seminars'!V12) -> 5 | D57: =IF('lectures and seminars'!W12="","",'lectures and seminars'!W12) -> 5 | E57: =IF('lectures and seminars'!X12="","",'lectures and seminars'!X12) -> 5 | H57: Licensing in practice | I57: 4.916666667
A58: Extrapolation | B58: =IF('lectures and seminars'!U13="","",'lectures and seminars'!U13) -> 5 | C58: =IF('lectures and seminars'!V13="","",'lectures and seminars'!V13) -> 5 | D58: =IF('lectures and seminars'!W13="","",'lectures and seminars'!W13) -> 5 | E58: =IF('lectures and seminars'!X13="","",'lectures and seminars'!X13) -> 5 | H58: Microbiology | I58: 3.928571429
A59: Extrapolation | B59: =IF('lectures and seminars'!U14="","",'lectures and seminars'!U14) -> 5 | C59: =IF('lectures and seminars'!V14="","",'lectures and seminars'!V14) -> 4 | D59: =IF('lectures and seminars'!W14="","",'lectures and seminars'!W14) -> 4 | E59: =IF('lectures and seminars'!X14="","",'lectures and seminars'!X14) -> 5 | H59: Min. inv. | I59: 4.923076923
A60: Extrapolation | B60: =IF('lectures and seminars'!U15="","",'lectures and seminars'!U15) -> 5 | C60: =IF('lectures and seminars'!V15="","",'lectures and seminars'!V15) -> 5 | D60: =IF('lectures and seminars'!W15="","",'lectures and seminars'!W15) -> 5 | E60: =IF('lectures and seminars'!X15="","",'lectures and seminars'!X15) -> 5 | H60: Monitoring | I60: 5
A61: Extrapolation | B61: =IF('lectures and seminars'!U16="","",'lectures and seminars'!U16) -> 5 | C61: =IF('lectures and seminars'!V16="","",'lectures and seminars'!V16) -> 5 | D61: =IF('lectures and seminars'!W16="","",'lectures and seminars'!W16) -> 5 | E61: =IF('lectures and seminars'!X16="","",'lectures and seminars'!X16) -> 5 | H61: Pain, suffering | I61: 4.785714286
A62: 3 Rs | B62: =IF('lectures and seminars'!AA2="","",'lectures and seminars'!AA2) -> 5 | C62: =IF('lectures and seminars'!AB2="","",'lectures and seminars'!AB2) -> 5 | D62: =IF('lectures and seminars'!AC2="","",'lectures and seminars'!AC2) -> 5 | E62: =IF('lectures and seminars'!AD2="","",'lectures and seminars'!AD2) -> 5 | H62: Protocol design | I62: 4.916666667
A63: 3 Rs | B63: =IF('lectures and seminars'!AA3="","",'lectures and seminars'!AA3) -> 5 | C63: =IF('lectures and seminars'!AB3="","",'lectures and seminars'!AB3) -> 5 | D63: =IF('lectures and seminars'!AC3="","",'lectures and seminars'!AC3) -> 5 | E63: =IF('lectures and seminars'!AD3="","",'lectures and seminars'!AD3) -> 5 | H63: Restraint | I63: 4.714285714
A64: 3 Rs | B64: =IF('lectures and seminars'!AA4="","",'lectures and seminars'!AA4) -> 4 | C64: =IF('lectures and seminars'!AB4="","",'lectures and seminars'!AB4) -> 4 | D64: =IF('lectures and seminars'!AC4="","",'lectures and seminars'!AC4) -> 5 | E64: =IF('lectures and seminars'!AD4="","",'lectures and seminars'!AD4) -> 5 | H64: Safety | I64: 4.928571429
A65: 3 Rs | B65: =IF('lectures and seminars'!AA5="","",'lectures and seminars'!AA5) -> 4 | C65: =IF('lectures and seminars'!AB5="","",'lectures and seminars'!AB5) -> 3 | D65: =IF('lectures and seminars'!AC5="","",'lectures and seminars'!AC5) -> 4 | E65: =IF('lectures and seminars'!AD5="","",'lectures and seminars'!AD5) -> 4 | H65: Sample size | I65: 4.928571429
A66: 3 Rs | B66: =IF('lectures and seminars'!AA6="","",'lectures and seminars'!AA6) -> 5 | C66: =IF('lectures and seminars'!AB6="","",'lectures and seminars'!AB6) -> 5 | D66: =IF('lectures and seminars'!AC6="","",'lectures and seminars'!AC6) -> 5 | E66: =IF('lectures and seminars'!AD6="","",'lectures and seminars'!AD6) -> 5 | H66: Small animal biology | I66: 4.4
A67: 3 Rs | B67: =IF('lectures and seminars'!AA7="","",'lectures and seminars'!AA7) -> 5 | C67: =IF('lectures and seminars'!AB7="","",'lectures and seminars'!AB7) -> 5 | D67: =IF('lectures and seminars'!AC7="","",'lectures and seminars'!AC7) -> 5 | E67: =IF('lectures and seminars'!AD7="","",'lectures and seminars'!AD7) -> 5 | H67: Translation | I67: 5
A68: 3 Rs | B68: =IF('lectures and seminars'!AA8="","",'lectures and seminars'!AA8) -> 5 | C68: =IF('lectures and seminars'!AB8="","",'lectures and seminars'!AB8) -> 5 | D68: =IF('lectures and seminars'!AC8="","",'lectures and seminars'!AC8) -> 5 | E68: =IF('lectures and seminars'!AD8="","",'lectures and seminars'!AD8) -> 5 | H68: Zebrafish | I68: 4.571428571
A69: 3 Rs | B69: =IF('lectures and seminars'!AA9="","",'lectures and seminars'!AA9) -> 5 | C69: =IF('lectures and seminars'!AB9="","",'lectures and seminars'!AB9) -> 5 | D69: =IF('lectures and seminars'!AC9="","",'lectures and seminars'!AC9) -> 5 | E69: =IF('lectures and seminars'!AD9="","",'lectures and seminars'!AD9) -> 5 | H69: Végösszeg | I69: 4.779097387
A70: 3 Rs | B70: =IF('lectures and seminars'!AA10="","",'lectures and seminars'!AA10) -> 5 | C70: =IF('lectures and seminars'!AB10="","",'lectures and seminars'!AB10) -> 5 | D70: =IF('lectures and seminars'!AC10="","",'lectures and seminars'!AC10) -> 5 | E70: =IF('lectures and seminars'!AD10="","",'lectures and seminars'!AD10) -> 5
A71: 3 Rs | B71: =IF('lectures and seminars'!AA11="","",'lectures and seminars'!AA11) -> 5 | C71: =IF('lectures and seminars'!AB11="","",'lectures and seminars'!AB11) -> 5 | D71: =IF('lectures and seminars'!AC11="","",'lectures and seminars'!AC11) -> 5 | E71: =IF('lectures and seminars'!AD11="","",'lectures and seminars'!AD11) -> 5
A72: 3 Rs | B72: =IF('lectures and seminars'!AA12="","",'lectures and seminars'!AA12) -> 5 | C72: =IF('lectures and seminars'!AB12="","",'lectures and seminars'!AB12) -> 5 | D72: =IF('lectures and seminars'!AC12="","",'lectures and seminars'!AC12) -> 5 | E72: =IF('lectures and seminars'!AD12="","",'lectures and seminars'!AD12) -> 5
A73: 3 Rs | B73: =IF('lectures and seminars'!AA13="","",'lectures and seminars'!AA13) -> 5 | C73: =IF('lectures and seminars'!AB13="","",'lectures and seminars'!AB13) -> 5 | D73: =IF('lectures and seminars'!AC13="","",'lectures and seminars'!AC13) -> 5 | E73: =IF('lectures and seminars'!AD13="","",'lectures and seminars'!AD13) -> 5 | H73: Sorcímkék | I73: Átlag / Choice of subject
A74: 3 Rs | B74: =IF('lectures and seminars'!AA14="","",'lectures and seminars'!AA14) -> 5 | C74: =IF('lectures and seminars'!AB14="","",'lectures and seminars'!AB14) -> 4 | D74: =IF('lectures and seminars'!AC14="","",'lectures and seminars'!AC14) -> 4 | E74: =IF('lectures and seminars'!AD14="","",'lectures and seminars'!AD14) -> 5 | H74: 3 Rs | I74: 4.866666667
A75: 3 Rs | B75: =IF('lectures and seminars'!AA15="","",'lectures and seminars'!AA15) -> 5 | C75: =IF('lectures and seminars'!AB15="","",'lectures and seminars'!AB15) -> 5 | D75: =IF('lectures and seminars'!AC15="","",'lectures and seminars'!AC15) -> 5 | E75: =IF('lectures and seminars'!AD15="","",'lectures and seminars'!AD15) -> 5 | H75: Advanced anaesthesia | I75: 4.928571429
A76: 3 Rs | B76: =IF('lectures and seminars'!AA16="","",'lectures and seminars'!AA16) -> 5 | C76: =IF('lectures and seminars'!AB16="","",'lectures and seminars'!AB16) -> 5 | D76: =IF('lectures and seminars'!AC16="","",'lectures and seminars'!AC16) -> 5 | E76: =IF('lectures and seminars'!AD16="","",'lectures and seminars'!AD16) -> 5 | H76: Alternatives | I76: 4.923076923
A77: Licensing | B77: =IF('lectures and seminars'!AG2="","",'lectures and seminars'!AG2) -> 5 | C77: =IF('lectures and seminars'!AH2="","",'lectures and seminars'!AH2) -> 5 | D77: =IF('lectures and seminars'!AI2="","",'lectures and seminars'!AI2) -> 5 | E77: =IF('lectures and seminars'!AJ2="","",'lectures and seminars'!AJ2) -> 5 | H77: Anaesthesia | I77: 4.928571429
A78: Licensing | B78: =IF('lectures and seminars'!AG3="","",'lectures and seminars'!AG3) -> 5 | C78: =IF('lectures and seminars'!AH3="","",'lectures and seminars'!AH3) -> 5 | D78: =IF('lectures and seminars'!AI3="","",'lectures and seminars'!AI3) -> 5 | E78: =IF('lectures and seminars'!AJ3="","",'lectures and seminars'!AJ3) -> 5 | H78: Basic surgical procedures | I78: 4.928571429
A79: Licensing | B79: =IF('lectures and seminars'!AG4="","",'lectures and seminars'!AG4) -> 5 | C79: =IF('lectures and seminars'!AH4="","",'lectures and seminars'!AH4) -> 5 | D79: =IF('lectures and seminars'!AI4="","",'lectures and seminars'!AI4) -> 5 | E79: =IF('lectures and seminars'!AJ4="","",'lectures and seminars'!AJ4) -> 5 | H79: Basics of statistics | I79: 5
A80: Licensing | B80: =IF('lectures and seminars'!AG5="","",'lectures and seminars'!AG5) -> 4 | C80: =IF('lectures and seminars'!AH5="","",'lectures and seminars'!AH5) -> 3 | D80: =IF('lectures and seminars'!AI5="","",'lectures and seminars'!AI5) -> 4 | E80: =IF('lectures and seminars'!AJ5="","",'lectures and seminars'!AJ5) -> 4 | H80: Behaviour | I80: 4.785714286
A81: Licensing | B81: =IF('lectures and seminars'!AG6="","",'lectures and seminars'!AG6) -> 5 | C81: =IF('lectures and seminars'!AH6="","",'lectures and seminars'!AH6) -> 5 | D81: =IF('lectures and seminars'!AI6="","",'lectures and seminars'!AI6) -> 5 | E81: =IF('lectures and seminars'!AJ6="","",'lectures and seminars'!AJ6) -> 5 | H81: Bibliometrics | I81: 4.714285714
A82: Licensing | B82: =IF('lectures and seminars'!AG7="","",'lectures and seminars'!AG7) -> 5 | C82: =IF('lectures and seminars'!AH7="","",'lectures and seminars'!AH7) -> 5 | D82: =IF('lectures and seminars'!AI7="","",'lectures and seminars'!AI7) -> 5 | E82: =IF('lectures and seminars'!AJ7="","",'lectures and seminars'!AJ7) -> 5 | H82: Environmental enrichment | I82: 4.928571429
A83: Licensing | B83: =IF('lectures and seminars'!AG8="","",'lectures and seminars'!AG8) -> 5 | C83: =IF('lectures and seminars'!AH8="","",'lectures and seminars'!AH8) -> 5 | D83: =IF('lectures and seminars'!AI8="","",'lectures and seminars'!AI8) -> 5 | E83: =IF('lectures and seminars'!AJ8="","",'lectures and seminars'!AJ8) -> 5 | H83: Ethics | I83: 4.933333333
A84: Licensing | B84: =IF('lectures and seminars'!AG9="","",'lectures and seminars'!AG9) -> 5 | C84: =IF('lectures and seminars'!AH9="","",'lectures and seminars'!AH9) -> 5 | D84: =IF('lectures and seminars'!AI9="","",'lectures and seminars'!AI9) -> 5 | E84: =IF('lectures and seminars'!AJ9="","",'lectures and seminars'!AJ9) -> 5 | H84: Extrapolation | I84: 4.533333333
A85: Licensing | B85: =IF('lectures and seminars'!AG10="","",'lectures and seminars'!AG10) -> 5 | C85: =IF('lectures and seminars'!AH10="","",'lectures and seminars'!AH10) -> 5 | D85: =IF('lectures and seminars'!AI10="","",'lectures and seminars'!AI10) -> 5 | E85: =IF('lectures and seminars'!AJ10="","",'lectures and seminars'!AJ10) -> 5 | H85: History | I85: 4.866666667
A86: Licensing | B86: =IF('lectures and seminars'!AG11="","",'lectures and seminars'!AG11) -> 5 | C86: =IF('lectures and seminars'!AH11="","",'lectures and seminars'!AH11) -> 4 | D86: =IF('lectures and seminars'!AI11="","",'lectures and seminars'!AI11) -> 5 | E86: =IF('lectures and seminars'!AJ11="","",'lectures and seminars'!AJ11) -> 4 | H86: Housing | I86: 4.928571429
A87: Licensing | B87: =IF('lectures and seminars'!AG12="","",'lectures and seminars'!AG12) -> 5 | C87: =IF('lectures and seminars'!AH12="","",'lectures and seminars'!AH12) -> 5 | D87: =IF('lectures and seminars'!AI12="","",'lectures and seminars'!AI12) -> 5 | E87: =IF('lectures and seminars'!AJ12="","",'lectures and seminars'!AJ12) -> 5 | H87: In vitro, ex vivo | I87: 4.666666667
A88: Licensing | B88: =IF('lectures and seminars'!AG13="","",'lectures and seminars'!AG13) -> 5 | C88: =IF('lectures and seminars'!AH13="","",'lectures and seminars'!AH13) -> 5 | D88: =IF('lectures and seminars'!AI13="","",'lectures and seminars'!AI13) -> 5 | E88: =IF('lectures and seminars'!AJ13="","",'lectures and seminars'!AJ13) -> 5 | H88: Inbred, outbred | I88: 4.857142857
A89: Licensing | B89: =IF('lectures and seminars'!AG14="","",'lectures and seminars'!AG14) -> 5 | C89: =IF('lectures and seminars'!AH14="","",'lectures and seminars'!AH14) -> 5 | D89: =IF('lectures and seminars'!AI14="","",'lectures and seminars'!AI14) -> 5 | E89: =IF('lectures and seminars'!AJ14="","",'lectures and seminars'!AJ14) -> 5 | H89: Large animal biology | I89: 4.733333333
A90: Licensing | B90: =IF('lectures and seminars'!AG15="","",'lectures and seminars'!AG15) -> 5 | C90: =IF('lectures and seminars'!AH15="","",'lectures and seminars'!AH15) -> 5 | D90: =IF('lectures and seminars'!AI15="","",'lectures and seminars'!AI15) -> 5 | E90: =IF('lectures and seminars'!AJ15="","",'lectures and seminars'!AJ15) -> 5 | H90: Law and 3 Rs | I90: 4.866666667
A91: Licensing | B91: =IF('lectures and seminars'!AG16="","",'lectures and seminars'!AG16) -> 5 | C91: =IF('lectures and seminars'!AH16="","",'lectures and seminars'!AH16) -> 5 | D91: =IF('lectures and seminars'!AI16="","",'lectures and seminars'!AI16) -> 5 | E91: =IF('lectures and seminars'!AJ16="","",'lectures and seminars'!AJ16) -> 5 | H91: Licensing | I91: 4.933333333
A92: Basics of statistics | B92: =IF('lectures and seminars'!AM2="","",'lectures and seminars'!AM2) -> 5 | C92: =IF('lectures and seminars'!AN2="","",'lectures and seminars'!AN2) -> 5 | D92: =IF('lectures and seminars'!AO2="","",'lectures and seminars'!AO2) -> 5 | E92: =IF('lectures and seminars'!AP2="","",'lectures and seminars'!AP2) -> 5 | H92: Licensing in practice | I92: 4.916666667
A93: Basics of statistics | B93: =IF('lectures and seminars'!AM3="","",'lectures and seminars'!AM3) -> 5 | C93: =IF('lectures and seminars'!AN3="","",'lectures and seminars'!AN3) -> 5 | D93: =IF('lectures and seminars'!AO3="","",'lectures and seminars'!AO3) -> 5 | E93: =IF('lectures and seminars'!AP3="","",'lectures and seminars'!AP3) -> 5 | H93: Microbiology | I93: 4.285714286
A94: Basics of statistics | B94: =IF('lectures and seminars'!AM4="","",'lectures and seminars'!AM4) -> 5 | C94: =IF('lectures and seminars'!AN4="","",'lectures and seminars'!AN4) -> 5 | D94: =IF('lectures and seminars'!AO4="","",'lectures and seminars'!AO4) -> 5 | E94: =IF('lectures and seminars'!AP4="","",'lectures and seminars'!AP4) -> 5 | H94: Min. inv. | I94: 4.923076923
A95: Basics of statistics | B95: =IF('lectures and seminars'!AM5="","",'lectures and seminars'!AM5) -> 5 | C95: =IF('lectures and seminars'!AN5="","",'lectures and seminars'!AN5) -> 5 | D95: =IF('lectures and seminars'!AO5="","",'lectures and seminars'!AO5) -> 5 | E95: =IF('lectures and seminars'!AP5="","",'lectures and seminars'!AP5) -> 5 | H95: Monitoring | I95: 4.857142857
A96: Basics of statistics | B96: =IF('lectures and seminars'!AM6="","",'lectures and seminars'!AM6) -> 5 | C96: =IF('lectures and seminars'!AN6="","",'lectures and seminars'!AN6) -> 5 | D96: =IF('lectures and seminars'!AO6="","",'lectures and seminars'!AO6) -> 5 | E96: =IF('lectures and seminars'!AP6="","",'lectures and seminars'!AP6) -> 5 | H96: Pain, suffering | I96: 4.928571429
A97: Basics of statistics | B97: =IF('lectures and seminars'!AM7="","",'lectures and seminars'!AM7) -> 5 | C97: =IF('lectures and seminars'!AN7="","",'lectures and seminars'!AN7) -> 4 | D97: =IF('lectures and seminars'!AO7="","",'lectures and seminars'!AO7) -> 5 | E97: =IF('lectures and seminars'!AP7="","",'lectures and seminars'!AP7) -> 4 | H97: Protocol design | I97: 4.916666667
A98: Basics of statistics | B98: =IF('lectures and seminars'!AM8="","",'lectures and seminars'!AM8) -> 5 | C98: =IF('lectures and seminars'!AN8="","",'lectures and seminars'!AN8) -> 5 | D98: =IF('lectures and seminars'!AO8="","",'lectures and seminars'!AO8) -> 5 | E98: =IF('lectures and seminars'!AP8="","",'lectures and seminars'!AP8) -> 5 | H98: Restraint | I98: 4.857142857
A99: Basics of statistics | B99: =IF('lectures and seminars'!AM9="","",'lectures and seminars'!AM9) -> 5 | C99: =IF('lectures and seminars'!AN9="","",'lectures and seminars'!AN9) -> 5 | D99: =IF('lectures and seminars'!AO9="","",'lectures and seminars'!AO9) -> 5 | E99: =IF('lectures and seminars'!AP9="","",'lectures and seminars'!AP9) -> 5 | H99: Safety | I99: 5
A100: Basics of statistics | B100: =IF('lectures and seminars'!AM10="","",'lectures and seminars'!AM10) -> 5 | C100: =IF('lectures and seminars'!AN10="","",'lectures and seminars'!AN10) -> 5 | D100: =IF('lectures and seminars'!AO10="","",'lectures and seminars'!AO10) -> 5 | E100: =IF('lectures and seminars'!AP10="","",'lectures and seminars'!AP10) -> 5 | H100: Sample size | I100: 4.928571429
A101: Basics of statistics | B101: =IF('lectures and seminars'!AM11="","",'lectures and seminars'!AM11) -> 5 | C101: =IF('lectures and seminars'!AN11="","",'lectures and seminars'!AN11) -> 5 | D101: =IF('lectures and seminars'!AO11="","",'lectures and seminars'!AO11) -> 5 | E101: =IF('lectures and seminars'!AP11="","",'lectures and seminars'!AP11) -> 5 | H101: Small animal biology | I101: 4.866666667
A102: Basics of statistics | B102: =IF('lectures and seminars'!AM12="","",'lectures and seminars'!AM12) -> 5 | C102: =IF('lectures and seminars'!AN12="","",'lectures and seminars'!AN12) -> 5 | D102: =IF('lectures and seminars'!AO12="","",'lectures and seminars'!AO12) -> 5 | E102: =IF('lectures and seminars'!AP12="","",'lectures and seminars'!AP12) -> 5 | H102: Translation | I102: 5
A103: Basics of statistics | B103: =IF('lectures and seminars'!AM13="","",'lectures and seminars'!AM13) -> 5 | C103: =IF('lectures and seminars'!AN13="","",'lectures and seminars'!AN13) -> 5 | D103: =IF('lectures and seminars'!AO13="","",'lectures and seminars'!AO13) -> 5 | E103: =IF('lectures and seminars'!AP13="","",'lectures and seminars'!AP13) -> 5 | H103: Zebrafish | I103: 4.785714286
A104: Basics of statistics | B104: =IF('lectures and seminars'!AM14="","",'lectures and seminars'!AM14) -> 5 | C104: =IF('lectures and seminars'!AN14="","",'lectures and seminars'!AN14) -> 5 | D104: =IF('lectures and seminars'!AO14="","",'lectures and seminars'!AO14) -> 5 | E104: =IF('lectures and seminars'!AP14="","",'lectures and seminars'!AP14) -> 5 | H104: Végösszeg | I104: 4.852731591
A105: Basics of statistics | B105: =IF('lectures and seminars'!AM15="","",'lectures and seminars'!AM15) -> 5 | C105: =IF('lectures and seminars'!AN15="","",'lectures and seminars'!AN15) -> 5 | D105: =IF('lectures and seminars'!AO15="","",'lectures and seminars'!AO15) -> 5 | E105: =IF('lectures and seminars'!AP15="","",'lectures and seminars'!AP15) -> 5
A106: Basics of statistics | B106: =IF('lectures and seminars'!AM16="","",'lectures and seminars'!AM16) -> 5 | C106: =IF('lectures and seminars'!AN16="","",'lectures and seminars'!AN16) -> 5 | D106: =IF('lectures and seminars'!AO16="","",'lectures and seminars'!AO16) -> 5 | E106: =IF('lectures and seminars'!AP16="","",'lectures and seminars'!AP16) -> 5
A107: Small animal biology | B107: =IF('lectures and seminars'!AS2="","",'lectures and seminars'!AS2) -> 5 | C107: =IF('lectures and seminars'!AT2="","",'lectures and seminars'!AT2) -> 4 | D107: =IF('lectures and seminars'!AU2="","",'lectures and seminars'!AU2) -> 5 | E107: =IF('lectures and seminars'!AV2="","",'lectures and seminars'!AV2) -> 4
A108: Small animal biology | B108: =IF('lectures and seminars'!AS3="","",'lectures and seminars'!AS3) -> 5 | C108: =IF('lectures and seminars'!AT3="","",'lectures and seminars'!AT3) -> 5 | D108: =IF('lectures and seminars'!AU3="","",'lectures and seminars'!AU3) -> 5 | E108: =IF('lectures and seminars'!AV3="","",'lectures and seminars'!AV3) -> 5 | H108: Sorcímkék | I108: Átlag / Handouts
A109: Small animal biology | B109: =IF('lectures and seminars'!AS4="","",'lectures and seminars'!AS4) -> 4 | C109: =IF('lectures and seminars'!AT4="","",'lectures and seminars'!AT4) -> 4 | D109: =IF('lectures and seminars'!AU4="","",'lectures and seminars'!AU4) -> 5 | E109: =IF('lectures and seminars'!AV4="","",'lectures and seminars'!AV4) -> 4 | H109: 3 Rs | I109: 4.933333333
A110: Small animal biology | B110: =IF('lectures and seminars'!AS5="","",'lectures and seminars'!AS5) -> 3 | C110: =IF('lectures and seminars'!AT5="","",'lectures and seminars'!AT5) -> 2 | D110: =IF('lectures and seminars'!AU5="","",'lectures and seminars'!AU5) -> 3 | E110: =IF('lectures and seminars'!AV5="","",'lectures and seminars'!AV5) -> 3 | H110: Advanced anaesthesia | I110: 4.923076923
A111: Small animal biology | B111: =IF('lectures and seminars'!AS6="","",'lectures and seminars'!AS6) -> 5 | C111: =IF('lectures and seminars'!AT6="","",'lectures and seminars'!AT6) -> 5 | D111: =IF('lectures and seminars'!AU6="","",'lectures and seminars'!AU6) -> 5 | E111: =IF('lectures and seminars'!AV6="","",'lectures and seminars'!AV6) -> 5 | H111: Alternatives | I111: 4.769230769
A112: Small animal biology | B112: =IF('lectures and seminars'!AS7="","",'lectures and seminars'!AS7) -> 5 | C112: =IF('lectures and seminars'!AT7="","",'lectures and seminars'!AT7) -> 5 | D112: =IF('lectures and seminars'!AU7="","",'lectures and seminars'!AU7) -> 5 | E112: =IF('lectures and seminars'!AV7="","",'lectures and seminars'!AV7) -> 5 | H112: Anaesthesia | I112: 4.923076923
A113: Small animal biology | B113: =IF('lectures and seminars'!AS8="","",'lectures and seminars'!AS8) -> 5 | C113: =IF('lectures and seminars'!AT8="","",'lectures and seminars'!AT8) -> 5 | D113: =IF('lectures and seminars'!AU8="","",'lectures and seminars'!AU8) -> 5 | E113: =IF('lectures and seminars'!AV8="","",'lectures and seminars'!AV8) -> 5 | H113: Basic surgical procedures | I113: 4.923076923
A114: Small animal biology | B114: =IF('lectures and seminars'!AS9="","",'lectures and seminars'!AS9) -> 5 | C114: =IF('lectures and seminars'!AT9="","",'lectures and seminars'!AT9) -> 5 | D114: =IF('lectures and seminars'!AU9="","",'lectures and seminars'!AU9) -> 5 | E114: =IF('lectures and seminars'!AV9="","",'lectures and seminars'!AV9) -> 5 | H114: Basics of statistics | I114: 4.933333333
A115: Small animal biology | B115: =IF('lectures and seminars'!AS10="","",'lectures and seminars'!AS10) -> 5 | C115: =IF('lectures and seminars'!AT10="","",'lectures and seminars'!AT10) -> 5 | D115: =IF('lectures and seminars'!AU10="","",'lectures and seminars'!AU10) -> 5 | E115: =IF('lectures and seminars'!AV10="","",'lectures and seminars'!AV10) -> 5 | H115: Behaviour | I115: 4.428571429
A116: Small animal biology | B116: =IF('lectures and seminars'!AS11="","",'lectures and seminars'!AS11) -> 5 | C116: =IF('lectures and seminars'!AT11="","",'lectures and seminars'!AT11) -> 5 | D116: =IF('lectures and seminars'!AU11="","",'lectures and seminars'!AU11) -> 5 | E116: =IF('lectures and seminars'!AV11="","",'lectures and seminars'!AV11) -> 5 | H116: Bibliometrics | I116: 4.857142857
A117: Small animal biology | B117: =IF('lectures and seminars'!AS12="","",'lectures and seminars'!AS12) -> 5 | C117: =IF('lectures and seminars'!AT12="","",'lectures and seminars'!AT12) -> 2 | D117: =IF('lectures and seminars'!AU12="","",'lectures and seminars'!AU12) -> 5 | E117: =IF('lectures and seminars'!AV12="","",'lectures and seminars'!AV12) -> 5 | H117: Environmental enrichment | I117: 4.923076923
A118: Small animal biology | B118: =IF('lectures and seminars'!AS13="","",'lectures and seminars'!AS13) -> 5 | C118: =IF('lectures and seminars'!AT13="","",'lectures and seminars'!AT13) -> 4 | D118: =IF('lectures and seminars'!AU13="","",'lectures and seminars'!AU13) -> 5 | E118: =IF('lectures and seminars'!AV13="","",'lectures and seminars'!AV13) -> 4 | H118: Ethics | I118: 4.933333333
A119: Small animal biology | B119: =IF('lectures and seminars'!AS14="","",'lectures and seminars'!AS14) -> 5 | C119: =IF('lectures and seminars'!AT14="","",'lectures and seminars'!AT14) -> 5 | D119: =IF('lectures and seminars'!AU14="","",'lectures and seminars'!AU14) -> 5 | E119: =IF('lectures and seminars'!AV14="","",'lectures and seminars'!AV14) -> 4 | H119: Extrapolation | I119: 4.733333333
A120: Small animal biology | B120: =IF('lectures and seminars'!AS15="","",'lectures and seminars'!AS15) -> 5 | C120: =IF('lectures and seminars'!AT15="","",'lectures and seminars'!AT15) -> 5 | D120: =IF('lectures and seminars'!AU15="","",'lectures and seminars'!AU15) -> 5 | E120: =IF('lectures and seminars'!AV15="","",'lectures and seminars'!AV15) -> 5 | H120: History | I120: 4.866666667
A121: Small animal biology | B121: =IF('lectures and seminars'!AS16="","",'lectures and seminars'!AS16) -> 5 | C121: =IF('lectures and seminars'!AT16="","",'lectures and seminars'!AT16) -> 5 | D121: =IF('lectures and seminars'!AU16="","",'lectures and seminars'!AU16) -> 5 | E121: =IF('lectures and seminars'!AV16="","",'lectures and seminars'!AV16) -> 5 | H121: Housing | I121: 4.846153846
A122: Large animal biology | B122: =IF('lectures and seminars'!AY2="","",'lectures and seminars'!AY2) -> 5 | C122: =IF('lectures and seminars'!AZ2="","",'lectures and seminars'!AZ2) -> 4 | D122: =IF('lectures and seminars'!BA2="","",'lectures and seminars'!BA2) -> 5 | E122: =IF('lectures and seminars'!BB2="","",'lectures and seminars'!BB2) -> 3 | H122: In vitro, ex vivo | I122: 4.833333333
A123: Large animal biology | B123: =IF('lectures and seminars'!AY3="","",'lectures and seminars'!AY3) -> 5 | C123: =IF('lectures and seminars'!AZ3="","",'lectures and seminars'!AZ3) -> 5 | D123: =IF('lectures and seminars'!BA3="","",'lectures and seminars'!BA3) -> 5 | E123: =IF('lectures and seminars'!BB3="","",'lectures and seminars'!BB3) -> 5 | H123: Inbred, outbred | I123: 4.642857143
A124: Large animal biology | B124: =IF('lectures and seminars'!AY4="","",'lectures and seminars'!AY4) -> 5 | C124: =IF('lectures and seminars'!AZ4="","",'lectures and seminars'!AZ4) -> 4 | D124: =IF('lectures and seminars'!BA4="","",'lectures and seminars'!BA4) -> 4 | E124: =IF('lectures and seminars'!BB4="","",'lectures and seminars'!BB4) -> 4 | H124: Large animal biology | I124: 4.466666667
A125: Large animal biology | B125: =IF('lectures and seminars'!AY5="","",'lectures and seminars'!AY5) -> 4 | C125: =IF('lectures and seminars'!AZ5="","",'lectures and seminars'!AZ5) -> 3 | D125: =IF('lectures and seminars'!BA5="","",'lectures and seminars'!BA5) -> 3 | E125: =IF('lectures and seminars'!BB5="","",'lectures and seminars'!BB5) -> 3 | H125: Law and 3 Rs | I125: 4.866666667
A126: Large animal biology | B126: =IF('lectures and seminars'!AY6="","",'lectures and seminars'!AY6) -> 5 | C126: =IF('lectures and seminars'!AZ6="","",'lectures and seminars'!AZ6) -> 5 | D126: =IF('lectures and seminars'!BA6="","",'lectures and seminars'!BA6) -> 5 | E126: =IF('lectures and seminars'!BB6="","",'lectures and seminars'!BB6) -> 5 | H126: Licensing | I126: 4.866666667
A127: Large animal biology | B127: =IF('lectures and seminars'!AY7="","",'lectures and seminars'!AY7) -> 5 | C127: =IF('lectures and seminars'!AZ7="","",'lectures and seminars'!AZ7) -> 5 | D127: =IF('lectures and seminars'!BA7="","",'lectures and seminars'!BA7) -> 5 | E127: =IF('lectures and seminars'!BB7="","",'lectures and seminars'!BB7) -> 5 | H127: Licensing in practice | I127: 4.818181818
A128: Large animal biology | B128: =IF('lectures and seminars'!AY8="","",'lectures and seminars'!AY8) -> 5 | C128: =IF('lectures and seminars'!AZ8="","",'lectures and seminars'!AZ8) -> 2 | D128: =IF('lectures and seminars'!BA8="","",'lectures and seminars'!BA8) -> 4 | E128: =IF('lectures and seminars'!BB8="","",'lectures and seminars'!BB8) -> 3 | H128: Microbiology | I128: 4.153846154
A129: Large animal biology | B129: =IF('lectures and seminars'!AY9="","",'lectures and seminars'!AY9) -> 5 | C129: =IF('lectures and seminars'!AZ9="","",'lectures and seminars'!AZ9) -> 5 | D129: =IF('lectures and seminars'!BA9="","",'lectures and seminars'!BA9) -> 5 | E129: =IF('lectures and seminars'!BB9="","",'lectures and seminars'!BB9) -> 5 | H129: Min. inv. | I129: 4.916666667
A130: Large animal biology | B130: =IF('lectures and seminars'!AY10="","",'lectures and seminars'!AY10) -> 5 | C130: =IF('lectures and seminars'!AZ10="","",'lectures and seminars'!AZ10) -> 5 | D130: =IF('lectures and seminars'!BA10="","",'lectures and seminars'!BA10) -> 5 | E130: =IF('lectures and seminars'!BB10="","",'lectures and seminars'!BB10) -> 5 | H130: Monitoring | I130: 4.846153846
A131: Large animal biology | B131: =IF('lectures and seminars'!AY11="","",'lectures and seminars'!AY11) -> 5 | C131: =IF('lectures and seminars'!AZ11="","",'lectures and seminars'!AZ11) -> 5 | D131: =IF('lectures and seminars'!BA11="","",'lectures and seminars'!BA11) -> 5 | E131: =IF('lectures and seminars'!BB11="","",'lectures and seminars'!BB11) -> 5 | H131: Pain, suffering | I131: 4.923076923
A132: Large animal biology | B132: =IF('lectures and seminars'!AY12="","",'lectures and seminars'!AY12) -> 5 | C132: =IF('lectures and seminars'!AZ12="","",'lectures and seminars'!AZ12) -> 5 | D132: =IF('lectures and seminars'!BA12="","",'lectures and seminars'!BA12) -> 5 | E132: =IF('lectures and seminars'!BB12="","",'lectures and seminars'!BB12) -> 5 | H132: Protocol design | I132: 4.818181818
A133: Large animal biology | B133: =IF('lectures and seminars'!AY13="","",'lectures and seminars'!AY13) -> 5 | C133: =IF('lectures and seminars'!AZ13="","",'lectures and seminars'!AZ13) -> 4 | D133: =IF('lectures and seminars'!BA13="","",'lectures and seminars'!BA13) -> 5 | E133: =IF('lectures and seminars'!BB13="","",'lectures and seminars'!BB13) -> 4 | H133: Restraint | I133: 4.642857143
A134: Large animal biology | B134: =IF('lectures and seminars'!AY14="","",'lectures and seminars'!AY14) -> 5 | C134: =IF('lectures and seminars'!AZ14="","",'lectures and seminars'!AZ14) -> 5 | D134: =IF('lectures and seminars'!BA14="","",'lectures and seminars'!BA14) -> 5 | E134: =IF('lectures and seminars'!BB14="","",'lectures and seminars'!BB14) -> 5 | H134: Safety | I134: 4.923076923
A135: Large animal biology | B135: =IF('lectures and seminars'!AY15="","",'lectures and seminars'!AY15) -> 5 | C135: =IF('lectures and seminars'!AZ15="","",'lectures and seminars'!AZ15) -> 5 | D135: =IF('lectures and seminars'!BA15="","",'lectures and seminars'!BA15) -> 5 | E135: =IF('lectures and seminars'!BB15="","",'lectures and seminars'!BB15) -> 5 | H135: Sample size | I135: 4.928571429
A136: Large animal biology | B136: =IF('lectures and seminars'!AY16="","",'lectures and seminars'!AY16) -> 5 | C136: =IF('lectures and seminars'!AZ16="","",'lectures and seminars'!AZ16) -> 5 | D136: =IF('lectures and seminars'!BA16="","",'lectures and seminars'!BA16) -> 5 | E136: =IF('lectures and seminars'!BB16="","",'lectures and seminars'!BB16) -> 5 | H136: Small animal biology | I136: 4.6
A137: Behaviour | B137: =IF('lectures and seminars'!BE2="","",'lectures and seminars'!BE2) -> 3 | C137: =IF('lectures and seminars'!BF2="","",'lectures and seminars'!BF2) -> 3 | D137: =IF('lectures and seminars'!BG2="","",'lectures and seminars'!BG2) -> 5 | E137: =IF('lectures and seminars'!BH2="","",'lectures and seminars'!BH2) -> 4 | H137: Translation | I137: 5
A138: Behaviour | B138: =IF('lectures and seminars'!BE3="","",'lectures and seminars'!BE3) ->  | C138: =IF('lectures and seminars'!BF3="","",'lectures and seminars'!BF3) ->  | D138: =IF('lectures and seminars'!BG3="","",'lectures and seminars'!BG3) ->  | E138: =IF('lectures and seminars'!BH3="","",'lectures and seminars'!BH3) ->  | H138: Zebrafish | I138: 4.714285714
A139: Behaviour | B139: =IF('lectures and seminars'!BE4="","",'lectures and seminars'!BE4) -> 3 | C139: =IF('lectures and seminars'!BF4="","",'lectures and seminars'!BF4) -> 3 | D139: =IF('lectures and seminars'!BG4="","",'lectures and seminars'!BG4) -> 5 | E139: =IF('lectures and seminars'!BH4="","",'lectures and seminars'!BH4) -> 4 | H139: Végösszeg | I139: 4.797066015
A140: Behaviour | B140: =IF('lectures and seminars'!BE5="","",'lectures and seminars'!BE5) -> 2 | C140: =IF('lectures and seminars'!BF5="","",'lectures and seminars'!BF5) -> 2 | D140: =IF('lectures and seminars'!BG5="","",'lectures and seminars'!BG5) -> 2 | E140: =IF('lectures and seminars'!BH5="","",'lectures and seminars'!BH5) -> 2
A141: Behaviour | B141: =IF('lectures and seminars'!BE6="","",'lectures and seminars'!BE6) -> 5 | C141: =IF('lectures and seminars'!BF6="","",'lectures and seminars'!BF6) -> 5 | D141: =IF('lectures and seminars'!BG6="","",'lectures and seminars'!BG6) -> 5 | E141: =IF('lectures and seminars'!BH6="","",'lectures and seminars'!BH6) -> 5
A142: Behaviour | B142: =IF('lectures and seminars'!BE7="","",'lectures and seminars'!BE7) -> 5 | C142: =IF('lectures and seminars'!BF7="","",'lectures and seminars'!BF7) -> 3 | D142: =IF('lectures and seminars'!BG7="","",'lectures and seminars'!BG7) -> 5 | E142: =IF('lectures and seminars'!BH7="","",'lectures and seminars'!BH7) -> 5
A143: Behaviour | B143: =IF('lectures and seminars'!BE8="","",'lectures and seminars'!BE8) -> 4 | C143: =IF('lectures and seminars'!BF8="","",'lectures and seminars'!BF8) -> 3 | D143: =IF('lectures and seminars'!BG8="","",'lectures and seminars'!BG8) -> 5 | E143: =IF('lectures and seminars'!BH8="","",'lectures and seminars'!BH8) -> 3
A144: Behaviour | B144: =IF('lectures and seminars'!BE9="","",'lectures and seminars'!BE9) -> 5 | C144: =IF('lectures and seminars'!BF9="","",'lectures and seminars'!BF9) -> 5 | D144: =IF('lectures and seminars'!BG9="","",'lectures and seminars'!BG9) -> 5 | E144: =IF('lectures and seminars'!BH9="","",'lectures and seminars'!BH9) -> 5
A145: Behaviour | B145: =IF('lectures and seminars'!BE10="","",'lectures and seminars'!BE10) -> 5 | C145: =IF('lectures and seminars'!BF10="","",'lectures and seminars'!BF10) -> 5 | D145: =IF('lectures and seminars'!BG10="","",'lectures and seminars'!BG10) -> 5 | E145: =IF('lectures and seminars'!BH10="","",'lectures and seminars'!BH10) -> 5 | H145: Sorcímkék | I145: Átlag / Subject-specific expertise | J145: Átlag / Style of performance | K145: Átlag / Choice of subject | L145: Átlag / Handouts
A146: Behaviour | B146: =IF('lectures and seminars'!BE11="","",'lectures and seminars'!BE11) -> 4 | C146: =IF('lectures and seminars'!BF11="","",'lectures and seminars'!BF11) -> 5 | D146: =IF('lectures and seminars'!BG11="","",'lectures and seminars'!BG11) -> 5 | E146: =IF('lectures and seminars'!BH11="","",'lectures and seminars'!BH11) -> 5 | H146: 3 Rs | I146: 4.866666667 | J146: 4.733333333 | K146: 4.866666667 | L146: 4.933333333
A147: Behaviour | B147: =IF('lectures and seminars'!BE12="","",'lectures and seminars'!BE12) -> 5 | C147: =IF('lectures and seminars'!BF12="","",'lectures and seminars'!BF12) -> 5 | D147: =IF('lectures and seminars'!BG12="","",'lectures and seminars'!BG12) -> 5 | E147: =IF('lectures and seminars'!BH12="","",'lectures and seminars'!BH12) -> 5 | H147: Advanced anaesthesia | I147: 4.928571429 | J147: 4.928571429 | K147: 4.928571429 | L147: 4.923076923
A148: Behaviour | B148: =IF('lectures and seminars'!BE13="","",'lectures and seminars'!BE13) -> 5 | C148: =IF('lectures and seminars'!BF13="","",'lectures and seminars'!BF13) -> 4 | D148: =IF('lectures and seminars'!BG13="","",'lectures and seminars'!BG13) -> 5 | E148: =IF('lectures and seminars'!BH13="","",'lectures and seminars'!BH13) -> 4 | H148: Alternatives | I148: 4.692307692 | J148: 5 | K148: 4.923076923 | L148: 4.769230769
A149: Behaviour | B149: =IF('lectures and seminars'!BE14="","",'lectures and seminars'!BE14) -> 5 | C149: =IF('lectures and seminars'!BF14="","",'lectures and seminars'!BF14) -> 5 | D149: =IF('lectures and seminars'!BG14="","",'lectures and seminars'!BG14) -> 5 | E149: =IF('lectures and seminars'!BH14="","",'lectures and seminars'!BH14) -> 5 | H149: Anaesthesia | I149: 4.928571429 | J149: 4.928571429 | K149: 4.928571429 | L149: 4.923076923
A150: Behaviour | B150: =IF('lectures and seminars'!BE15="","",'lectures and seminars'!BE15) -> 5 | C150: =IF('lectures and seminars'!BF15="","",'lectures and seminars'!BF15) -> 5 | D150: =IF('lectures and seminars'!BG15="","",'lectures and seminars'!BG15) -> 5 | E150: =IF('lectures and seminars'!BH15="","",'lectures and seminars'!BH15) -> 5 | H150: Basic surgical procedures | I150: 4.928571429 | J150: 4.928571429 | K150: 4.928571429 | L150: 4.923076923
A151: Behaviour | B151: =IF('lectures and seminars'!BE16="","",'lectures and seminars'!BE16) -> 5 | C151: =IF('lectures and seminars'!BF16="","",'lectures and seminars'!BF16) -> 5 | D151: =IF('lectures and seminars'!BG16="","",'lectures and seminars'!BG16) -> 5 | E151: =IF('lectures and seminars'!BH16="","",'lectures and seminars'!BH16) -> 5 | H151: Basics of statistics | I151: 5 | J151: 4.933333333 | K151: 5 | L151: 4.933333333
A152: Inbred, outbred | B152: =IF('lectures and seminars'!BK2="","",'lectures and seminars'!BK2) -> 4 | C152: =IF('lectures and seminars'!BL2="","",'lectures and seminars'!BL2) -> 5 | D152: =IF('lectures and seminars'!BM2="","",'lectures and seminars'!BM2) -> 5 | E152: =IF('lectures and seminars'!BN2="","",'lectures and seminars'!BN2) -> 4 | H152: Behaviour | I152: 4.357142857 | J152: 4.142857143 | K152: 4.785714286 | L152: 4.428571429
A153: Inbred, outbred | B153: =IF('lectures and seminars'!BK3="","",'lectures and seminars'!BK3) ->  | C153: =IF('lectures and seminars'!BL3="","",'lectures and seminars'!BL3) ->  | D153: =IF('lectures and seminars'!BM3="","",'lectures and seminars'!BM3) ->  | E153: =IF('lectures and seminars'!BN3="","",'lectures and seminars'!BN3) ->  | H153: Bibliometrics | I153: 5 | J153: 5 | K153: 4.714285714 | L153: 4.857142857
A154: Inbred, outbred | B154: =IF('lectures and seminars'!BK4="","",'lectures and seminars'!BK4) -> 4 | C154: =IF('lectures and seminars'!BL4="","",'lectures and seminars'!BL4) -> 3 | D154: =IF('lectures and seminars'!BM4="","",'lectures and seminars'!BM4) -> 5 | E154: =IF('lectures and seminars'!BN4="","",'lectures and seminars'!BN4) -> 2 | H154: Environmental enrichment | I154: 5 | J154: 5 | K154: 4.928571429 | L154: 4.923076923
A155: Inbred, outbred | B155: =IF('lectures and seminars'!BK5="","",'lectures and seminars'!BK5) -> 4 | C155: =IF('lectures and seminars'!BL5="","",'lectures and seminars'!BL5) -> 4 | D155: =IF('lectures and seminars'!BM5="","",'lectures and seminars'!BM5) -> 4 | E155: =IF('lectures and seminars'!BN5="","",'lectures and seminars'!BN5) -> 4 | H155: Ethics | I155: 5 | J155: 4.933333333 | K155: 4.933333333 | L155: 4.933333333
A156: Inbred, outbred | B156: =IF('lectures and seminars'!BK6="","",'lectures and seminars'!BK6) -> 5 | C156: =IF('lectures and seminars'!BL6="","",'lectures and seminars'!BL6) -> 5 | D156: =IF('lectures and seminars'!BM6="","",'lectures and seminars'!BM6) -> 5 | E156: =IF('lectures and seminars'!BN6="","",'lectures and seminars'!BN6) -> 5 | H156: Extrapolation | I156: 4.866666667 | J156: 4.4 | K156: 4.533333333 | L156: 4.733333333
A157: Inbred, outbred | B157: =IF('lectures and seminars'!BK7="","",'lectures and seminars'!BK7) -> 5 | C157: =IF('lectures and seminars'!BL7="","",'lectures and seminars'!BL7) -> 5 | D157: =IF('lectures and seminars'!BM7="","",'lectures and seminars'!BM7) -> 5 | E157: =IF('lectures and seminars'!BN7="","",'lectures and seminars'!BN7) -> 5 | H157: History | I157: 4.866666667 | J157: 4.933333333 | K157: 4.866666667 | L157: 4.866666667
A158: Inbred, outbred | B158: =IF('lectures and seminars'!BK8="","",'lectures and seminars'!BK8) -> 5 | C158: =IF('lectures and seminars'!BL8="","",'lectures and seminars'!BL8) -> 5 | D158: =IF('lectures and seminars'!BM8="","",'lectures and seminars'!BM8) -> 5 | E158: =IF('lectures and seminars'!BN8="","",'lectures and seminars'!BN8) -> 5 | H158: Housing | I158: 4.928571429 | J158: 4.857142857 | K158: 4.928571429 | L158: 4.846153846
A159: Inbred, outbred | B159: =IF('lectures and seminars'!BK9="","",'lectures and seminars'!BK9) -> 5 | C159: =IF('lectures and seminars'!BL9="","",'lectures and seminars'!BL9) -> 5 | D159: =IF('lectures and seminars'!BM9="","",'lectures and seminars'!BM9) -> 5 | E159: =IF('lectures and seminars'!BN9="","",'lectures and seminars'!BN9) -> 5 | H159: In vitro, ex vivo | I159: 4.916666667 | J159: 4.916666667 | K159: 4.666666667 | L159: 4.833333333
A160: Inbred, outbred | B160: =IF('lectures and seminars'!BK10="","",'lectures and seminars'!BK10) -> 5 | C160: =IF('lectures and seminars'!BL10="","",'lectures and seminars'!BL10) -> 5 | D160: =IF('lectures and seminars'!BM10="","",'lectures and seminars'!BM10) -> 5 | E160: =IF('lectures and seminars'!BN10="","",'lectures and seminars'!BN10) -> 5 | H160: Inbred, outbred | I160: 4.785714286 | J160: 4.785714286 | K160: 4.857142857 | L160: 4.642857143
A161: Inbred, outbred | B161: =IF('lectures and seminars'!BK11="","",'lectures and seminars'!BK11) -> 5 | C161: =IF('lectures and seminars'!BL11="","",'lectures and seminars'!BL11) -> 5 | D161: =IF('lectures and seminars'!BM11="","",'lectures and seminars'!BM11) -> 4 | E161: =IF('lectures and seminars'!BN11="","",'lectures and seminars'!BN11) -> 5 | H161: Large animal biology | I161: 4.933333333 | J161: 4.466666667 | K161: 4.733333333 | L161: 4.466666667
A162: Inbred, outbred | B162: =IF('lectures and seminars'!BK12="","",'lectures and seminars'!BK12) -> 5 | C162: =IF('lectures and seminars'!BL12="","",'lectures and seminars'!BL12) -> 5 | D162: =IF('lectures and seminars'!BM12="","",'lectures and seminars'!BM12) -> 5 | E162: =IF('lectures and seminars'!BN12="","",'lectures and seminars'!BN12) -> 5 | H162: Law and 3 Rs | I162: 4.866666667 | J162: 4.8 | K162: 4.866666667 | L162: 4.866666667
A163: Inbred, outbred | B163: =IF('lectures and seminars'!BK13="","",'lectures and seminars'!BK13) -> 5 | C163: =IF('lectures and seminars'!BL13="","",'lectures and seminars'!BL13) -> 5 | D163: =IF('lectures and seminars'!BM13="","",'lectures and seminars'!BM13) -> 5 | E163: =IF('lectures and seminars'!BN13="","",'lectures and seminars'!BN13) -> 5 | H163: Licensing | I163: 4.933333333 | J163: 4.8 | K163: 4.933333333 | L163: 4.866666667
A164: Inbred, outbred | B164: =IF('lectures and seminars'!BK14="","",'lectures and seminars'!BK14) -> 5 | C164: =IF('lectures and seminars'!BL14="","",'lectures and seminars'!BL14) -> 5 | D164: =IF('lectures and seminars'!BM14="","",'lectures and seminars'!BM14) -> 5 | E164: =IF('lectures and seminars'!BN14="","",'lectures and seminars'!BN14) -> 5 | H164: Licensing in practice | I164: 4.916666667 | J164: 4.916666667 | K164: 4.916666667 | L164: 4.818181818
A165: Inbred, outbred | B165: =IF('lectures and seminars'!BK15="","",'lectures and seminars'!BK15) -> 5 | C165: =IF('lectures and seminars'!BL15="","",'lectures and seminars'!BL15) -> 5 | D165: =IF('lectures and seminars'!BM15="","",'lectures and seminars'!BM15) -> 5 | E165: =IF('lectures and seminars'!BN15="","",'lectures and seminars'!BN15) -> 5 | H165: Microbiology | I165: 4.428571429 | J165: 3.928571429 | K165: 4.285714286 | L165: 4.153846154
A166: Inbred, outbred | B166: =IF('lectures and seminars'!BK16="","",'lectures and seminars'!BK16) -> 5 | C166: =IF('lectures and seminars'!BL16="","",'lectures and seminars'!BL16) -> 5 | D166: =IF('lectures and seminars'!BM16="","",'lectures and seminars'!BM16) -> 5 | E166: =IF('lectures and seminars'!BN16="","",'lectures and seminars'!BN16) -> 5 | H166: Min. inv. | I166: 4.846153846 | J166: 4.923076923 | K166: 4.923076923 | L166: 4.916666667
A167: Restraint | B167: =IF('lectures and seminars'!BQ2="","",'lectures and seminars'!BQ2) -> 5 | C167: =IF('lectures and seminars'!BR2="","",'lectures and seminars'!BR2) -> 5 | D167: =IF('lectures and seminars'!BS2="","",'lectures and seminars'!BS2) -> 5 | E167: =IF('lectures and seminars'!BT2="","",'lectures and seminars'!BT2) -> 5 | H167: Monitoring | I167: 5 | J167: 5 | K167: 4.857142857 | L167: 4.846153846
A168: Restraint | B168: =IF('lectures and seminars'!BQ3="","",'lectures and seminars'!BQ3) ->  | C168: =IF('lectures and seminars'!BR3="","",'lectures and seminars'!BR3) ->  | D168: =IF('lectures and seminars'!BS3="","",'lectures and seminars'!BS3) ->  | E168: =IF('lectures and seminars'!BT3="","",'lectures and seminars'!BT3) ->  | H168: Pain, suffering | I168: 4.928571429 | J168: 4.785714286 | K168: 4.928571429 | L168: 4.923076923
A169: Restraint | B169: =IF('lectures and seminars'!BQ4="","",'lectures and seminars'!BQ4) -> 5 | C169: =IF('lectures and seminars'!BR4="","",'lectures and seminars'!BR4) -> 4 | D169: =IF('lectures and seminars'!BS4="","",'lectures and seminars'!BS4) -> 4 | E169: =IF('lectures and seminars'!BT4="","",'lectures and seminars'!BT4) -> 4 | H169: Protocol design | I169: 4.916666667 | J169: 4.916666667 | K169: 4.916666667 | L169: 4.818181818
A170: Restraint | B170: =IF('lectures and seminars'!BQ5="","",'lectures and seminars'!BQ5) -> 4 | C170: =IF('lectures and seminars'!BR5="","",'lectures and seminars'!BR5) -> 4 | D170: =IF('lectures and seminars'!BS5="","",'lectures and seminars'!BS5) -> 4 | E170: =IF('lectures and seminars'!BT5="","",'lectures and seminars'!BT5) -> 4 | H170: Restraint | I170: 4.928571429 | J170: 4.714285714 | K170: 4.857142857 | L170: 4.642857143
A171: Restraint | B171: =IF('lectures and seminars'!BQ6="","",'lectures and seminars'!BQ6) -> 5 | C171: =IF('lectures and seminars'!BR6="","",'lectures and seminars'!BR6) -> 5 | D171: =IF('lectures and seminars'!BS6="","",'lectures and seminars'!BS6) -> 5 | E171: =IF('lectures and seminars'!BT6="","",'lectures and seminars'!BT6) -> 5 | H171: Safety | I171: 5 | J171: 4.928571429 | K171: 5 | L171: 4.923076923
A172: Restraint | B172: =IF('lectures and seminars'!BQ7="","",'lectures and seminars'!BQ7) -> 5 | C172: =IF('lectures and seminars'!BR7="","",'lectures and seminars'!BR7) -> 5 | D172: =IF('lectures and seminars'!BS7="","",'lectures and seminars'!BS7) -> 5 | E172: =IF('lectures and seminars'!BT7="","",'lectures and seminars'!BT7) -> 5 | H172: Sample size | I172: 4.928571429 | J172: 4.928571429 | K172: 4.928571429 | L172: 4.928571429
A173: Restraint | B173: =IF('lectures and seminars'!BQ8="","",'lectures and seminars'!BQ8) -> 5 | C173: =IF('lectures and seminars'!BR8="","",'lectures and seminars'!BR8) -> 3 | D173: =IF('lectures and seminars'!BS8="","",'lectures and seminars'!BS8) -> 5 | E173: =IF('lectures and seminars'!BT8="","",'lectures and seminars'!BT8) -> 3 | H173: Small animal biology | I173: 4.8 | J173: 4.4 | K173: 4.866666667 | L173: 4.6
A174: Restraint | B174: =IF('lectures and seminars'!BQ9="","",'lectures and seminars'!BQ9) -> 5 | C174: =IF('lectures and seminars'!BR9="","",'lectures and seminars'!BR9) -> 5 | D174: =IF('lectures and seminars'!BS9="","",'lectures and seminars'!BS9) -> 5 | E174: =IF('lectures and seminars'!BT9="","",'lectures and seminars'!BT9) -> 5 | H174: Translation | I174: 5 | J174: 5 | K174: 5 | L174: 5
A175: Restraint | B175: =IF('lectures and seminars'!BQ10="","",'lectures and seminars'!BQ10) -> 5 | C175: =IF('lectures and seminars'!BR10="","",'lectures and seminars'!BR10) -> 5 | D175: =IF('lectures and seminars'!BS10="","",'lectures and seminars'!BS10) -> 5 | E175: =IF('lectures and seminars'!BT10="","",'lectures and seminars'!BT10) -> 5 | H175: Zebrafish | I175: 4.857142857 | J175: 4.571428571 | K175: 4.785714286 | L175: 4.714285714
A176: Restraint | B176: =IF('lectures and seminars'!BQ11="","",'lectures and seminars'!BQ11) -> 5 | C176: =IF('lectures and seminars'!BR11="","",'lectures and seminars'!BR11) -> 5 | D176: =IF('lectures and seminars'!BS11="","",'lectures and seminars'!BS11) -> 5 | E176: =IF('lectures and seminars'!BT11="","",'lectures and seminars'!BT11) -> 5 | H176: Végösszeg | I176: 4.878859857 | J176: 4.779097387 | K176: 4.852731591 | L176: 4.797066015
A177: Restraint | B177: =IF('lectures and seminars'!BQ12="","",'lectures and seminars'!BQ12) -> 5 | C177: =IF('lectures and seminars'!BR12="","",'lectures and seminars'!BR12) -> 5 | D177: =IF('lectures and seminars'!BS12="","",'lectures and seminars'!BS12) -> 5 | E177: =IF('lectures and seminars'!BT12="","",'lectures and seminars'!BT12) -> 5
A178: Restraint | B178: =IF('lectures and seminars'!BQ13="","",'lectures and seminars'!BQ13) -> 5 | C178: =IF('lectures and seminars'!BR13="","",'lectures and seminars'!BR13) -> 5 | D178: =IF('lectures and seminars'!BS13="","",'lectures and seminars'!BS13) -> 5 | E178: =IF('lectures and seminars'!BT13="","",'lectures and seminars'!BT13) -> 5
A179: Restraint | B179: =IF('lectures and seminars'!BQ14="","",'lectures and seminars'!BQ14) -> 5 | C179: =IF('lectures and seminars'!BR14="","",'lectures and seminars'!BR14) -> 5 | D179: =IF('lectures and seminars'!BS14="","",'lectures and seminars'!BS14) -> 5 | E179: =IF('lectures and seminars'!BT14="","",'lectures and seminars'!BT14) -> 4
A180: Restraint | B180: =IF('lectures and seminars'!BQ15="","",'lectures and seminars'!BQ15) -> 5 | C180: =IF('lectures and seminars'!BR15="","",'lectures and seminars'!BR15) -> 5 | D180: =IF('lectures and seminars'!BS15="","",'lectures and seminars'!BS15) -> 5 | E180: =IF('lectures and seminars'!BT15="","",'lectures and seminars'!BT15) -> 5
A181: Restraint | B181: =IF('lectures and seminars'!BQ16="","",'lectures and seminars'!BQ16) -> 5 | C181: =IF('lectures and seminars'!BR16="","",'lectures and seminars'!BR16) -> 5 | D181: =IF('lectures and seminars'!BS16="","",'lectures and seminars'!BS16) -> 5 | E181: =IF('lectures and seminars'!BT16="","",'lectures and seminars'!BT16) -> 5
A182: Zebrafish | B182: =IF('lectures and seminars'!BW2="","",'lectures and seminars'!BW2) -> 5 | C182: =IF('lectures and seminars'!BX2="","",'lectures and seminars'!BX2) -> 5 | D182: =IF('lectures and seminars'!BY2="","",'lectures and seminars'!BY2) -> 5 | E182: =IF('lectures and seminars'!BZ2="","",'lectures and seminars'!BZ2) -> 5
A183: Zebrafish | B183: =IF('lectures and seminars'!BW3="","",'lectures and seminars'!BW3) ->  | C183: =IF('lectures and seminars'!BX3="","",'lectures and seminars'!BX3) ->  | D183: =IF('lectures and seminars'!BY3="","",'lectures and seminars'!BY3) ->  | E183: =IF('lectures and seminars'!BZ3="","",'lectures and seminars'!BZ3) -> 
A184: Zebrafish | B184: =IF('lectures and seminars'!BW4="","",'lectures and seminars'!BW4) -> 5 | C184: =IF('lectures and seminars'!BX4="","",'lectures and seminars'!BX4) -> 5 | D184: =IF('lectures and seminars'!BY4="","",'lectures and seminars'!BY4) -> 5 | E184: =IF('lectures and seminars'!BZ4="","",'lectures and seminars'!BZ4) -> 4
A185: Zebrafish | B185: =IF('lectures and seminars'!BW5="","",'lectures and seminars'!BW5) -> 4 | C185: =IF('lectures and seminars'!BX5="","",'lectures and seminars'!BX5) -> 4 | D185: =IF('lectures and seminars'!BY5="","",'lectures and seminars'!BY5) -> 4 | E185: =IF('lectures and seminars'!BZ5="","",'lectures and seminars'!BZ5) -> 4
A186: Zebrafish | B186: =IF('lectures and seminars'!BW6="","",'lectures and seminars'!BW6) -> 5 | C186: =IF('lectures and seminars'!BX6="","",'lectures and seminars'!BX6) -> 5 | D186: =IF('lectures and seminars'!BY6="","",'lectures and seminars'!BY6) -> 5 | E186: =IF('lectures and seminars'!BZ6="","",'lectures and seminars'!BZ6) -> 5
A187: Zebrafish | B187: =IF('lectures and seminars'!BW7="","",'lectures and seminars'!BW7) -> 5 | C187: =IF('lectures and seminars'!BX7="","",'lectures and seminars'!BX7) -> 5 | D187: =IF('lectures and seminars'!BY7="","",'lectures and seminars'!BY7) -> 5 | E187: =IF('lectures and seminars'!BZ7="","",'lectures and seminars'!BZ7) -> 5
A188: Zebrafish | B188: =IF('lectures and seminars'!BW8="","",'lectures and seminars'!BW8) -> 4 | C188: =IF('lectures and seminars'!BX8="","",'lectures and seminars'!BX8) -> 4 | D188: =IF('lectures and seminars'!BY8="","",'lectures and seminars'!BY8) -> 4 | E188: =IF('lectures and seminars'!BZ8="","",'lectures and seminars'!BZ8) -> 4
A189: Zebrafish | B189: =IF('lectures and seminars'!BW9="","",'lectures and seminars'!BW9) -> 5 | C189: =IF('lectures and seminars'!BX9="","",'lectures and seminars'!BX9) -> 5 | D189: =IF('lectures and seminars'!BY9="","",'lectures and seminars'!BY9) -> 5 | E189: =IF('lectures and seminars'!BZ9="","",'lectures and seminars'!BZ9) -> 5
A190: Zebrafish | B190: =IF('lectures and seminars'!BW10="","",'lectures and seminars'!BW10) -> 5 | C190: =IF('lectures and seminars'!BX10="","",'lectures and seminars'!BX10) -> 5 | D190: =IF('lectures and seminars'!BY10="","",'lectures and seminars'!BY10) -> 5 | E190: =IF('lectures and seminars'!BZ10="","",'lectures and seminars'!BZ10) -> 5
A191: Zebrafish | B191: =IF('lectures and seminars'!BW11="","",'lectures and seminars'!BW11) -> 5 | C191: =IF('lectures and seminars'!BX11="","",'lectures and seminars'!BX11) -> 5 | D191: =IF('lectures and seminars'!BY11="","",'lectures and seminars'!BY11) -> 5 | E191: =IF('lectures and seminars'!BZ11="","",'lectures and seminars'!BZ11) -> 5
A192: Zebrafish | B192: =IF('lectures and seminars'!BW12="","",'lectures and seminars'!BW12) -> 5 | C192: =IF('lectures and seminars'!BX12="","",'lectures and seminars'!BX12) -> 2 | D192: =IF('lectures and seminars'!BY12="","",'lectures and seminars'!BY12) -> 5 | E192: =IF('lectures and seminars'!BZ12="","",'lectures and seminars'!BZ12) -> 5
A193: Zebrafish | B193: =IF('lectures and seminars'!BW13="","",'lectures and seminars'!BW13) -> 5 | C193: =IF('lectures and seminars'!BX13="","",'lectures and seminars'!BX13) -> 4 | D193: =IF('lectures and seminars'!BY13="","",'lectures and seminars'!BY13) -> 5 | E193: =IF('lectures and seminars'!BZ13="","",'lectures and seminars'!BZ13) -> 4
A194: Zebrafish | B194: =IF('lectures and seminars'!BW14="","",'lectures and seminars'!BW14) -> 5 | C194: =IF('lectures and seminars'!BX14="","",'lectures and seminars'!BX14) -> 5 | D194: =IF('lectures and seminars'!BY14="","",'lectures and seminars'!BY14) -> 5 | E194: =IF('lectures and seminars'!BZ14="","",'lectures and seminars'!BZ14) -> 5
A195: Zebrafish | B195: =IF('lectures and seminars'!BW15="","",'lectures and seminars'!BW15) -> 5 | C195: =IF('lectures and seminars'!BX15="","",'lectures and seminars'!BX15) -> 5 | D195: =IF('lectures and seminars'!BY15="","",'lectures and seminars'!BY15) -> 5 | E195: =IF('lectures and seminars'!BZ15="","",'lectures and seminars'!BZ15) -> 5
A196: Zebrafish | B196: =IF('lectures and seminars'!BW16="","",'lectures and seminars'!BW16) -> 5 | C196: =IF('lectures and seminars'!BX16="","",'lectures and seminars'!BX16) -> 5 | D196: =IF('lectures and seminars'!BY16="","",'lectures and seminars'!BY16) -> 4 | E196: =IF('lectures and seminars'!BZ16="","",'lectures and seminars'!BZ16) -> 5
A197: Microbiology | B197: =IF('lectures and seminars'!CC2="","",'lectures and seminars'!CC2) -> 4 | C197: =IF('lectures and seminars'!CD2="","",'lectures and seminars'!CD2) -> 3 | D197: =IF('lectures and seminars'!CE2="","",'lectures and seminars'!CE2) -> 4 | E197: =IF('lectures and seminars'!CF2="","",'lectures and seminars'!CF2) -> 3
A198: Microbiology | B198: =IF('lectures and seminars'!CC3="","",'lectures and seminars'!CC3) ->  | C198: =IF('lectures and seminars'!CD3="","",'lectures and seminars'!CD3) ->  | D198: =IF('lectures and seminars'!CE3="","",'lectures and seminars'!CE3) ->  | E198: =IF('lectures and seminars'!CF3="","",'lectures and seminars'!CF3) -> 
A199: Microbiology | B199: =IF('lectures and seminars'!CC4="","",'lectures and seminars'!CC4) -> 5 | C199: =IF('lectures and seminars'!CD4="","",'lectures and seminars'!CD4) -> 3 | D199: =IF('lectures and seminars'!CE4="","",'lectures and seminars'!CE4) -> 4 | E199: =IF('lectures and seminars'!CF4="","",'lectures and seminars'!CF4) -> 4
A200: Microbiology | B200: =IF('lectures and seminars'!CC5="","",'lectures and seminars'!CC5) -> 2 | C200: =IF('lectures and seminars'!CD5="","",'lectures and seminars'!CD5) -> 2 | D200: =IF('lectures and seminars'!CE5="","",'lectures and seminars'!CE5) -> 3 | E200: =IF('lectures and seminars'!CF5="","",'lectures and seminars'!CF5) -> 3
... 251 more rows
